Service Area,Service Division,Expense Type,Expense Code,Detailed Expense Type,Payment Date,Transaction Number,Amount Exc VAT,Supplier Name
Regeneration and Local Services,Technical Services,Construction work A908,908105,Construction work,02/07/2018,3457293-21782,"6,797.80",JACK COUPE & SONS LTD T/A COUPE LINE.
Resources,Finance & Transactional Services,Intangible Assets,917003,Software capitalised implementation fees,02/07/2018,3457371-94554576,999.00,NORTHGATE ARINSO UK LTD.
Non-Service Specific,Non Service Specific-Financing,Long Term Debtors,924001,Car loans,02/07/2018,3457151-84042844,"1,288.00",ARRIVA RAIL NORTH LTD T/A NORTHERN.
Regeneration and Local Services,Culture & Sport,Premises,145023,Cleaning and Domestic Supplies,02/07/2018,3457276-06/743729,748.82,GREENHAM TRADING LTD.
Regeneration and Local Services,Direct Services,Premises,145015,Cleaning and Domestic Supplies,02/07/2018,3457373-13241071,"1,505.88",NUMATIC INTERNATIONAL LTD.
Regeneration and Local Services,Economic Development and Housing,Premises,135005,Water Services,02/07/2018,3457372-30992123002X116,"1,008.15",NORTHUMBRIAN WATER LTD.
Regeneration and Local Services,Direct Services,Stock A926,926004,Stock,02/07/2018,3457177-225206,"1,049.69",CARRS BILLINGTON AGRICULTURE.
Regeneration and Local Services,Technical Services,Stock A926,926004,Stock,02/07/2018,3457189-400010421,"12,813.60",CLEVELAND POTASH LTD T/A ICL FERTILIZERS.
Regeneration and Local Services,Technical Services,Stock A926,926004,Stock,02/07/2018,3457189-400010526,"23,110.80",CLEVELAND POTASH LTD T/A ICL FERTILIZERS.
Regeneration and Local Services,Technical Services,Stock A926,926900,Stock in hand-Inventory system,02/07/2018,3457276-06/743559,"1,644.98",GREENHAM TRADING LTD.
Regeneration and Local Services,Technical Services,Stock A926,926900,Stock in hand-Inventory system,02/07/2018,3457276-06/743561,545.20,GREENHAM TRADING LTD.
Resources,Digital and Customer Services,Stock A926,926900,Stock in hand-Inventory system,02/07/2018,3457289-3917917,628.02,INSIGHT DIRECT (UK) LTD.
Regeneration and Local Services,Technical Services,Stock A926,926900,Stock in hand-Inventory system,02/07/2018,3457379-XL223720,"3,017.40",PARK ELECTRICAL DISTRIBUTORS LTD.
Regeneration and Local Services,Technical Services,Stock A926,926900,Stock in hand-Inventory system,02/07/2018,3457434-SI18004320,525.20,SOLON SECURITY LTD.
Regeneration and Local Services,Spatial Policy Planning Assets & Environment,Supplies and Services,336005,Advertising E336,02/07/2018,3457359-25207673,717.44,NEWSQUEST (YORKSHIRE & NORTH EAST) LTD.
Regeneration and Local Services,Technical Services,Supplies and Services,328041,Clothing uniforms and laundry E328,02/07/2018,3457311-145470,"1,032.85",KELTIC LTD.
Regeneration and Local Services,Economic Development and Housing,Supplies and Services,342053,Computers and Communications,02/07/2018,3457246-BW/2526,"1,200.00",ENERGY AUDIT CO LTD.
Resources,Digital and Customer Services,Supplies and Services,342051,Computers and Communications,02/07/2018,3457270-IN2000067503,849.00,GETGO TECHNOLOGIES UK LTD.
Children and Young Peoples Services,Head of Education and Skills,Supplies and Services,352001,Conference Expenses,02/07/2018,3457207-INV-592646,"1,000.00",CREATIVE CASCADE UK LTD.
Children and Young Peoples Services,Head of Childrens Social Care,Supplies and Services,352001,Conference Expenses,02/07/2018,3457223-PU39415,"1,000.00",DODS PARLIAMENTARY COMMUNICATIONS.
Regeneration and Local Services,Technical Services,Supplies and Services,304221,Equipment and Materials,02/07/2018,3457134-001678,688.80,A PARRY MOBILE WELDING & FABRICATION.
Regeneration and Local Services,Culture & Sport,Supplies and Services,304259,Equipment and Materials,02/07/2018,3457138-116331268,827.74,AC ENTERTAINMENT TECHNOLOGIES.
Regeneration and Local Services,Direct Services,Supplies and Services,304259,Equipment and Materials,02/07/2018,3457146-0000017340,"4,101.39",AMBEROL LTD.
Regeneration and Local Services,Direct Services,Supplies and Services,304221,Equipment and Materials,02/07/2018,3457159-DUR/173727,527.48,BEMCO LTD.
Regeneration and Local Services,Direct Services,Supplies and Services,304221,Equipment and Materials,02/07/2018,3457236-0000009528,"2,963.12",EAST RIDING HORTICULTURE LTD.
Regeneration and Local Services,Technical Services,Supplies and Services,304221,Equipment and Materials,02/07/2018,3457250-151040,"1,940.50",ESH CONSTRUCTION LTD FORMERLY LUMSDEN & CARROLL CONSTRUCTION LTD.
Regeneration and Local Services,Direct Services,Supplies and Services,304259,Equipment and Materials,02/07/2018,3457268-397995,585.00,GEMCO EQUIPMENT LTD.
Regeneration and Local Services,Direct Services,Supplies and Services,304221,Equipment and Materials,02/07/2018,3457283-4598997,"1,225.96",HEADLAM (FLOORCOVERING DISTRIBUTORS) LTD.
Children and Young Peoples Services,Head of Education and Skills,Supplies and Services,304259,Equipment and Materials,02/07/2018,3457286-160477,749.00,INCLUSIVE TECHNOLOGY LTD.
Resources,Digital and Customer Services,Supplies and Services,304303,Equipment and Materials,02/07/2018,3457288-SIN428867,"4,484.40",INFORMATION & DATA NETWORK SUPPLIES LTD (IDN).
Regeneration and Local Services,Technical Services,Supplies and Services,304221,Equipment and Materials,02/07/2018,3457318-INV01595174,"2,266.50",LANES GROUP PLC.
Regeneration and Local Services,Direct Services,Supplies and Services,304221,Equipment and Materials,02/07/2018,3457326-4286768,"1,166.10",LONDON GENERAL SALES LTD.
Regeneration and Local Services,Direct Services,Supplies and Services,304259,Equipment and Materials,02/07/2018,3457357-063854,"1,142.95",NEW ROW FARM NURSERIES.
Regeneration and Local Services,Direct Services,Supplies and Services,304221,Equipment and Materials,02/07/2018,3457357-064016,"1,892.16",NEW ROW FARM NURSERIES.
Regeneration and Local Services,Direct Services,Supplies and Services,304221,Equipment and Materials,02/07/2018,3457357-064021,"1,270.14",NEW ROW FARM NURSERIES.
Regeneration and Local Services,Direct Services,Supplies and Services,304221,Equipment and Materials,02/07/2018,3457450-2740213,"1,214.50",T CROSSLING & CO LTD.
Regeneration and Local Services,Direct Services,Supplies and Services,304221,Equipment and Materials,02/07/2018,3457450-2740570,"1,020.00",T CROSSLING & CO LTD.
Regeneration and Local Services,Direct Services,Supplies and Services,304221,Equipment and Materials,02/07/2018,3457450-2740571,"1,100.00",T CROSSLING & CO LTD.
Regeneration and Local Services,Direct Services,Supplies and Services,304221,Equipment and Materials,02/07/2018,3457450-2744268,"4,232.60",T CROSSLING & CO LTD.
Regeneration and Local Services,Direct Services,Supplies and Services,304221,Equipment and Materials,02/07/2018,3457450-2745929,"1,360.00",T CROSSLING & CO LTD.
Regeneration and Local Services,Direct Services,Supplies and Services,304221,Equipment and Materials,02/07/2018,3457450-2745930,"1,535.00",T CROSSLING & CO LTD.
Regeneration and Local Services,Direct Services,Supplies and Services,304221,Equipment and Materials,02/07/2018,3457450-2745977,760.40,T CROSSLING & CO LTD.
Regeneration and Local Services,Direct Services,Supplies and Services,304221,Equipment and Materials,02/07/2018,3457450-2746527,802.26,T CROSSLING & CO LTD.
Regeneration and Local Services,Direct Services,Supplies and Services,304221,Equipment and Materials,02/07/2018,3457450-2747503,"6,072.50",T CROSSLING & CO LTD.
Regeneration and Local Services,Direct Services,Supplies and Services,304221,Equipment and Materials,02/07/2018,3457450-2747765,"1,332.10",T CROSSLING & CO LTD.
Regeneration and Local Services,Direct Services,Supplies and Services,304221,Equipment and Materials,02/07/2018,3457460-0000105045,"1,922.60",THE SEKURA GROUP.
Regeneration and Local Services,Direct Services,Supplies and Services,304221,Equipment and Materials,02/07/2018,3457468-31613,"1,040.00",TOTAL PUMP SOLUTIONS LTD.
Regeneration and Local Services,Technical Services,Supplies and Services,304221,Equipment and Materials,02/07/2018,3457479-187825,"1,187.03",TYNEDALE ROADSTONE LTD.
Regeneration and Local Services,Technical Services,Supplies and Services,304221,Equipment and Materials,02/07/2018,3457479-187826,714.80,TYNEDALE ROADSTONE LTD.
Regeneration and Local Services,Technical Services,Supplies and Services,304221,Equipment and Materials,02/07/2018,3457479-187827,"1,106.75",TYNEDALE ROADSTONE LTD.
Regeneration and Local Services,Technical Services,Supplies and Services,304221,Equipment and Materials,02/07/2018,3457479-187828,752.60,TYNEDALE ROADSTONE LTD.
Regeneration and Local Services,Technical Services,Supplies and Services,304221,Equipment and Materials,02/07/2018,3457479-187829,908.24,TYNEDALE ROADSTONE LTD.
Regeneration and Local Services,Technical Services,Supplies and Services,304221,Equipment and Materials,02/07/2018,3457479-187830,820.22,TYNEDALE ROADSTONE LTD.
Regeneration and Local Services,Technical Services,Supplies and Services,304221,Equipment and Materials,02/07/2018,3457479-187831,"1,001.96",TYNEDALE ROADSTONE LTD.
Regeneration and Local Services,Technical Services,Supplies and Services,304221,Equipment and Materials,02/07/2018,3457479-187832,926.72,TYNEDALE ROADSTONE LTD.
Regeneration and Local Services,Technical Services,Supplies and Services,304221,Equipment and Materials,02/07/2018,3457479-187833,691.52,TYNEDALE ROADSTONE LTD.
Regeneration and Local Services,Technical Services,Supplies and Services,304221,Equipment and Materials,02/07/2018,3457479-187910,"1,190.00",TYNEDALE ROADSTONE LTD.
Regeneration and Local Services,Technical Services,Supplies and Services,304221,Equipment and Materials,02/07/2018,3457479-187911,"1,106.75",TYNEDALE ROADSTONE LTD.
Regeneration and Local Services,Technical Services,Supplies and Services,304221,Equipment and Materials,02/07/2018,3457479-187912,805.02,TYNEDALE ROADSTONE LTD.
Regeneration and Local Services,Technical Services,Supplies and Services,304221,Equipment and Materials,02/07/2018,3457479-187913,987.20,TYNEDALE ROADSTONE LTD.
Regeneration and Local Services,Technical Services,Supplies and Services,304221,Equipment and Materials,02/07/2018,3457479-187914,989.12,TYNEDALE ROADSTONE LTD.
Regeneration and Local Services,Technical Services,Supplies and Services,304221,Equipment and Materials,02/07/2018,3457479-187915,662.60,TYNEDALE ROADSTONE LTD.
Regeneration and Local Services,Technical Services,Supplies and Services,304221,Equipment and Materials,02/07/2018,3457479-187917,987.20,TYNEDALE ROADSTONE LTD.
Regeneration and Local Services,Technical Services,Supplies and Services,304221,Equipment and Materials,02/07/2018,3457479-187918,929.60,TYNEDALE ROADSTONE LTD.
Regeneration and Local Services,Technical Services,Supplies and Services,304221,Equipment and Materials,02/07/2018,3457479-187919,629.51,TYNEDALE ROADSTONE LTD.
Regeneration and Local Services,Technical Services,Supplies and Services,304221,Equipment and Materials,02/07/2018,3457479-187920,"1,164.64",TYNEDALE ROADSTONE LTD.
Regeneration and Local Services,Direct Services,Supplies and Services,304221,Equipment and Materials,02/07/2018,3457491-46124,"3,462.00",WILLOWCRETE MANUFACTURING COMPANY LTD (MFG).
Adult and Health Services,Head of Adults,Supplies and Services,308011,Furniture,02/07/2018,3457141-10707,728.00,AH & D CUTHBERTSON LTD.
Regeneration and Local Services,Culture & Sport,Supplies and Services,384199,Miscellaneous Expenses,02/07/2018,3457138-116331318,530.22,AC ENTERTAINMENT TECHNOLOGIES.
Transformation and Partnerships,Partnerships & Community Engagement Div.,Supplies and Services,384086,Miscellaneous Expenses,02/07/2018,3457198-VOUCHERCONJ05-18,600.00,CONSETT & DISTRICT RUGBY FOOTBALL CLUB.
Regeneration and Local Services,Culture & Sport,Supplies and Services,384199,Miscellaneous Expenses,02/07/2018,3457231-SD000074,833.33,DURHAM SCHOOL TRADING LTD.
Resources,Digital and Customer Services,Supplies and Services,384956,Miscellaneous Expenses,02/07/2018,3457258-3831,"208,000.00",FIRMSTEP LTD.
Children and Young Peoples Services,Head of Education and Skills,Supplies and Services,384199,Miscellaneous Expenses,02/07/2018,3457363-0000036628,"7,722.00",NORTH EAST AUTISM SOCIETY.
Dedicated Schools Grant,DSG High Needs Block,Supplies and Services,384199,Miscellaneous Expenses,02/07/2018,3457427-17,510.00,SHARON HOWARD T/A SH COUNSELLING SERVICES.
Transformation and Partnerships,Partnerships & Community Engagement Div.,Supplies and Services,384086,Miscellaneous Expenses,02/07/2018,3457429-VOUCHERBROP09-18-GRA08-18,750.00,SHO SHIN KAI KARATE CLUB.
Regeneration and Local Services,Culture & Sport,Supplies and Services,384199,Miscellaneous Expenses,02/07/2018,3457440-00344646,561.55,STAGE ELECTRICS.
Transformation and Partnerships,Partnerships & Community Engagement Div.,Supplies and Services,384086,Miscellaneous Expenses,02/07/2018,3457451-VOUCHERMILO01-18,800.00,TANFIELD LEA COUNTRYSIDE GROUP.
Transformation and Partnerships,Partnerships & Community Engagement Div.,Supplies and Services,384086,Miscellaneous Expenses,02/07/2018,3457453-VOUCHERMILO02-18,700.00,TANTOBIE ASSOCIATION FOR SPORT & THE COMMUNITY.
Resources,Digital and Customer Services,Supplies and Services,332029,Printing Stationery and Gen Off Exps,02/07/2018,3457395-659744,"1,596.00",POTTS PRINTERS LTD.
Resources,Legal & Democratic Services,Supplies and Services,338057,Services,02/07/2018,3457142-0000030528,"1,275.00",ALERE FORENSICS.
Resources,Legal & Democratic Services,Supplies and Services,338025,Services,02/07/2018,3457191-S44995-01552,850.00,CO-OPERATIVE FUNERAL CARE.
Resources,Legal & Democratic Services,Supplies and Services,338042,Services,02/07/2018,3457216-334966/INVSEB1X150,550.00,DERE STREET BARRISTERS.
Resources,Legal & Democratic Services,Supplies and Services,338042,Services,02/07/2018,3457216-338557/INVSEB1X151,"2,350.00",DERE STREET BARRISTERS.
Resources,Legal & Democratic Services,Supplies and Services,338042,Services,02/07/2018,3457216-339032/INVMT1X148,850.00,DERE STREET BARRISTERS.
Resources,Legal & Democratic Services,Supplies and Services,338042,Services,02/07/2018,3457216-339320/INVSW609,"2,250.00",DERE STREET BARRISTERS.
Resources,Legal & Democratic Services,Supplies and Services,338042,Services,02/07/2018,3457216-339501-7/6/18,540.00,DERE STREET BARRISTERS.
Resources,Legal & Democratic Services,Supplies and Services,338042,Services,02/07/2018,3457216-339837/INVCF130,550.00,DERE STREET BARRISTERS.
Resources,Legal & Democratic Services,Supplies and Services,338042,Services,02/07/2018,3457216-339850/INVSEB1X152,"1,000.00",DERE STREET BARRISTERS.
Resources,Legal & Democratic Services,Supplies and Services,338057,Services,02/07/2018,3457225-MAY-18U,"2,032.80",DR SREE MUSSUNOOR.
Resources,Legal & Democratic Services,Supplies and Services,338057,Services,02/07/2018,3457226-MAY-18D,"1,800.00",DR SREE MUSSUNOOR.
Resources,Finance & Transactional Services,Supplies and Services,338050,Services,02/07/2018,3457249-1029180-1031432,620.00,EQUITA LTD.
Children and Young Peoples Services,Childrens Services Operational Support,Supplies and Services,338089,Services,02/07/2018,3457336-JH155,994.50,MARY JOAN HUNT.
Regeneration and Local Services,Spatial Policy Planning Assets & Environment,Supplies and Services,338027,Services,02/07/2018,3457347-152873-08/06/18,"1,500.00",MR GRAEME KEEN.
Adult and Health Services,Public Health,Supplies and Services,338094,Services,02/07/2018,3457458-5291,554.50,THE DURHAM CENTRE LTD.
Regeneration and Local Services,Economic Development and Housing,Supplies and Services,344033,Telephones,02/07/2018,3457459-004071921,982.63,THE PHONE CO-OP.
Children and Young Peoples Services,Head of Education and Skills,Third Party Payments 4THIRD,440999,Other third party payments E440,02/07/2018,3457277-M047,"7,094.10",GROUNDWORK NORTH EAST.
Children and Young Peoples Services,Head of Education and Skills,Third Party Payments 4THIRD,440999,Other third party payments E440,02/07/2018,3457340-1381,"2,382.72",MBC CERAMICS LTD.
Children and Young Peoples Services,Head of Education and Skills,Third Party Payments 4THIRD,440999,Other third party payments E440,02/07/2018,3457340-1382,"5,883.75",MBC CERAMICS LTD.
Dedicated Schools Grant,DSG High Needs Block,Third Party Payments 4THIRD,440080,Other third party payments E440,02/07/2018,3457356-SLINV/00002638,"92,596.20",NEW COLLEGE DURHAM.
Children and Young Peoples Services,Head of Education and Skills,Third Party Payments 4THIRD,440999,Other third party payments E440,02/07/2018,3457365-3141,"1,664.00",NORTH EAST DANCE CIC.
Dedicated Schools Grant,DSG High Needs Block,Third Party Payments 4THIRD,410037,Rendered by Other Local Authorities,02/07/2018,3457368-NVSI40,"3,760.00",NORTH VIEW ACADEMY.
Regeneration and Local Services,Direct Services,Third Party Payments 4THIRD,430100,Rendered by Private Contractors,02/07/2018,3457147-16786,"2,100.00",AMBIC LTD.
Regeneration and Local Services,Direct Services,Third Party Payments 4THIRD,430120,Rendered by Private Contractors,02/07/2018,3457257-CTIN06543715,"7,362.30",FINNING (UK) LTD.
Regeneration and Local Services,Direct Services,Third Party Payments 4THIRD,430120,Rendered by Private Contractors,02/07/2018,3457257-CTIN06543716,"2,416.15",FINNING (UK) LTD.
Regeneration and Local Services,Technical Services,Third Party Payments 4THIRD,430100,Rendered by Private Contractors,02/07/2018,3457293-21790,"19,867.96",JACK COUPE & SONS LTD T/A COUPE LINE.
Regeneration and Local Services,Technical Services,Third Party Payments 4THIRD,430100,Rendered by Private Contractors,02/07/2018,3457293-21797,"4,172.05",JACK COUPE & SONS LTD T/A COUPE LINE.
Regeneration and Local Services,Direct Services,Third Party Payments 4THIRD,430100,Rendered by Private Contractors,02/07/2018,3457349-DCC042,"1,500.00",MR WILLIAM MAGUIRE T/A VALLUM LIFTS.
Regeneration and Local Services,EnvironmentHealth & Consumer Protection,Third Party Payments 4THIRD,430100,Rendered by Private Contractors,02/07/2018,3457406-IN-18-WP-001362,"3,100.00",PUBLIC ANALYST SCIENTIFIC SERVICES LTD.
Regeneration and Local Services,Technical Services,Third Party Payments 4THIRD,430100,Rendered by Private Contractors,02/07/2018,3457436-12162365,"2,074.13",SOUTH TYNESIDE COUNCIL.
Regeneration and Local Services,Direct Services,Third Party Payments 4THIRD,430100,Rendered by Private Contractors,02/07/2018,3457446-180164,"1,806.61",SUPATINT LTD T/A SUPATINT WINDOW FILMS & BLINDS.
Regeneration and Local Services,Technical Services,Third Party Payments 4THIRD,430100,Rendered by Private Contractors,02/07/2018,3457486-348,"1,407.08",VINOVIUM ASSOCIATES LTD.
Children and Young Peoples Services,Head of Education and Skills,Transfer Payments,510027,School Children,02/07/2018,3457166-0012,"1,526.85",BLUE SKY CHILDCARE.
Children and Young Peoples Services,Head of Education and Skills,Transfer Payments,510027,School Children,02/07/2018,3457173-7/6/18,972.00,BUSY BEARS LTD.
Children and Young Peoples Services,Head of Education and Skills,Transfer Payments,510027,School Children,02/07/2018,3457173-7THJUNE2018,"1,404.00",BUSY BEARS LTD.
Children and Young Peoples Services,Head of Education and Skills,Transfer Payments,510027,School Children,02/07/2018,3457173-DCATCHSUPPORTFUNDING7/6/18,842.40,BUSY BEARS LTD.
Resources,Digital and Customer Services,Vehicles Equipment Furniture and Fittings,912701,Computer equipment,02/07/2018,3457214-7402447601,"8,160.00",DELL COMPUTER CORPORATION LTD.
Resources,Digital and Customer Services,Vehicles Equipment Furniture and Fittings,912701,Computer equipment,02/07/2018,3457358-4562,"9,960.00",NEWLANDMEDIA LTD.
Regeneration and Local Services,Direct Services,Vehicles Equipment Furniture and Fittings,912529,Purchase-equipment,02/07/2018,3457314-SI205794,797.70,KOMPAN SCOTLAND LTD.
Transformation and Partnerships,Partnerships & Community Engagement Div.,Cap Exp on Grants & Other Financial Assistance (REFCUS),918004,Contributions to other bodies 918004,03/07/2018,3457541-VOUCHER18NB-CHES011,"3,740.00",BULLION COMMUNITY RESOURCE CENTRE.
Transformation and Partnerships,Partnerships & Community Engagement Div.,Cap Exp on Grants & Other Financial Assistance (REFCUS),918004,Contributions to other bodies 918004,03/07/2018,3457547-VOUCHER18NB-EDRC004,"5,539.00",CASSOP COMMUNITY CENTRE.
Transformation and Partnerships,Partnerships & Community Engagement Div.,Cap Exp on Grants & Other Financial Assistance (REFCUS),918004,Contributions to other bodies 918004,03/07/2018,3457569-VOUCHER18NB-BASH006,"1,174.00",COUNDON & LEEHOLME COMMUNITY ASSOCIATION.
Regeneration and Local Services,Transport and Contracted Services,Fees,901002,Professional fees 901002,03/07/2018,3457755-NEW9321,"5,397.75",SANDERSON WEATHERALL LLP.
Resources,Digital and Customer Services,Stock A926,926900,Stock in hand-Inventory system,03/07/2018,3457580-7402449195,"1,573.02",DELL COMPUTER CORPORATION LTD.
Regeneration and Local Services,Economic Development and Housing,Supplies and Services,342053,Computers and Communications,03/07/2018,3457511-9941601,902.20,ANCHOR COMPUTER SYSTEMS LTD.
Resources,Digital and Customer Services,Supplies and Services,342033,Computers and Communications,03/07/2018,3457580-7402448256,"1,087.00",DELL COMPUTER CORPORATION LTD.
Regeneration and Local Services,Economic Development and Housing,Supplies and Services,342053,Computers and Communications,03/07/2018,3457612-24121,"6,100.00",EXCELPOINT LTD.
Regeneration and Local Services,Economic Development and Housing,Supplies and Services,304337,Equipment and Materials,03/07/2018,3457622-98251,566.13,GAINSBOROUGH GIFTWARE LTD.
Regeneration and Local Services,Direct Services,Supplies and Services,304999,Equipment and Materials,03/07/2018,3457718-127315,534.80,PALINTEST LTD.
Regeneration and Local Services,Technical Services,Supplies and Services,304221,Equipment and Materials,03/07/2018,3457744-1-000948,"4,465.00",READMAN FABRICATIONS LTD.
Regeneration and Local Services,Culture & Sport,Supplies and Services,304259,Equipment and Materials,03/07/2018,3457772-914/27689,"1,239.04",SITELINK COMMUNICATIONS LTD.
Regeneration and Local Services,Culture & Sport,Supplies and Services,304259,Equipment and Materials,03/07/2018,3457772-914/27735,"1,480.50",SITELINK COMMUNICATIONS LTD.
Regeneration and Local Services,Culture & Sport,Supplies and Services,304259,Equipment and Materials,03/07/2018,3457772-914/27738,756.15,SITELINK COMMUNICATIONS LTD.
Regeneration and Local Services,Technical Services,Supplies and Services,304221,Equipment and Materials,03/07/2018,3457782-105986,"3,434.20",STONEGRAVE AGGREGATES LTD.
Regeneration and Local Services,Technical Services,Supplies and Services,304221,Equipment and Materials,03/07/2018,3457782-106035,"1,215.24",STONEGRAVE AGGREGATES LTD.
Regeneration and Local Services,Technical Services,Supplies and Services,304221,Equipment and Materials,03/07/2018,3457782-106135,"1,306.92",STONEGRAVE AGGREGATES LTD.
Regeneration and Local Services,Technical Services,Supplies and Services,304221,Equipment and Materials,03/07/2018,3457782-106240,"1,281.96",STONEGRAVE AGGREGATES LTD.
Regeneration and Local Services,Direct Services,Supplies and Services,304221,Equipment and Materials,03/07/2018,3457789-2724858,"1,405.77",T CROSSLING & CO LTD.
Regeneration and Local Services,Direct Services,Supplies and Services,304221,Equipment and Materials,03/07/2018,3457805-1623,720.00,TYNEDALE ROADSTONE LTD.
Regeneration and Local Services,Technical Services,Supplies and Services,304221,Equipment and Materials,03/07/2018,3457805-187921,"1,047.80",TYNEDALE ROADSTONE LTD.
Children and Young Peoples Services,Head of Education and Skills,Supplies and Services,384199,Miscellaneous Expenses,03/07/2018,3457591-NORTHERNLIGHTS,581.23,DURHAM UNIVERSITY.
Regeneration and Local Services,Culture & Sport,Supplies and Services,384199,Miscellaneous Expenses,03/07/2018,3457602-4100622578,"1,135.00",ELLIOT NELSON (THEATRE CONTRACTOR).
Children and Young Peoples Services,"Head of Early Help, Inclusion and Vulnerable Children",Supplies and Services,384956,Miscellaneous Expenses,03/07/2018,3457691-448796,"2,803.99",MPLC MOTION PICTURE LICENSING CORPORATION.
Regeneration and Local Services,Culture & Sport,Supplies and Services,312013,Newspapers books and periodicals E312,03/07/2018,3457520-5754857,590.52,ASKEWS & HOLTS LIBRARY SERVICES LTD.
Regeneration and Local Services,Culture & Sport,Supplies and Services,312017,Newspapers books and periodicals E312,03/07/2018,3457520-5754919,540.30,ASKEWS & HOLTS LIBRARY SERVICES LTD.
Regeneration and Local Services,Culture & Sport,Supplies and Services,312013,Newspapers books and periodicals E312,03/07/2018,3457815-J11337274A,"3,075.00",WHICH? LTD.
Resources,Digital and Customer Services,Supplies and Services,340001,Postages E340,03/07/2018,3457750-9056648374.,"16,978.75",ROYAL MAIL GROUP PLC.
Children and Young Peoples Services,Head of Childrens Social Care,Supplies and Services,338044,Services,03/07/2018,3457587-8/19-007,"1,238.35",DR STEPHANIE HILL.
Children and Young Peoples Services,Central Charges (CYPS),Supplies and Services,372009,Subscriptions E372,03/07/2018,3457522-SI13458,"15,050.00",AVCO SYSTEMS LTD.
Adult and Health Services,Public Health,Third Party Payments 4THIRD,460803,Contract Payments,03/07/2018,3457633-2510017439,"84,209.60",HARROGATE & DISTRICT NHS FOUNDATION TRUST.
Adult and Health Services,Public Health,Third Party Payments 4THIRD,460803,Contract Payments,03/07/2018,3457633-2510017712,"1,200.00",HARROGATE & DISTRICT NHS FOUNDATION TRUST.
Regeneration and Local Services,Transport and Contracted Services,Third Party Payments 4THIRD,440999,Other third party payments E440,03/07/2018,3457526-58117,"6,514.32",BAYDALE CONTROL SYSTEMS LTD.
Children and Young Peoples Services,Head of Childrens Social Care,Third Party Payments 4THIRD,440039,Other third party payments E440,03/07/2018,3457690-47THIRDSTREET,869.44,MOVING ON DURHAM.
Children and Young Peoples Services,Head of Childrens Social Care,Third Party Payments 4THIRD,440038,Other third party payments E440,03/07/2018,3457749-1367,806.97,ROCSOLID.
Regeneration and Local Services,Direct Services,Third Party Payments 4THIRD,440999,Other third party payments E440,03/07/2018,3457761-251882,"1,411.15",SCIENCE MUSEUM GROUP ENTERPRISES LTD.
Adult and Health Services,Head of Adults,Third Party Payments 4THIRD,478151,Purchase of Care,03/07/2018,3457501-524,"1,675.04",ACCEPT CARE LTD.
Adult and Health Services,Head of Adults,Third Party Payments 4THIRD,478151,Purchase of Care,03/07/2018,3457501-586,515.61,ACCEPT CARE LTD.
Regeneration and Local Services,Transport and Contracted Services,Third Party Payments 4THIRD,430106,Rendered by Private Contractors,03/07/2018,3457628-66226,"78,511.69",GO GATESHEAD LTD.
Regeneration and Local Services,Technical Services,Third Party Payments 4THIRD,430100,Rendered by Private Contractors,03/07/2018,3457672-IN008923,"1,440.00",LINBROOKE SERVICES LTD.
Regeneration and Local Services,Direct Services,Third Party Payments 4THIRD,430100,Rendered by Private Contractors,03/07/2018,3457709-914248553,"6,428.34",NORTHUMBRIAN WATER LTD.
Children and Young Peoples Services,Head of Childrens Social Care,Third Party Payments 4THIRD,425020,Rendered by Voluntary Organisations,03/07/2018,3457544-020/19,"1,110.00",BUTTERWICK LTD..
Children and Young Peoples Services,Head of Childrens Social Care,Third Party Payments 4THIRD,425020,Rendered by Voluntary Organisations,03/07/2018,3457544-350/18,740.00,BUTTERWICK LTD..
Children and Young Peoples Services,Head of Childrens Social Care,Third Party Payments 4THIRD,425021,Rendered by Voluntary Organisations,03/07/2018,3457593-CD010,"17,935.71",DUTY OF CARE LTD.
Children and Young Peoples Services,Head of Childrens Social Care,Third Party Payments 4THIRD,425021,Rendered by Voluntary Organisations,03/07/2018,3457593-MP013,"13,285.71",DUTY OF CARE LTD.
Children and Young Peoples Services,Head of Childrens Social Care,Third Party Payments 4THIRD,425021,Rendered by Voluntary Organisations,03/07/2018,3457618-111,"14,000.00",FOREVER CARE.
Children and Young Peoples Services,Head of Childrens Social Care,Third Party Payments 4THIRD,425021,Rendered by Voluntary Organisations,03/07/2018,3457618-439,"14,279.00",FOREVER CARE.
Children and Young Peoples Services,Head of Childrens Social Care,Third Party Payments 4THIRD,425021,Rendered by Voluntary Organisations,03/07/2018,3457645-4583,"3,520.00",HOWARD HOUSE CARE LTD.
Children and Young Peoples Services,Head of Childrens Social Care,Third Party Payments 4THIRD,425023,Rendered by Voluntary Organisations,03/07/2018,3457702-0000036198,"57,537.00",NORTH EAST AUTISM SOCIETY.
Children and Young Peoples Services,Head of Childrens Social Care,Third Party Payments 4THIRD,425023,Rendered by Voluntary Organisations,03/07/2018,3457706-1985,"13,561.50",NORTH LAKES CHILDREN`S SERVICES LTD.
Children and Young Peoples Services,Head of Childrens Social Care,Third Party Payments 4THIRD,425020,Rendered by Voluntary Organisations,03/07/2018,3457726-35936,"4,874.80",PERCY HEDLEY FOUNDATION.
Children and Young Peoples Services,Head of Childrens Social Care,Third Party Payments 4THIRD,425021,Rendered by Voluntary Organisations,03/07/2018,3457743-4390,"4,150.00",REACH OUT CARE SUPPORT SERVICES LTD.
Children and Young Peoples Services,Head of Childrens Social Care,Third Party Payments 4THIRD,425021,Rendered by Voluntary Organisations,03/07/2018,3457743-4391,"4,150.00",REACH OUT CARE SUPPORT SERVICES LTD.
Children and Young Peoples Services,Head of Childrens Social Care,Third Party Payments 4THIRD,425021,Rendered by Voluntary Organisations,03/07/2018,3457743-4396-2018,"4,150.00",REACH OUT CARE SUPPORT SERVICES LTD.
Children and Young Peoples Services,Head of Childrens Social Care,Third Party Payments 4THIRD,425021,Rendered by Voluntary Organisations,03/07/2018,3457743-4397-2018,"4,150.00",REACH OUT CARE SUPPORT SERVICES LTD.
Dedicated Schools Grant,DSG High Needs Block,Third Party Payments 4THIRD,425005,Rendered by Voluntary Organisations,03/07/2018,3457752-CHI036803,"11,289.27",S/C 200000 CAMBIAN CHILDCARE LTD.
Dedicated Schools Grant,DSG High Needs Block,Third Party Payments 4THIRD,425005,Rendered by Voluntary Organisations,03/07/2018,3457816-109,"19,874.00",WITHERSLACK GROUP LTD T/A ASHBROOKE SCHOOL.
Children and Young Peoples Services,Head of Childrens Social Care,Third Party Payments 4THIRD,486043,Service level agreements E486,03/07/2018,3457505-6935,"1,182.08",AFTER ADOPTION.
Children and Young Peoples Services,Head of Childrens Social Care,Third Party Payments 4THIRD,486043,Service level agreements E486,03/07/2018,3457505-6957,"2,297.00",AFTER ADOPTION.
Adult and Health Services,Commissioning inc Supporting People,Third Party Payments 4THIRD,441001,Supporting People E441,03/07/2018,3457783-1967879,"54,465.72",STONHAM HOUSING ASSOCIATION LTD.
Adult and Health Services,Commissioning inc Supporting People,Third Party Payments 4THIRD,441001,Supporting People E441,03/07/2018,3457783-1967885,"15,342.48",STONHAM HOUSING ASSOCIATION LTD.
Adult and Health Services,Commissioning inc Supporting People,Third Party Payments 4THIRD,442002,Supporting People E442,03/07/2018,3457783-1967814,"113,942.68",STONHAM HOUSING ASSOCIATION LTD.
Adult and Health Services,Commissioning inc Supporting People,Third Party Payments 4THIRD,442002,Supporting People E442,03/07/2018,3457783-1967884,"27,962.72",STONHAM HOUSING ASSOCIATION LTD.
Adult and Health Services,Commissioning inc Supporting People,Third Party Payments 4THIRD,443001,Supporting People E443,03/07/2018,3457783-1967881,"11,506.84",STONHAM HOUSING ASSOCIATION LTD.
Children and Young Peoples Services,Head of Childrens Social Care,Transport,230005,Contract Hire,03/07/2018,3457499-K52/ZA,"1,080.00",AABAT TAXIS.
Children and Young Peoples Services,Head of Childrens Social Care,Transport,230005,Contract Hire,03/07/2018,3457572-107729,"1,051.26",CROFT BUSINESS SERVICES (UK) LTD T/A CROFT TAXIS.
Children and Young Peoples Services,Head of Childrens Social Care,Transport,230005,Contract Hire,03/07/2018,3457572-107744,523.10,CROFT BUSINESS SERVICES (UK) LTD T/A CROFT TAXIS.
Children and Young Peoples Services,Head of Education and Skills,Transport,235005,Public Transport,03/07/2018,3457814-1480,"1,513.00",WEARDALE MOTOR SERVICES LTD.
Regeneration and Local Services,Economic Development and Housing,Construction work A908,908105,Construction work,04/07/2018,3458612-BE4065,"1,200.00",BARRETT ENVIRONMENTAL LTD.
Regeneration and Local Services,Transport and Contracted Services,Construction work A908,908105,Construction work,04/07/2018,3458920-18138,700.00,NORTH EAST TRAFFIC DATA COLLECTION LTD.
Children and Young Peoples Services,Head of Education and Skills,Fees,901002,Professional fees 901002,04/07/2018,3458730-18020425,"35,675.45",FAITHFUL & GOULD LTD.
Regeneration and Local Services,Economic Development and Housing,Premises,108099,Service Repairs and Maintenance,04/07/2018,3458574-28/6/18,570.00,A CLIFT T/A TONY CLIFT PAINTING.
Regeneration and Local Services,Technical Services,Stock A926,926004,Stock,04/07/2018,3458663-400010527,"10,363.80",CLEVELAND POTASH LTD T/A ICL FERTILIZERS.
Regeneration and Local Services,Direct Services,Stock A926,926004,Stock,04/07/2018,3458901-81402,800.74,MTS BOBCAT.
Resources,Digital and Customer Services,Stock A926,926900,Stock in hand-Inventory system,04/07/2018,3458695-7402447906,524.34,DELL COMPUTER CORPORATION LTD.
Regeneration and Local Services,Technical Services,Stock A926,926900,Stock in hand-Inventory system,04/07/2018,3459021-192001,"4,737.60",SNAPFAST.
Regeneration and Local Services,Technical Services,Stock A926,926900,Stock in hand-Inventory system,04/07/2018,3459038-9038271486,767.11,TARMAC TRADING LTD.
Regeneration and Local Services,Direct Services,Supplies and Services,304221,Equipment and Materials,04/07/2018,3458715-059-225510,"1,164.09",EDMUNDSON ELECTRICAL LTD.
Regeneration and Local Services,Direct Services,Supplies and Services,304221,Equipment and Materials,04/07/2018,3458733-1806-046078,790.00,FLAME HEATING SPARES LTD.
Resources,Digital and Customer Services,Supplies and Services,304303,Equipment and Materials,04/07/2018,3458785-SIN428954,"4,151.10",INFORMATION & DATA NETWORK SUPPLIES LTD (IDN).
Regeneration and Local Services,Technical Services,Supplies and Services,304358,Equipment and Materials,04/07/2018,3458793-1538/2017,726.00,J & JG GILL & SONS LTD.
Regeneration and Local Services,Direct Services,Supplies and Services,304221,Equipment and Materials,04/07/2018,3458817-BII259520,"2,999.25",JT DOVE LTD.
Regeneration and Local Services,Technical Services,Supplies and Services,304358,Equipment and Materials,04/07/2018,3458847-MS1007,693.00,M SPENCE SURFACING LTD.
Regeneration and Local Services,Technical Services,Supplies and Services,304358,Equipment and Materials,04/07/2018,3458847-MS1008,828.00,M SPENCE SURFACING LTD.
Regeneration and Local Services,Technical Services,Supplies and Services,304358,Equipment and Materials,04/07/2018,3458847-MS1041,513.00,M SPENCE SURFACING LTD.
Regeneration and Local Services,Technical Services,Supplies and Services,304358,Equipment and Materials,04/07/2018,3458847-MS946,513.00,M SPENCE SURFACING LTD.
Regeneration and Local Services,Technical Services,Supplies and Services,304358,Equipment and Materials,04/07/2018,3458847-MS951,867.37,M SPENCE SURFACING LTD.
Regeneration and Local Services,Culture & Sport,Supplies and Services,304259,Equipment and Materials,04/07/2018,3459026-00345329,"1,057.88",STAGE ELECTRICS.
Regeneration and Local Services,Culture & Sport,Supplies and Services,304259,Equipment and Materials,04/07/2018,3459026-00345330,"1,180.24",STAGE ELECTRICS.
Regeneration and Local Services,Technical Services,Supplies and Services,304221,Equipment and Materials,04/07/2018,3459066-187973,604.91,TYNEDALE ROADSTONE LTD.
Regeneration and Local Services,Technical Services,Supplies and Services,304221,Equipment and Materials,04/07/2018,3459066-187974,879.68,TYNEDALE ROADSTONE LTD.
Regeneration and Local Services,Technical Services,Supplies and Services,304221,Equipment and Materials,04/07/2018,3459066-187975,700.16,TYNEDALE ROADSTONE LTD.
Regeneration and Local Services,Technical Services,Supplies and Services,304221,Equipment and Materials,04/07/2018,3459066-187976,634.70,TYNEDALE ROADSTONE LTD.
Regeneration and Local Services,Technical Services,Supplies and Services,304221,Equipment and Materials,04/07/2018,3459066-187977,"1,103.03",TYNEDALE ROADSTONE LTD.
Regeneration and Local Services,Culture & Sport,Supplies and Services,304259,Equipment and Materials,04/07/2018,3459079-AT1090,520.00,WALLY ANDERSON T/A ALL TECHNIC.
Regeneration and Local Services,Culture & Sport,Supplies and Services,384199,Miscellaneous Expenses,04/07/2018,3458602-6284,"5,352.50",AS AUDIO SERVICES.
Regeneration and Local Services,Economic Development and Housing,Supplies and Services,384899,Miscellaneous Expenses,04/07/2018,3458608-ABPC/10/05/13,"2,000.00",AYCLIFFE BUSINESS PARK COMMUNITY LTD.
Children and Young Peoples Services,Head of Childrens Social Care,Supplies and Services,384302,Miscellaneous Expenses,04/07/2018,310280-4959,600.00,FAMILY RIGHTS GROUP.
Children and Young Peoples Services,"Head of Early Help, Inclusion and Vulnerable Children",Supplies and Services,384302,Miscellaneous Expenses,04/07/2018,3459049-6226,693.40,THE WORK PLACE (AYCLIFFE) LTD.
Regeneration and Local Services,Business Support,Supplies and Services,340001,Postages E340,04/07/2018,3458994-9056740580,"1,527.93",ROYAL MAIL GROUP PLC.
Resources,Corporate Finance & Commercial Services,Supplies and Services,338221,Services,04/07/2018,3458769-SF-019374,990.00,HEALTH ASSURED LTD.
Children and Young Peoples Services,"Head of Early Help, Inclusion and Vulnerable Children",Supplies and Services,344033,Telephones,04/07/2018,3459070-204649,572.70,UNIFY BUSINESS SOLUTIONS LTD.
Adult and Health Services,Public Health,Third Party Payments 4THIRD,460803,Contract Payments,04/07/2018,3458767-2510016992,"10,983.00",HARROGATE & DISTRICT NHS FOUNDATION TRUST.
Regeneration and Local Services,Technical Services,Third Party Payments 4THIRD,460109,Contract Payments,04/07/2018,3458787-INS1601,"2,920.00",INSPECTORATE LTD T/A ROCH NDT SERVICES.
Children and Young Peoples Services,Head of Education and Skills,Third Party Payments 4THIRD,440999,Other third party payments E440,04/07/2018,3458582-DOC02488,"3,028.08",ACUMEN COMMUNITY ENTERPRISE DEVELOPMENT TRUST LTD.
Dedicated Schools Grant,DSG High Needs Block,Third Party Payments 4THIRD,440080,Other third party payments E440,04/07/2018,3458690-SUNV/00002012,"1,913.85",DARLINGTON COLLEGE.
Regeneration and Local Services,Economic Development and Housing,Third Party Payments 4THIRD,440999,Other third party payments E440,04/07/2018,3458754-MARKETROSS,"30,000.00",GLASPER TUNSTALL STONE MASONRY LTD.
Dedicated Schools Grant,DSG High Needs Block,Third Party Payments 4THIRD,440080,Other third party payments E440,04/07/2018,3458778-HWSI47,"40,254.23",HOPE WOOD ACADEMY.
Resources - C A C,Centrally Administered costs,Third Party Payments 4THIRD,440999,Other third party payments E440,04/07/2018,3458923-AC364369,"6,550.00",NORTH KESTEVEN DISTRICT COUNCIL.
Adult and Health Services,Head of Adults,Third Party Payments 4THIRD,478151,Purchase of Care,04/07/2018,3458581-562,830.83,ACCEPT CARE LTD.
Adult and Health Services,Commissioning inc Supporting People,Third Party Payments 4THIRD,479111,Purchase of Care,04/07/2018,3458698-4100622169PART1,"6,588.00",DERWENTSIDE MIND.
Regeneration and Local Services,Technical Services,Third Party Payments 4THIRD,430100,Rendered by Private Contractors,04/07/2018,3458614-1760007,"17,967.82",BCE NORTHERN LTD.
Regeneration and Local Services,Technical Services,Third Party Payments 4THIRD,430100,Rendered by Private Contractors,04/07/2018,3458632-43557,"4,386.45",BRIDGEWAY CONSULTING LTD.
Regeneration and Local Services,Direct Services,Third Party Payments 4THIRD,430100,Rendered by Private Contractors,04/07/2018,3458647-4124,699.00,CATHEDRAL LOCK & SAFE SERVICES LTD.
Regeneration and Local Services,Technical Services,Third Party Payments 4THIRD,430100,Rendered by Private Contractors,04/07/2018,3458686-N522009,640.00,D-DRILL (MASTER DRILLERS) LTD.
Regeneration and Local Services,Technical Services,Third Party Payments 4THIRD,430100,Rendered by Private Contractors,04/07/2018,3458707-8444,"30,106.70",DUNELM GEOTECHNICAL & ENVIRONMENTAL LTD.
Regeneration and Local Services,Transport and Contracted Services,Third Party Payments 4THIRD,430106,Rendered by Private Contractors,04/07/2018,3458731-APRIL/MAY18,"5,426.10",FERRYHILL VILLAGE TRAVEL.
Regeneration and Local Services,Technical Services,Third Party Payments 4THIRD,430127,Rendered by Private Contractors,04/07/2018,3458753-10077,"1,525.50",GJ CONTRACTORS.
Regeneration and Local Services,Technical Services,Third Party Payments 4THIRD,430100,Rendered by Private Contractors,04/07/2018,3458773-2775,"7,342.80",HIGHWAY CONSTRUCTION SERVICES LTD.
Regeneration and Local Services,Direct Services,Third Party Payments 4THIRD,430100,Rendered by Private Contractors,04/07/2018,3458781-2612,"2,871.24",HOWELL CUMMINGS CATERING EQUIPMENT LTD.
Regeneration and Local Services,Direct Services,Third Party Payments 4THIRD,430114,Rendered by Private Contractors,04/07/2018,3458786-78898,"4,847.05",INITIAL PROJECTS LTD T/A ENITIAL.
Regeneration and Local Services,Technical Services,Third Party Payments 4THIRD,430100,Rendered by Private Contractors,04/07/2018,3458795-21798,"3,213.70",JACK COUPE & SONS LTD T/A COUPE LINE.
Regeneration and Local Services,Direct Services,Third Party Payments 4THIRD,430100,Rendered by Private Contractors,04/07/2018,3458954-3251,"18,799.00",POLY ADVISORY LTD.
Regeneration and Local Services,Transport and Contracted Services,Third Party Payments 4THIRD,430106,Rendered by Private Contractors,04/07/2018,3458967-2070,"4,253.70",R COOPER T/A DC TAXIS.
Regeneration and Local Services,Direct Services,Third Party Payments 4THIRD,430100,Rendered by Private Contractors,04/07/2018,3459065-DCC/GT/60,509.82,TYNE VALLEY FLOORING & CARPETS.
Regeneration and Local Services,Direct Services,Third Party Payments 4THIRD,430114,Rendered by Private Contractors,04/07/2018,3459087-3181052451617,"2,500.00",WOMBLE BOND DICKINSON (UK) LLP.
Children and Young Peoples Services,Head of Childrens Social Care,Third Party Payments 4THIRD,425023,Rendered by Voluntary Organisations,04/07/2018,3458955-9013230,"73,917.33",PONTVILLE SCHOOL LTD.
Adult and Health Services,Commissioning inc Supporting People,Third Party Payments 4THIRD,441001,Supporting People E441,04/07/2018,3458709-1967863,"20,819.76",DURHAM ACTION ON SINGLE HOUSING.
Adult and Health Services,Commissioning inc Supporting People,Third Party Payments 4THIRD,441001,Supporting People E441,04/07/2018,3458712-1967833,"5,483.40",EAST DURHAM COMMUNITY INITIATIVES LTD.
Adult and Health Services,Commissioning inc Supporting People,Third Party Payments 4THIRD,441001,Supporting People E441,04/07/2018,3458766-1967817,"18,082.80",HARBOUR SUPPORT SERVICES.
Adult and Health Services,Commissioning inc Supporting People,Third Party Payments 4THIRD,441001,Supporting People E441,04/07/2018,3458983-1967832,"9,423.88",RICHMOND FELLOWSHIP.
Adult and Health Services,Commissioning inc Supporting People,Third Party Payments 4THIRD,441001,Supporting People E441,04/07/2018,3459045-1967837,"19,231.20",THE CYRENIANS LTD T/A CHANGING LIVES.
Adult and Health Services,Commissioning inc Supporting People,Third Party Payments 4THIRD,441001,Supporting People E441,04/07/2018,3459078-1967834,"2,367.20",WADDINGTON STREET CENTRE LTD.
Adult and Health Services,Commissioning inc Supporting People,Third Party Payments 4THIRD,441001,Supporting People E441,04/07/2018,3459083-1967819,"7,157.00",WEAR VALLEY WOMENS AID.
Adult and Health Services,Commissioning inc Supporting People,Third Party Payments 4THIRD,442002,Supporting People E442,04/07/2018,3458624-1967836,"16,448.04",BID SERVICES WITH DEAF PEOPLE.
Adult and Health Services,Commissioning inc Supporting People,Third Party Payments 4THIRD,442002,Supporting People E442,04/07/2018,3458679-1967816,"19,868.48",CREATIVE SUPPORT LTD.
Adult and Health Services,Commissioning inc Supporting People,Third Party Payments 4THIRD,442002,Supporting People E442,04/07/2018,3458736-1967862,"19,776.44",FOUNDATION.
Adult and Health Services,Commissioning inc Supporting People,Third Party Payments 4THIRD,442002,Supporting People E442,04/07/2018,3458736-1967887,"2,863.28",FOUNDATION.
Adult and Health Services,Commissioning inc Supporting People,Third Party Payments 4THIRD,442002,Supporting People E442,04/07/2018,3458737-1967886,"32,194.64",FOUR HOUSING GROUP & CARE & REPAIR HANDYPERSON SERVICE.
Adult and Health Services,Commissioning inc Supporting People,Third Party Payments 4THIRD,442002,Supporting People E442,04/07/2018,3458764-1967872,"3,297.48",HANOVER HOUSING ASSOCIATION.
Adult and Health Services,Commissioning inc Supporting People,Third Party Payments 4THIRD,442002,Supporting People E442,04/07/2018,3458782-1967815,"5,668.48",HUMANKIND CHARITY (FORMERLY DISC LTD).
Adult and Health Services,Commissioning inc Supporting People,Third Party Payments 4THIRD,442002,Supporting People E442,04/07/2018,3458782-1967860,"27,885.68",HUMANKIND CHARITY (FORMERLY DISC LTD).
Adult and Health Services,Commissioning inc Supporting People,Third Party Payments 4THIRD,442002,Supporting People E442,04/07/2018,3458861-1967818,"5,469.72",MENTAL HEALTH MATTERS.
Adult and Health Services,Commissioning inc Supporting People,Third Party Payments 4THIRD,442002,Supporting People E442,04/07/2018,3458872-1967873,"2,620.48",MOVING ON.
Adult and Health Services,Commissioning inc Supporting People,Third Party Payments 4THIRD,442002,Supporting People E442,04/07/2018,3458983-1967820,"7,356.72",RICHMOND FELLOWSHIP.
Adult and Health Services,Commissioning inc Supporting People,Third Party Payments 4THIRD,442002,Supporting People E442,04/07/2018,3459011-1967874,"6,331.08",SHAID LTD.
Adult and Health Services,Commissioning inc Supporting People,Third Party Payments 4THIRD,443001,Supporting People E443,04/07/2018,3458709-1967866,"4,427.76",DURHAM ACTION ON SINGLE HOUSING.
Adult and Health Services,Commissioning inc Supporting People,Third Party Payments 4THIRD,444002,Supporting People E444,04/07/2018,3458983-1967821,"3,698.40",RICHMOND FELLOWSHIP.
Adult and Health Services,Commissioning inc Supporting People,Third Party Payments 4THIRD,444002,Supporting People E444,04/07/2018,3459078-1967855,567.36,WADDINGTON STREET CENTRE LTD.
Children and Young Peoples Services,Head of Education and Skills,Transfer Payments,510027,School Children,04/07/2018,3458752-4927,"1,134.00",GIANT STEPS LTD.
Children and Young Peoples Services,Head of Education and Skills,Transport,230007,Contract Hire,04/07/2018,3458573-1JUNE2018,"1,800.00",A & P TAXIS.
Children and Young Peoples Services,Head of Education and Skills,Transport,230008,Contract Hire,04/07/2018,3458576-A220799,"1,340.00",A MURRAY TRAVEL.
Children and Young Peoples Services,Head of Education and Skills,Transport,230008,Contract Hire,04/07/2018,3458576-EA220795,"1,880.00",A MURRAY TRAVEL.
Children and Young Peoples Services,Head of Education and Skills,Transport,230008,Contract Hire,04/07/2018,3458576-GC009,990.00,A MURRAY TRAVEL.
Children and Young Peoples Services,Head of Education and Skills,Transport,230006,Contract Hire,04/07/2018,3458576-HA220801,990.00,A MURRAY TRAVEL.
Children and Young Peoples Services,Head of Education and Skills,Transport,230006,Contract Hire,04/07/2018,3458584-590,760.00,ADAMSONS TAXIS.
Adult and Health Services,Head of Adults,Transport,230005,Contract Hire,04/07/2018,3458589-0010,"1,400.00",AIRPORT TAXIS 4U.
Children and Young Peoples Services,Head of Education and Skills,Transport,230008,Contract Hire,04/07/2018,3458591-38895862,"1,657.50",ALAN SOUTHERN T/A ALANS TAXIS PELTON FELL.
Children and Young Peoples Services,Head of Education and Skills,Transport,230006,Contract Hire,04/07/2018,3458595-0060,"1,100.00",ANDREW SIMPSON T/A ANDY`S CABS.
Children and Young Peoples Services,Head of Education and Skills,Transport,230008,Contract Hire,04/07/2018,3458596-147,"1,505.00",ANDY CABS.
Children and Young Peoples Services,Head of Education and Skills,Transport,230008,Contract Hire,04/07/2018,3458606-291618,"1,675.00",AVALON TAXIS.
Children and Young Peoples Services,Head of Education and Skills,Transport,230016,Contract Hire,04/07/2018,3458616-SMITH2/JUNE18,780.00,BEELINE PRIVATE HIRE.
Children and Young Peoples Services,Head of Education and Skills,Transport,230012,Contract Hire,04/07/2018,3458628-13,"2,000.00",BL CARS.
Children and Young Peoples Services,Head of Education and Skills,Transport,230008,Contract Hire,04/07/2018,3458628-14,"2,808.00",BL CARS.
Children and Young Peoples Services,Head of Education and Skills,Transport,230007,Contract Hire,04/07/2018,3458629-2068,"2,600.00",BOB SMITH COACHES.
Children and Young Peoples Services,Head of Education and Skills,Transport,230008,Contract Hire,04/07/2018,310273-N010/10,"1,400.00",C STEWART.
Children and Young Peoples Services,Head of Education and Skills,Transport,230008,Contract Hire,04/07/2018,3458636-BIL0133,"1,000.00",CA MUSGROVE.
Children and Young Peoples Services,Head of Education and Skills,Transport,230007,Contract Hire,04/07/2018,3458651-18-5222,"1,280.00",CHAPMAN TRAVEL.
Children and Young Peoples Services,Head of Education and Skills,Transport,230008,Contract Hire,04/07/2018,3458666-009,"1,700.00",COLIN HOLMES.
Children and Young Peoples Services,Head of Education and Skills,Transport,230008,Contract Hire,04/07/2018,3458670-1474,"1,840.00",CONNORS MINI BUSES.*
Children and Young Peoples Services,Head of Education and Skills,Transport,230008,Contract Hire,04/07/2018,3458670-1475,"1,760.00",CONNORS MINI BUSES.*
Children and Young Peoples Services,Head of Education and Skills,Transport,230008,Contract Hire,04/07/2018,3458670-1476,"1,880.00",CONNORS MINI BUSES.*
Children and Young Peoples Services,Head of Education and Skills,Transport,230008,Contract Hire,04/07/2018,3458670-1477,"2,400.00",CONNORS MINI BUSES.*
Children and Young Peoples Services,Head of Education and Skills,Transport,230008,Contract Hire,04/07/2018,3458682-36,"1,206.20",CUTHBERT CABS.
Adult and Health Services,Head of Adults,Transport,230005,Contract Hire,04/07/2018,3458684-TH1806,"1,031.00",D IRVING T/A BJ TAXIS.
Children and Young Peoples Services,Head of Education and Skills,Transport,230008,Contract Hire,04/07/2018,3458684-HOW1806,"1,000.00",D IRVING T/A BJ TAXIS.
Children and Young Peoples Services,Head of Education and Skills,Transport,230007,Contract Hire,04/07/2018,3458685-213,634.00,D MCDONNELL.
Children and Young Peoples Services,Head of Education and Skills,Transport,230006,Contract Hire,04/07/2018,3458689-3293717,"1,933.75",DARLINGTON BOROUGH COUNCIL.
Children and Young Peoples Services,Head of Education and Skills,Transport,230012,Contract Hire,04/07/2018,3458700-002-E013JUN18,"1,453.50",DEXTERS PRIVATE HIRE.
Children and Young Peoples Services,Head of Education and Skills,Transport,230008,Contract Hire,04/07/2018,3458700-009-E011,"2,100.00",DEXTERS PRIVATE HIRE.
Children and Young Peoples Services,Head of Education and Skills,Transport,230006,Contract Hire,04/07/2018,3458721-N220/JUNE/18,849.60,EMMA RAMSHAW T/A EMMA`S CABS.
Children and Young Peoples Services,Head of Education and Skills,Transport,230008,Contract Hire,04/07/2018,3458756-064,"1,400.00",GMC TAXIS NORTH EAST.
Adult and Health Services,Head of Adults,Transport,230005,Contract Hire,04/07/2018,3458807-DM150-JUNE,700.00,JMR TAXIS.
Adult and Health Services,Head of Adults,Transport,230005,Contract Hire,04/07/2018,3458809-48-SED102,600.00,JOHN CRAKE & SONS MINI BUSES LTD.
Children and Young Peoples Services,Head of Education and Skills,Transport,230008,Contract Hire,04/07/2018,3458809-51-E047JUN18,"2,600.00",JOHN CRAKE & SONS MINI BUSES LTD.
Adult and Health Services,Head of Adults,Transport,230005,Contract Hire,04/07/2018,3458810-01062018,850.00,JOHN HUBBLE T/A HUBB`S TAXIS.
Children and Young Peoples Services,Head of Education and Skills,Transport,230008,Contract Hire,04/07/2018,3458822-010618,"2,025.00",KEVIN EDMUNDSON.
Children and Young Peoples Services,Head of Education and Skills,Transport,230008,Contract Hire,04/07/2018,3458829-1162,"1,400.00",LD TAXIS.
Children and Young Peoples Services,Head of Education and Skills,Transport,230006,Contract Hire,04/07/2018,3458829-1165,"1,408.00",LD TAXIS.
Regeneration and Local Services,Direct Services,Transport,230005,Contract Hire,04/07/2018,3458832-4455221,"1,800.00",LEEDS COMMERCIAL LTD.
Children and Young Peoples Services,Head of Education and Skills,Transport,230006,Contract Hire,04/07/2018,3458836-3810,"1,962.00",LINCAB TAXIS.
Children and Young Peoples Services,Head of Education and Skills,Transport,230007,Contract Hire,04/07/2018,3458836-3811,"1,190.00",LINCAB TAXIS.
Children and Young Peoples Services,Head of Education and Skills,Transport,230007,Contract Hire,04/07/2018,3458836-3814,640.00,LINCAB TAXIS.
Children and Young Peoples Services,Head of Education and Skills,Transport,230008,Contract Hire,04/07/2018,3458836-3815,"2,072.60",LINCAB TAXIS.
Dedicated Schools Grant,DSG High Needs Block,Transport,230010,Contract Hire,04/07/2018,3458836-3808,"2,297.10",LINCAB TAXIS.
Children and Young Peoples Services,Head of Education and Skills,Transport,230008,Contract Hire,04/07/2018,3458844-35,"1,800.00",LORRAINES TAXIS.
Children and Young Peoples Services,Head of Education and Skills,Transport,230008,Contract Hire,04/07/2018,3458848-20,"1,391.20",M&C`S CABS LTD.
Children and Young Peoples Services,Head of Education and Skills,Transport,230008,Contract Hire,04/07/2018,3458851-42,"1,600.00",MALCOLM CARR T/A CARLY CABS.
Children and Young Peoples Services,Head of Education and Skills,Transport,230012,Contract Hire,04/07/2018,3458852-000024,"2,040.00",MARK HUSBAND T/A TEAK`S TAXIS.
Children and Young Peoples Services,Head of Education and Skills,Transport,230006,Contract Hire,04/07/2018,3458853-260618,650.00,MARK MUSGROVE T/A MARKS TAXIS.
Children and Young Peoples Services,Head of Education and Skills,Transport,230008,Contract Hire,04/07/2018,3458854-21,"1,450.00",MARK SUMMERS T/A MARK`S TAXI.
Children and Young Peoples Services,Head of Education and Skills,Transport,230008,Contract Hire,04/07/2018,3458855-0002,"1,380.00",MARK WATSON T/A MARK`S TAXIS.
Children and Young Peoples Services,Head of Education and Skills,Transport,230006,Contract Hire,04/07/2018,3458864-0145,768.00,MICKS TAXIS - MURTON.
Regeneration and Local Services,Direct Services,Transport,230005,Contract Hire,04/07/2018,3458866-415230,708.40,MINSTER SELF DRIVE.
Children and Young Peoples Services,Head of Education and Skills,Transport,230012,Contract Hire,04/07/2018,3458870-KDC-010618,"2,185.00",MJ TIMNEY T/A KDC & C&M TAXIS.
Children and Young Peoples Services,Head of Education and Skills,Transport,230009,Contract Hire,04/07/2018,3458873-AT155,600.00,MR AG WILSON T/A ALAN`S TAXIS (DURHAM CITY).
Children and Young Peoples Services,Head of Education and Skills,Transport,230008,Contract Hire,04/07/2018,3458874-10-W028,"1,200.00",MR BW YOUNG T/A ESH TAXIS.
Children and Young Peoples Services,Head of Education and Skills,Transport,230006,Contract Hire,04/07/2018,3458877-OC/06/18,"1,042.20",MR J AGAR T/A PARK TAXIS.
Children and Young Peoples Services,Head of Education and Skills,Transport,230008,Contract Hire,04/07/2018,3458877-SFB/06/18,"1,680.00",MR J AGAR T/A PARK TAXIS.
Children and Young Peoples Services,Head of Education and Skills,Transport,230006,Contract Hire,04/07/2018,3458878-87,744.00,MR JOHN ALLINSON T/A AALPHA TAXIS.
Children and Young Peoples Services,Head of Education and Skills,Transport,230007,Contract Hire,04/07/2018,3458878-88,"1,020.00",MR JOHN ALLINSON T/A AALPHA TAXIS.
Children and Young Peoples Services,Head of Education and Skills,Transport,230008,Contract Hire,04/07/2018,3458880-2,"1,300.00",MR M FARREY T/A TK TAXIS.
Children and Young Peoples Services,Head of Education and Skills,Transport,230008,Contract Hire,04/07/2018,3458886-7B-N031,"1,520.00",MR RAYMOND RENWICK T/A RAY`S TAXIS & MINIBUSES.
Children and Young Peoples Services,Head of Education and Skills,Transport,230008,Contract Hire,04/07/2018,3458886-8B-JUNE,"1,600.00",MR RAYMOND RENWICK T/A RAY`S TAXIS & MINIBUSES.
Children and Young Peoples Services,Head of Education and Skills,Transport,230007,Contract Hire,04/07/2018,3458887-601/18,"1,200.00",MR REES WILKINSON T/A B & L MINIBUS HIRE.
Children and Young Peoples Services,Head of Education and Skills,Transport,230007,Contract Hire,04/07/2018,3458905-1-JUNE18,810.00,NC TAXI`S.
Children and Young Peoples Services,Head of Education and Skills,Transport,230007,Contract Hire,04/07/2018,3458905-2-3313,600.00,NC TAXI`S.
Regeneration and Local Services,Direct Services,Transport,230005,Contract Hire,04/07/2018,3458906-120263,"3,000.00",ND BROWN LTD.
Regeneration and Local Services,Direct Services,Transport,230005,Contract Hire,04/07/2018,3458906-120264,"1,660.00",ND BROWN LTD.
Regeneration and Local Services,Direct Services,Transport,230005,Contract Hire,04/07/2018,3458906-120265,700.00,ND BROWN LTD.
Children and Young Peoples Services,Head of Education and Skills,Transport,230008,Contract Hire,04/07/2018,3458908-043,"1,200.00",NEIL PASSMOOR T/A NEIL`S TAXI.
Children and Young Peoples Services,Head of Education and Skills,Transport,230008,Contract Hire,04/07/2018,3458908-43,"1,800.00",NEIL PASSMOOR T/A NEIL`S TAXI.
Dedicated Schools Grant,DSG High Needs Block,Transport,230010,Contract Hire,04/07/2018,3458910-235,"3,045.00",NEVILLE FORBES T/A FORBES TAXIS.
Adult and Health Services,Head of Adults,Transport,230005,Contract Hire,04/07/2018,3458946-0659,966.00,PETER`S PRIVATE HIRE/PETER BEST.
Children and Young Peoples Services,Head of Education and Skills,Transport,230008,Contract Hire,04/07/2018,3458946-0653,908.50,PETER`S PRIVATE HIRE/PETER BEST.
Children and Young Peoples Services,Head of Education and Skills,Transport,230006,Contract Hire,04/07/2018,3458946-0654,"1,440.00",PETER`S PRIVATE HIRE/PETER BEST.
Children and Young Peoples Services,Head of Education and Skills,Transport,230008,Contract Hire,04/07/2018,3458946-0655,840.00,PETER`S PRIVATE HIRE/PETER BEST.
Children and Young Peoples Services,Head of Education and Skills,Transport,230008,Contract Hire,04/07/2018,3458946-0656,"1,440.00",PETER`S PRIVATE HIRE/PETER BEST.
Children and Young Peoples Services,Head of Education and Skills,Transport,230008,Contract Hire,04/07/2018,3458946-0657,"2,070.00",PETER`S PRIVATE HIRE/PETER BEST.
Children and Young Peoples Services,Head of Education and Skills,Transport,230008,Contract Hire,04/07/2018,3458946-0658,"1,680.00",PETER`S PRIVATE HIRE/PETER BEST.
Children and Young Peoples Services,Head of Education and Skills,Transport,230008,Contract Hire,04/07/2018,3458943-584,"1,140.00",PETERLEE EXECUTIVE CARS.
Children and Young Peoples Services,Head of Education and Skills,Transport,230008,Contract Hire,04/07/2018,3458943-586,608.00,PETERLEE EXECUTIVE CARS.
Dedicated Schools Grant,DSG High Needs Block,Transport,230010,Contract Hire,04/07/2018,3458943-585,"1,995.00",PETERLEE EXECUTIVE CARS.
Children and Young Peoples Services,Head of Education and Skills,Transport,230008,Contract Hire,04/07/2018,3458953-1286,"1,900.00",PODA TAXIS LTD.
Children and Young Peoples Services,Head of Education and Skills,Transport,230008,Contract Hire,04/07/2018,3458953-1287,"1,200.00",PODA TAXIS LTD.
Children and Young Peoples Services,Head of Education and Skills,Transport,230012,Contract Hire,04/07/2018,3458953-1288,"1,240.00",PODA TAXIS LTD.
Children and Young Peoples Services,Head of Education and Skills,Transport,230008,Contract Hire,04/07/2018,3458971-010,986.00,RAYMOND CHURNSIDE T/A S & L TAXI.
Children and Young Peoples Services,Head of Education and Skills,Transport,230008,Contract Hire,04/07/2018,3458972-010A,"1,690.00",RAYNERS COACHES.
Children and Young Peoples Services,Head of Education and Skills,Transport,230007,Contract Hire,04/07/2018,3458972-010A-4005,"4,040.00",RAYNERS COACHES.
Children and Young Peoples Services,Head of Education and Skills,Transport,230007,Contract Hire,04/07/2018,3458972-63A,"1,280.00",RAYNERS COACHES.
Children and Young Peoples Services,Head of Education and Skills,Transport,230007,Contract Hire,04/07/2018,3458972-63C,"2,320.00",RAYNERS COACHES.
Children and Young Peoples Services,Head of Education and Skills,Transport,230007,Contract Hire,04/07/2018,3458976-039,"1,045.00",REDZ PRIVATE HIRE.
Regeneration and Local Services,Direct Services,Transport,230005,Contract Hire,04/07/2018,3458987-IV418753,"1,380.00",RIVERSIDE TRUCK RENTAL LTD (RTR).
Children and Young Peoples Services,Head of Education and Skills,Transport,230008,Contract Hire,04/07/2018,3458989-1534,"2,400.00",ROAD RUNNERS (NE) LTD.
Children and Young Peoples Services,Head of Education and Skills,Transport,230006,Contract Hire,04/07/2018,3458989-1539,792.00,ROAD RUNNERS (NE) LTD.
Children and Young Peoples Services,Head of Education and Skills,Transport,230009,Contract Hire,04/07/2018,3458989-1548,576.00,ROAD RUNNERS (NE) LTD.
Children and Young Peoples Services,Head of Education and Skills,Transport,230007,Contract Hire,04/07/2018,3458989-1553,900.00,ROAD RUNNERS (NE) LTD.
Dedicated Schools Grant,DSG High Needs Block,Transport,230010,Contract Hire,04/07/2018,3458989-1545,"2,340.00",ROAD RUNNERS (NE) LTD.
Dedicated Schools Grant,DSG High Needs Block,Transport,230010,Contract Hire,04/07/2018,3458989-1546,"1,440.00",ROAD RUNNERS (NE) LTD.
Children and Young Peoples Services,Head of Education and Skills,Transport,230008,Contract Hire,04/07/2018,3458992-0052,"1,900.00",RONS TAXI (CHESTER LE ST).
Adult and Health Services,Head of Adults,Transport,230005,Contract Hire,04/07/2018,3458993-34,918.00,ROUTE 1.
Children and Young Peoples Services,Head of Education and Skills,Transport,230012,Contract Hire,04/07/2018,3459018-911,"1,100.00",SIMONS TAXIS.
Children and Young Peoples Services,Head of Education and Skills,Transport,230016,Contract Hire,04/07/2018,3459018-912,"1,080.00",SIMONS TAXIS.
Children and Young Peoples Services,Head of Education and Skills,Transport,230008,Contract Hire,04/07/2018,3459018-913,"2,180.00",SIMONS TAXIS.
Children and Young Peoples Services,Head of Education and Skills,Transport,230003,Contract Hire,04/07/2018,3459030-STNE0850,"1,380.00",STYLE TRAVEL NORTH EAST.
Children and Young Peoples Services,Head of Education and Skills,Transport,230003,Contract Hire,04/07/2018,3459030-STNE0851,"1,580.00",STYLE TRAVEL NORTH EAST.
Dedicated Schools Grant,DSG High Needs Block,Transport,230010,Contract Hire,04/07/2018,3459033-B022-JUNE,"1,194.00",SUSAN`S CARS.
Children and Young Peoples Services,Head of Education and Skills,Transport,230008,Contract Hire,04/07/2018,3459034-10,920.00,SWIFT TAXIS.
Regeneration and Local Services,Direct Services,Transport,230005,Contract Hire,04/07/2018,3459056-18352,975.00,TRASH UK LTD.
Regeneration and Local Services,Direct Services,Transport,230005,Contract Hire,04/07/2018,3459056-18359,"2,250.00",TRASH UK LTD.
Regeneration and Local Services,Direct Services,Transport,230005,Contract Hire,04/07/2018,3459056-18389,975.00,TRASH UK LTD.
Regeneration and Local Services,Direct Services,Transport,230005,Contract Hire,04/07/2018,3459056-18390,750.00,TRASH UK LTD.
Regeneration and Local Services,Direct Services,Transport,230005,Contract Hire,04/07/2018,3459056-18391,750.00,TRASH UK LTD.
Children and Young Peoples Services,Head of Education and Skills,Transport,230008,Contract Hire,04/07/2018,3459064-10-W033,"1,521.00",TW TINKLER T/A TT TAXIS.
Regeneration and Local Services,Direct Services,Transport,230005,Contract Hire,04/07/2018,3459081-76621,900.00,WARREN ACCESS LTD.
Regeneration and Local Services,Direct Services,Transport,210057,Repair and Maintenance of Vehicles,04/07/2018,3458634-PSI0023012,742.62,BRITISH STEEL LTD.
Regeneration and Local Services,Direct Services,Transport,210057,Repair and Maintenance of Vehicles,04/07/2018,3458635-INV116761,595.00,BUS & TRUCK PARTS (NORTH EAST) LTD.
Regeneration and Local Services,Direct Services,Transport,210057,Repair and Maintenance of Vehicles,04/07/2018,3458642-225208,"1,598.01",CARRS BILLINGTON AGRICULTURE.
Regeneration and Local Services,Direct Services,Transport,210057,Repair and Maintenance of Vehicles,04/07/2018,3458745-111842,796.00,GATESHEAD BEARINGS LTD.
Regeneration and Local Services,Direct Services,Transport,210057,Repair and Maintenance of Vehicles,04/07/2018,3458760-146262,"1,042.58",GREENLAY (GRASS MACHINERY) LTD.
Regeneration and Local Services,Direct Services,Transport,210057,Repair and Maintenance of Vehicles,04/07/2018,3459059-901367,"10,703.93",TRIPLE POINT LEASING LTD.
Regeneration and Local Services,Direct Services,Transport,210057,Repair and Maintenance of Vehicles,04/07/2018,3459091-116910,711.40,ZOELLER WASTE SYSTEMS LTD.
Resources,Digital and Customer Services,Vehicles Equipment Furniture and Fittings,912701,Computer equipment,04/07/2018,3458695-7402447735,"105,664.00",DELL COMPUTER CORPORATION LTD.
Regeneration and Local Services,Technical Services,Construction work A908,908105,Construction work,05/07/2018,3459278-21601,571.50,JACK COUPE & SONS LTD T/A COUPE LINE.
Regeneration and Local Services,Culture & Sport,Construction work A908,908105,Construction work,05/07/2018,3459419-INS-REPLACE-DIMMER-SYSTEM,"55,189.71",STAGE ELECTRICS.
Regeneration and Local Services,Direct Services,Fees,901002,Professional fees 901002,05/07/2018,3459122-18021306,"5,569.89",ATKINS GLOBAL.
Regeneration and Local Services,Transport and Contracted Services,Fees,901002,Professional fees 901002,05/07/2018,3459404-NEW9320A,"6,626.75",SANDERSON WEATHERALL LLP.
Regeneration and Local Services,Culture & Sport,Premises,145023,Cleaning and Domestic Supplies,05/07/2018,3459241-06/732493,689.36,GREENHAM TRADING LTD.
Regeneration and Local Services,Direct Services,Premises,145023,Cleaning and Domestic Supplies,05/07/2018,3459241-06/732936,"1,468.00",GREENHAM TRADING LTD.
Children and Young Peoples Services,"Head of Early Help, Inclusion and Vulnerable Children",Premises,108251,Service Repairs and Maintenance,05/07/2018,3459099-38504703-61,633.00,ADT FIRE & SECURITY PLC.
Regeneration and Local Services,Direct Services,Premises,108125,Service Repairs and Maintenance,05/07/2018,3459393-RSIN0263375,"4,989.60",RIGBY TAYLOR LTD.
Regeneration and Local Services,Technical Services,Stock A926,926004,Stock,05/07/2018,3459164-400010546,"14,736.60",CLEVELAND POTASH LTD T/A ICL FERTILIZERS.
Regeneration and Local Services,Technical Services,Stock A926,926900,Stock in hand-Inventory system,05/07/2018,3459143-16654,840.00,BOXCLEVER TOTAL WASTE MANAGEMENT LTD.
Resources,Digital and Customer Services,Stock A926,926900,Stock in hand-Inventory system,05/07/2018,3459188-7402448268,"4,156.90",DELL COMPUTER CORPORATION LTD.
Resources,Digital and Customer Services,Stock A926,926900,Stock in hand-Inventory system,05/07/2018,3459245-INV0171005,"1,470.00",GV MULTIMEDIA LTD.
Regeneration and Local Services,Direct Services,Stock A926,926900,Stock in hand-Inventory system,05/07/2018,3459303-SI02-0188019,"1,373.60",KILLGERM CHEMICALS LTD.
Regeneration and Local Services,Spatial Policy Planning Assets & Environment,Supplies and Services,336005,Advertising E336,05/07/2018,3459214-SINV00172213,"1,800.00",EXTERION MEDIA (UK) LTD.
Regeneration and Local Services,Economic Development and Housing,Supplies and Services,336005,Advertising E336,05/07/2018,3459349-279,"2,500.00",NEWSMAKER PR & VIDEO PRODUCTION LTD.
Children and Young Peoples Services,Head of Education and Skills,Supplies and Services,352001,Conference Expenses,05/07/2018,3459221-FMJ/DCC,"3,600.00",FIONA MALYAN JACQUES.
Children and Young Peoples Services,"Head of Early Help, Inclusion and Vulnerable Children",Supplies and Services,352001,Conference Expenses,05/07/2018,3459274-0072018,"3,000.00",INVESTING IN CHILDREN CIC.
Regeneration and Local Services,Economic Development and Housing,Supplies and Services,352001,Conference Expenses,05/07/2018,3459456-INV00081133,"2,310.00",VISTAGE INTERNATIONAL (UK) LTD.
Regeneration and Local Services,Technical Services,Supplies and Services,304358,Equipment and Materials,05/07/2018,3459117-30139,"2,587.50",AQUAJET DRAIN CLEANING LTD.
Regeneration and Local Services,Direct Services,Supplies and Services,304259,Equipment and Materials,05/07/2018,3459149-CN19672369,"1,043.64",CANNON HYGIENE LTD.
Regeneration and Local Services,Technical Services,Supplies and Services,304358,Equipment and Materials,05/07/2018,3459155-1662,"9,781.96",CG SIMPSON & SON.
Regeneration and Local Services,Direct Services,Supplies and Services,304221,Equipment and Materials,05/07/2018,3459206-059-226205,"1,008.00",EDMUNDSON ELECTRICAL LTD.
Regeneration and Local Services,Direct Services,Supplies and Services,304221,Equipment and Materials,05/07/2018,3459223-1806-046933,676.44,FLAME HEATING SPARES LTD.
Regeneration and Local Services,Technical Services,Supplies and Services,304358,Equipment and Materials,05/07/2018,3459232-24983,714.00,GA SMITH LTD (PLANT HIRE).
Regeneration and Local Services,Direct Services,Supplies and Services,304259,Equipment and Materials,05/07/2018,3459242-146053,509.75,GREENLAY (GRASS MACHINERY) LTD.
Regeneration and Local Services,Technical Services,Supplies and Services,304358,Equipment and Materials,05/07/2018,3459254-56430,"1,440.00",HF COLTON PLANT HIRE LTD.*
Regeneration and Local Services,Technical Services,Supplies and Services,304358,Equipment and Materials,05/07/2018,3459254-56564,"1,800.00",HF COLTON PLANT HIRE LTD.*
Regeneration and Local Services,Technical Services,Supplies and Services,304221,Equipment and Materials,05/07/2018,3459270-636568,"1,004.00",INSTARMAC GROUP PLC.
Regeneration and Local Services,Technical Services,Supplies and Services,304358,Equipment and Materials,05/07/2018,3459289-28144,851.00,JOHN R BUTTERFIELD LTD.
Regeneration and Local Services,Technical Services,Supplies and Services,304358,Equipment and Materials,05/07/2018,3459289-28201,851.00,JOHN R BUTTERFIELD LTD.
Regeneration and Local Services,Technical Services,Supplies and Services,304358,Equipment and Materials,05/07/2018,3459289-28240,851.00,JOHN R BUTTERFIELD LTD.
Regeneration and Local Services,Technical Services,Supplies and Services,304358,Equipment and Materials,05/07/2018,3459289-28275,678.50,JOHN R BUTTERFIELD LTD.
Regeneration and Local Services,Technical Services,Supplies and Services,304358,Equipment and Materials,05/07/2018,3459289-28305,"1,122.00",JOHN R BUTTERFIELD LTD.
Regeneration and Local Services,Technical Services,Supplies and Services,304358,Equipment and Materials,05/07/2018,3459289-28307,851.00,JOHN R BUTTERFIELD LTD.
Regeneration and Local Services,Technical Services,Supplies and Services,304358,Equipment and Materials,05/07/2018,3459289-28334,"1,047.00",JOHN R BUTTERFIELD LTD.
Regeneration and Local Services,Technical Services,Supplies and Services,304358,Equipment and Materials,05/07/2018,3459289-28336,"1,076.00",JOHN R BUTTERFIELD LTD.
Regeneration and Local Services,Technical Services,Supplies and Services,304358,Equipment and Materials,05/07/2018,3459289-28369,678.50,JOHN R BUTTERFIELD LTD.
Regeneration and Local Services,Technical Services,Supplies and Services,304358,Equipment and Materials,05/07/2018,3459289-28395,916.00,JOHN R BUTTERFIELD LTD.
Regeneration and Local Services,Technical Services,Supplies and Services,304358,Equipment and Materials,05/07/2018,3459289-28396,956.00,JOHN R BUTTERFIELD LTD.
Regeneration and Local Services,Technical Services,Supplies and Services,304358,Equipment and Materials,05/07/2018,3459289-28399,851.00,JOHN R BUTTERFIELD LTD.
Regeneration and Local Services,Direct Services,Supplies and Services,304358,Equipment and Materials,05/07/2018,3459289-28403,"1,027.50",JOHN R BUTTERFIELD LTD.
Regeneration and Local Services,Technical Services,Supplies and Services,304358,Equipment and Materials,05/07/2018,3459289-28405,"1,224.50",JOHN R BUTTERFIELD LTD.
Regeneration and Local Services,Technical Services,Supplies and Services,304358,Equipment and Materials,05/07/2018,3459289-28427,"1,354.50",JOHN R BUTTERFIELD LTD.
Regeneration and Local Services,Technical Services,Supplies and Services,304358,Equipment and Materials,05/07/2018,3459289-28428,"1,184.00",JOHN R BUTTERFIELD LTD.
Regeneration and Local Services,Technical Services,Supplies and Services,304358,Equipment and Materials,05/07/2018,3459289-28432,858.00,JOHN R BUTTERFIELD LTD.
Regeneration and Local Services,Technical Services,Supplies and Services,304358,Equipment and Materials,05/07/2018,3459289-28436,"1,091.00",JOHN R BUTTERFIELD LTD.
Regeneration and Local Services,Technical Services,Supplies and Services,304358,Equipment and Materials,05/07/2018,3459289-28437,"1,352.00",JOHN R BUTTERFIELD LTD.
Regeneration and Local Services,Technical Services,Supplies and Services,304358,Equipment and Materials,05/07/2018,3459289-28439,705.00,JOHN R BUTTERFIELD LTD.
Regeneration and Local Services,Technical Services,Supplies and Services,304358,Equipment and Materials,05/07/2018,3459301-2255,"1,139.00",KEVIN SNOWDON GROUNDWORKS LTD.
Regeneration and Local Services,Technical Services,Supplies and Services,304358,Equipment and Materials,05/07/2018,3459301-2256,"1,168.00",KEVIN SNOWDON GROUNDWORKS LTD.
Regeneration and Local Services,Technical Services,Supplies and Services,304358,Equipment and Materials,05/07/2018,3459301-2257,984.00,KEVIN SNOWDON GROUNDWORKS LTD.
Regeneration and Local Services,Technical Services,Supplies and Services,304358,Equipment and Materials,05/07/2018,3459301-2264,777.00,KEVIN SNOWDON GROUNDWORKS LTD.
Regeneration and Local Services,Technical Services,Supplies and Services,304358,Equipment and Materials,05/07/2018,3459301-2265,926.50,KEVIN SNOWDON GROUNDWORKS LTD.
Regeneration and Local Services,Technical Services,Supplies and Services,304358,Equipment and Materials,05/07/2018,3459301-2272,"1,416.00",KEVIN SNOWDON GROUNDWORKS LTD.
Regeneration and Local Services,Technical Services,Supplies and Services,304358,Equipment and Materials,05/07/2018,3459301-2274,"1,139.00",KEVIN SNOWDON GROUNDWORKS LTD.
Regeneration and Local Services,Technical Services,Supplies and Services,304358,Equipment and Materials,05/07/2018,3459305-2007,"1,041.00",L & G PLANT HIRE & SALES LTD.
Regeneration and Local Services,Technical Services,Supplies and Services,304358,Equipment and Materials,05/07/2018,3459321-77A,"5,190.00",M & E & MR WALTON.
Regeneration and Local Services,Technical Services,Supplies and Services,304221,Equipment and Materials,05/07/2018,3459343-0000069189,629.52,NAL LTD.
Regeneration and Local Services,Technical Services,Supplies and Services,304358,Equipment and Materials,05/07/2018,3459346-NC/032/BW,"2,035.00",NEDCO CONTRACTS (NE) LTD.
Regeneration and Local Services,Technical Services,Supplies and Services,304358,Equipment and Materials,05/07/2018,3459346-NC/033/BW,"2,035.00",NEDCO CONTRACTS (NE) LTD.
Dedicated Schools Grant,DSG High Needs Block,Supplies and Services,304259,Equipment and Materials,05/07/2018,3459377-119DURHAMINV1718,557.00,POSITIVE EYE LTD.
Regeneration and Local Services,Technical Services,Supplies and Services,304358,Equipment and Materials,05/07/2018,3459400-1613,"1,042.50",S & R LANDSCAPES.
Regeneration and Local Services,Technical Services,Supplies and Services,304358,Equipment and Materials,05/07/2018,3459400-1616,"1,242.50",S & R LANDSCAPES.
Regeneration and Local Services,Technical Services,Supplies and Services,304221,Equipment and Materials,05/07/2018,3459416-246447,577.75,SIGNPOST SOLUTIONS LTD.
Regeneration and Local Services,Technical Services,Supplies and Services,304221,Equipment and Materials,05/07/2018,3459447-188006,892.16,TYNEDALE ROADSTONE LTD.
Regeneration and Local Services,Technical Services,Supplies and Services,304221,Equipment and Materials,05/07/2018,3459447-188007,733.76,TYNEDALE ROADSTONE LTD.
Regeneration and Local Services,Technical Services,Supplies and Services,304221,Equipment and Materials,05/07/2018,3459447-188008,"1,483.55",TYNEDALE ROADSTONE LTD.
Regeneration and Local Services,Technical Services,Supplies and Services,304221,Equipment and Materials,05/07/2018,3459447-188009,631.64,TYNEDALE ROADSTONE LTD.
Regeneration and Local Services,Technical Services,Supplies and Services,304221,Equipment and Materials,05/07/2018,3459447-188010,749.90,TYNEDALE ROADSTONE LTD.
Regeneration and Local Services,Technical Services,Supplies and Services,304221,Equipment and Materials,05/07/2018,3459447-188011,939.21,TYNEDALE ROADSTONE LTD.
Regeneration and Local Services,Technical Services,Supplies and Services,304221,Equipment and Materials,05/07/2018,3459447-188012,669.44,TYNEDALE ROADSTONE LTD.
Regeneration and Local Services,Technical Services,Supplies and Services,304358,Equipment and Materials,05/07/2018,3459465-N101265,"4,647.78",WILLIAMSON CONSTRUCTION EQUIPMENT LTD.
Regeneration and Local Services,Direct Services,Supplies and Services,304221,Equipment and Materials,05/07/2018,3459466-52649689,744.73,WOLSELEY UK LTD.
Regeneration and Local Services,Technical Services,Supplies and Services,304358,Equipment and Materials,05/07/2018,3459471-7079,724.62,YOULL CONSTRUCTION LTD.
Regeneration and Local Services,Technical Services,Supplies and Services,304358,Equipment and Materials,05/07/2018,3459471-7103,"1,205.88",YOULL CONSTRUCTION LTD.
Regeneration and Local Services,Technical Services,Supplies and Services,304358,Equipment and Materials,05/07/2018,3459471-7104,"1,512.00",YOULL CONSTRUCTION LTD.
Regeneration and Local Services,Technical Services,Supplies and Services,304358,Equipment and Materials,05/07/2018,3459471-7123,770.63,YOULL CONSTRUCTION LTD.
Regeneration and Local Services,Technical Services,Supplies and Services,304358,Equipment and Materials,05/07/2018,3459471-7131,735.00,YOULL CONSTRUCTION LTD.
Regeneration and Local Services,Technical Services,Supplies and Services,304358,Equipment and Materials,05/07/2018,3459471-7162,770.63,YOULL CONSTRUCTION LTD.
Regeneration and Local Services,Technical Services,Supplies and Services,304358,Equipment and Materials,05/07/2018,3459471-7166,"1,512.00",YOULL CONSTRUCTION LTD.
Adult and Health Services,Head of Adults,Supplies and Services,308011,Furniture,05/07/2018,3459210-45BURNHOPESIDEAVE,"1,136.39",ELMOLINE LTD.
Transformation and Partnerships,Partnerships & Community Engagement Div.,Supplies and Services,384086,Miscellaneous Expenses,05/07/2018,3459142-VOUCHERDUNS04-18,990.00,BOWBURN ART GROUP.
Regeneration and Local Services,Direct Services,Supplies and Services,384974,Miscellaneous Expenses,05/07/2018,3459201-NEI-EXP-06-2018-020,"40,000.00",DRIVER & VEHICLE STANDARDS AGENCY (DVSA).
Children and Young Peoples Services,Head of Education and Skills,Supplies and Services,384199,Miscellaneous Expenses,05/07/2018,3459363-INV-0378,"44,103.59",OPTIMUM SKILLS LTD.
Resources,Legal & Democratic Services,Supplies and Services,340001,Postages E340,05/07/2018,3459398-9056700548,681.48,ROYAL MAIL GROUP PLC.
Regeneration and Local Services,Culture & Sport,Supplies and Services,324117,Provisions E324,05/07/2018,3459332-904532508,"1,458.62",MOLSON COORS BREWING COMPANY (UK) LTD.
Regeneration and Local Services,Culture & Sport,Supplies and Services,324001,Provisions E324,05/07/2018,3459332-904589707,"1,366.39",MOLSON COORS BREWING COMPANY (UK) LTD.
Regeneration and Local Services,Culture & Sport,Supplies and Services,338047,Services,05/07/2018,3459107-260618GTD,740.00,ALISIENNE PETRI (DEPUTY STAGE MANAGER).
Regeneration and Local Services,Spatial Policy Planning Assets & Environment,Supplies and Services,338066,Services,05/07/2018,3459129-RED-07-2018-006,"5,540.15",BEN BATES.
Resources,Legal & Democratic Services,Supplies and Services,338025,Services,05/07/2018,3459166-S44954-01225,810.00,CO-OPERATIVE FUNERAL CARE.
Adult and Health Services,Head of Adults,Supplies and Services,338066,Services,05/07/2018,3459196-2306201804072018,"2,131.48",DR HEMANTH NAGARATHNAM.
Adult and Health Services,Head of Adults,Supplies and Services,338066,Services,05/07/2018,3459197-2306201804072018,"1,423.85",DR IMRAN MUNIR.
Adult and Health Services,Head of Adults,Supplies and Services,338066,Services,05/07/2018,3459200-2306201804072018,554.57,DR STEPHEN WILKINSON.
Regeneration and Local Services,Culture & Sport,Supplies and Services,338047,Services,05/07/2018,3459247-00210,"1,017.00",HANNAH SIBAI (THEATRE DESIGNER).
Adult and Health Services,Public Health,Supplies and Services,338066,Services,05/07/2018,3459295-300,"2,507.50",KATHERINE HIRONO (TRAINER).
Regeneration and Local Services,Spatial Policy Planning Assets & Environment,Supplies and Services,338066,Services,05/07/2018,3459297-RED-07-2018-018,"1,781.15",KEITH REED (FARMER).
Children and Young Peoples Services,Head of Education and Skills,Supplies and Services,338094,Services,05/07/2018,3459350-1032,"1,080.00",NEWTON AYCLIFFE YOUTH & COMMUNITY CENTRE.
Regeneration and Local Services,Spatial Policy Planning Assets & Environment,Supplies and Services,338066,Services,05/07/2018,3459352-RED-07-2018-016,"3,389.45",NICK HOWARD (FARMER).
Children and Young Peoples Services,Childrens Services Operational Support,Supplies and Services,338099,Services,05/07/2018,3459356-20520931,"15,000.00",NORTH TYNESIDE COUNCIL.
Adult and Health Services,Head of Adults,Supplies and Services,338066,Services,05/07/2018,3459382-2306201804072018,709.54,PSYCH ONE LTD.
Regeneration and Local Services,Spatial Policy Planning Assets & Environment,Supplies and Services,338066,Services,05/07/2018,3459405-RED-07-2018-017,"1,243.50",SARAH LAMBERT (FARMER).
Regeneration and Local Services,Technical Services,Third Party Payments 4THIRD,460224,Contract Payments,05/07/2018,3459410-19362,"194,842.99",SEYMOUR (CIVIL ENGINEERING CONTRACTORS) LTD.
Dedicated Schools Grant,DSG High Needs Block,Third Party Payments 4THIRD,440080,Other third party payments E440,05/07/2018,3459189-60000997,"36,662.00",DERWENTSIDE COLLEGE.
Dedicated Schools Grant,DSG High Needs Block,Third Party Payments 4THIRD,440080,Other third party payments E440,05/07/2018,3459401-CHI035552,"13,000.00",S/C 200000 CAMBIAN CHILDCARE LTD.
Children and Young Peoples Services,Head of Childrens Social Care,Third Party Payments 4THIRD,440038,Other third party payments E440,05/07/2018,3459426-002-21/5/18,883.76,STONHAM HOUSING ASSOCIATION LTD.
Adult and Health Services,Head of Adults,Third Party Payments 4THIRD,478151,Purchase of Care,05/07/2018,3459098-525,"2,093.80",ACCEPT CARE LTD.
Adult and Health Services,Head of Adults,Third Party Payments 4THIRD,478151,Purchase of Care,05/07/2018,3459098-526,"2,409.60",ACCEPT CARE LTD.
Adult and Health Services,Head of Adults,Third Party Payments 4THIRD,470101,Purchase of Care,05/07/2018,3459229-CAS-07-2018-056,"15,564.98",FSHC ENGLAND LTD (FOUR SEASONS HEALTHCARE).
Adult and Health Services,Head of Adults,Third Party Payments 4THIRD,470101,Purchase of Care,05/07/2018,3459229-CAS-07-2018-057,"1,913.43",FSHC ENGLAND LTD (FOUR SEASONS HEALTHCARE).
Adult and Health Services,Head of Adults,Third Party Payments 4THIRD,478151,Purchase of Care,05/07/2018,3459256-HCL09,"2,576.32",HIGHLEA CARE LTD.
Adult and Health Services,Head of Adults,Third Party Payments 4THIRD,470101,Purchase of Care,05/07/2018,3459296-0002A,"24,999.95",RENAL HEALTH LTD.
Regeneration and Local Services,Technical Services,Third Party Payments 4THIRD,430100,Rendered by Private Contractors,05/07/2018,3459125-IN33979,"4,327.96",BALFOUR BEATTY LIVING PLACES LTD.*
Regeneration and Local Services,Technical Services,Third Party Payments 4THIRD,430100,Rendered by Private Contractors,05/07/2018,3459125-IN33980,"8,927.91",BALFOUR BEATTY LIVING PLACES LTD.*
Regeneration and Local Services,Technical Services,Third Party Payments 4THIRD,430100,Rendered by Private Contractors,05/07/2018,3459125-IN33981,"1,664.88",BALFOUR BEATTY LIVING PLACES LTD.*
Regeneration and Local Services,Technical Services,Third Party Payments 4THIRD,430100,Rendered by Private Contractors,05/07/2018,3459125-IN33982,"3,450.73",BALFOUR BEATTY LIVING PLACES LTD.*
Regeneration and Local Services,Direct Services,Third Party Payments 4THIRD,430100,Rendered by Private Contractors,05/07/2018,3459152-4320,"1,081.00",CATHEDRAL LOCK & SAFE SERVICES LTD.
Regeneration and Local Services,Technical Services,Third Party Payments 4THIRD,430100,Rendered by Private Contractors,05/07/2018,3459235-102102399,930.00,GATESHEAD COUNCIL.
Regeneration and Local Services,Direct Services,Third Party Payments 4THIRD,430100,Rendered by Private Contractors,05/07/2018,3459279-6495,"16,378.51",JAMES INGLEFORD SCAFFOLDING LTD.
Regeneration and Local Services,Direct Services,Third Party Payments 4THIRD,430100,Rendered by Private Contractors,05/07/2018,3459279-6497,"4,499.25",JAMES INGLEFORD SCAFFOLDING LTD.
Regeneration and Local Services,Direct Services,Third Party Payments 4THIRD,430100,Rendered by Private Contractors,05/07/2018,3459279-6501,"3,129.00",JAMES INGLEFORD SCAFFOLDING LTD.
Regeneration and Local Services,Technical Services,Third Party Payments 4THIRD,430100,Rendered by Private Contractors,05/07/2018,3459302-18392,"1,699,121.26",KIELY BROS LTD.
Regeneration and Local Services,Direct Services,Third Party Payments 4THIRD,430100,Rendered by Private Contractors,05/07/2018,3459312-NV139208,"25,000.00",LIFTEC LIFTS LTD.
Regeneration and Local Services,Direct Services,Third Party Payments 4THIRD,430100,Rendered by Private Contractors,05/07/2018,3459328-NE178978,"3,829.19",MCNAUGHTON BLAIR LTD T/A LLOYD WORRALL (NEWCASTLE UPON TYNE) LTD.
Regeneration and Local Services,Technical Services,Third Party Payments 4THIRD,430100,Rendered by Private Contractors,05/07/2018,3459358-DI20294592,577.69,NORTHERN POWERGRID (NORTHEAST) LTD.
Regeneration and Local Services,Technical Services,Third Party Payments 4THIRD,430100,Rendered by Private Contractors,05/07/2018,3459380-111087,550.00,PROTECTOR SECURITY GROUP LTD.
Regeneration and Local Services,Technical Services,Third Party Payments 4THIRD,430100,Rendered by Private Contractors,05/07/2018,3459428-1690,"1,970.50",SUPAMOLE DIRECTIONAL DRILLING SPECIALISTS.
Children and Young Peoples Services,Head of Childrens Social Care,Third Party Payments 4THIRD,425041,Rendered by Voluntary Organisations,05/07/2018,3459103-6953,"2,000.00",AFTER ADOPTION.
Children and Young Peoples Services,Head of Childrens Social Care,Third Party Payments 4THIRD,425021,Rendered by Voluntary Organisations,05/07/2018,3459225-105,"1,844.00",FOREVER CARE.
Dedicated Schools Grant,DSG Early Years Block,Transfer Payments,510032,School Children,05/07/2018,3459115-8718,918.00,ANNEMARIE WARNER (CHILDMINDER).
Dedicated Schools Grant,DSG Early Years Block,Transfer Payments,510032,School Children,05/07/2018,3459408-8719,994.50,SEASIDE LANE NURSERY.
Children and Young Peoples Services,Head of Education and Skills,Transport,230008,Contract Hire,05/07/2018,3459092-N0300618,"2,200.00",1ST AID COMMERCIALS LTD.
Children and Young Peoples Services,Head of Education and Skills,Transport,230008,Contract Hire,05/07/2018,3459097-O387,"2,020.00",ABC & OUSTON CABS.
Children and Young Peoples Services,Head of Education and Skills,Transport,230012,Contract Hire,05/07/2018,3459097-O388,"1,340.00",ABC & OUSTON CABS.
Children and Young Peoples Services,Head of Education and Skills,Transport,230012,Contract Hire,05/07/2018,3459097-O389,"1,760.00",ABC & OUSTON CABS.
Children and Young Peoples Services,Head of Education and Skills,Transport,230008,Contract Hire,05/07/2018,3459119-JUNE2018-01,"1,800.00",ARMSTRONG`S TAXIS.
Children and Young Peoples Services,Head of Education and Skills,Transport,230012,Contract Hire,05/07/2018,3459119-JUNE2018-02,"1,132.00",ARMSTRONG`S TAXIS.
Children and Young Peoples Services,Head of Education and Skills,Transport,230008,Contract Hire,05/07/2018,3459121-654,"1,780.00",AT TAXIS LTD.
Children and Young Peoples Services,Head of Education and Skills,Transport,230007,Contract Hire,05/07/2018,3459121-655,990.00,AT TAXIS LTD.
Children and Young Peoples Services,Head of Education and Skills,Transport,230008,Contract Hire,05/07/2018,3459121-656,"1,862.00",AT TAXIS LTD.
Children and Young Peoples Services,Head of Education and Skills,Transport,230008,Contract Hire,05/07/2018,3459121-657,"2,071.00",AT TAXIS LTD.
Children and Young Peoples Services,Head of Education and Skills,Transport,230008,Contract Hire,05/07/2018,3459128-SMITH1/JUNE18,"1,716.00",BEELINE PRIVATE HIRE.
Children and Young Peoples Services,Head of Education and Skills,Transport,230012,Contract Hire,05/07/2018,3459131-010-N062JUN18,"1,320.00",BG TAXIS.
Children and Young Peoples Services,Head of Education and Skills,Transport,230006,Contract Hire,05/07/2018,3459133-F732-JUNE,"1,691.20",BIG MAMA`S TAXI.
Dedicated Schools Grant,DSG High Needs Block,Transport,230010,Contract Hire,05/07/2018,3459133-B013-JUNE,"2,052.00",BIG MAMA`S TAXI.
Adult and Health Services,Head of Adults,Transport,230005,Contract Hire,05/07/2018,3459134-0024,736.00,BIRDS TAXIS LTD.
Adult and Health Services,Head of Adults,Transport,230005,Contract Hire,05/07/2018,3459134-0025,588.00,BIRDS TAXIS LTD.
Children and Young Peoples Services,Head of Education and Skills,Transport,230007,Contract Hire,05/07/2018,3459135-56-3277JUN18,"1,200.00",BL TAXIS.
Adult and Health Services,Head of Adults,Transport,230005,Contract Hire,05/07/2018,3459139-7056-EAS093JUN18,990.00,BOBBY DOVE.
Children and Young Peoples Services,Head of Education and Skills,Transport,230008,Contract Hire,05/07/2018,3459139-7019,"2,900.00",BOBBY DOVE.
Adult and Health Services,Head of Adults,Transport,230005,Contract Hire,05/07/2018,3459146-BZ00262,588.00,BREZ`S TAXIS.
Children and Young Peoples Services,Head of Education and Skills,Transport,230008,Contract Hire,05/07/2018,3459146-BZ00261,"1,180.00",BREZ`S TAXIS.
Children and Young Peoples Services,Head of Education and Skills,Transport,230008,Contract Hire,05/07/2018,3459146-BZ00263,980.00,BREZ`S TAXIS.
Children and Young Peoples Services,Head of Education and Skills,Transport,230008,Contract Hire,05/07/2018,3459148-A028010,"1,300.00",C & R TAXIS.
Children and Young Peoples Services,Head of Education and Skills,Transport,230008,Contract Hire,05/07/2018,3459148-S026010,"1,330.00",C & R TAXIS.
Children and Young Peoples Services,Head of Education and Skills,Transport,230008,Contract Hire,05/07/2018,3459148-W078010,"2,400.00",C & R TAXIS.
Children and Young Peoples Services,Head of Education and Skills,Transport,230006,Contract Hire,05/07/2018,3459148-W153021,658.00,C & R TAXIS.
Children and Young Peoples Services,Head of Education and Skills,Transport,230003,Contract Hire,05/07/2018,3459167-C/10307,"2,570.00",COCHRANES T/A KELVIN TRAVEL.
Children and Young Peoples Services,Head of Education and Skills,Transport,230007,Contract Hire,05/07/2018,3459167-C/10308,"3,370.00",COCHRANES T/A KELVIN TRAVEL.
Children and Young Peoples Services,Head of Education and Skills,Transport,230007,Contract Hire,05/07/2018,3459175-DCC/4003/JUNE18,"1,820.00",COUNTY COACHES.
Children and Young Peoples Services,Head of Education and Skills,Transport,230007,Contract Hire,05/07/2018,3459175-DCC/4118/JUNE18,"4,720.00",COUNTY COACHES.
Children and Young Peoples Services,Head of Education and Skills,Transport,230007,Contract Hire,05/07/2018,3459179-107977,657.60,CROFT BUSINESS SERVICES (UK) LTD T/A CROFT TAXIS.
Children and Young Peoples Services,Head of Education and Skills,Transport,230009,Contract Hire,05/07/2018,3459179-107978,930.00,CROFT BUSINESS SERVICES (UK) LTD T/A CROFT TAXIS.
Children and Young Peoples Services,Head of Education and Skills,Transport,230008,Contract Hire,05/07/2018,3459179-107991,539.93,CROFT BUSINESS SERVICES (UK) LTD T/A CROFT TAXIS.
Children and Young Peoples Services,Head of Education and Skills,Transport,230008,Contract Hire,05/07/2018,3459179-107994,"1,321.40",CROFT BUSINESS SERVICES (UK) LTD T/A CROFT TAXIS.
Children and Young Peoples Services,Head of Education and Skills,Transport,230010,Contract Hire,05/07/2018,3459183-10,"1,520.00",D CROOK T/A CK TAXIS.
Children and Young Peoples Services,Head of Education and Skills,Transport,230006,Contract Hire,05/07/2018,3459184-1583,"1,765.00",DA TAXIS.
Children and Young Peoples Services,Head of Education and Skills,Transport,230007,Contract Hire,05/07/2018,3459184-1584,760.00,DA TAXIS.
Children and Young Peoples Services,Head of Education and Skills,Transport,230008,Contract Hire,05/07/2018,3459184-1585,"1,500.00",DA TAXIS.
Children and Young Peoples Services,Head of Education and Skills,Transport,230008,Contract Hire,05/07/2018,3459185-281,"1,178.00",DA TRAVEL.
Children and Young Peoples Services,Head of Education and Skills,Transport,230008,Contract Hire,05/07/2018,3459185-282,"1,260.00",DA TRAVEL.
Children and Young Peoples Services,Head of Education and Skills,Transport,230010,Contract Hire,05/07/2018,3459192-18/46,"1,216.00",DMG PRIVATE HIRE.
Children and Young Peoples Services,Head of Education and Skills,Transport,230008,Contract Hire,05/07/2018,3459224-0428,"1,480.00",FMR SILVA PITA.
Children and Young Peoples Services,Head of Education and Skills,Transport,230007,Contract Hire,05/07/2018,3459224-0429,700.00,FMR SILVA PITA.
Children and Young Peoples Services,Head of Education and Skills,Transport,230007,Contract Hire,05/07/2018,3459224-0430,680.00,FMR SILVA PITA.
Children and Young Peoples Services,Head of Education and Skills,Transport,230007,Contract Hire,05/07/2018,3459231-5A,795.00,G ANGHEL T/A A TAXI.
Children and Young Peoples Services,Head of Education and Skills,Transport,230007,Contract Hire,05/07/2018,3459231-6,"1,035.00",G ANGHEL T/A A TAXI.
Children and Young Peoples Services,Head of Education and Skills,Transport,230003,Contract Hire,05/07/2018,3459234-20488-3301,"3,180.00",GARNETTS LTD (COACHES).
Children and Young Peoples Services,Head of Education and Skills,Transport,230003,Contract Hire,05/07/2018,3459234-20488-3303,"3,180.00",GARNETTS LTD (COACHES).
Children and Young Peoples Services,Head of Education and Skills,Transport,230003,Contract Hire,05/07/2018,3459234-20488-3335,"2,890.00",GARNETTS LTD (COACHES).
Children and Young Peoples Services,Head of Education and Skills,Transport,230007,Contract Hire,05/07/2018,3459234-20490,"2,780.00",GARNETTS LTD (COACHES).
Children and Young Peoples Services,Head of Education and Skills,Transport,230007,Contract Hire,05/07/2018,3459234-20491,"2,380.00",GARNETTS LTD (COACHES).
Children and Young Peoples Services,Head of Education and Skills,Transport,230007,Contract Hire,05/07/2018,3459234-20495-4034,"2,296.00",GARNETTS LTD (COACHES).
Children and Young Peoples Services,Head of Education and Skills,Transport,230007,Contract Hire,05/07/2018,3459234-20495-4035,"2,296.00",GARNETTS LTD (COACHES).
Children and Young Peoples Services,Head of Education and Skills,Transport,230007,Contract Hire,05/07/2018,3459234-20495-4036,"2,296.00",GARNETTS LTD (COACHES).
Children and Young Peoples Services,Head of Education and Skills,Transport,230007,Contract Hire,05/07/2018,3459234-20495-4037,"4,592.00",GARNETTS LTD (COACHES).
Children and Young Peoples Services,Head of Education and Skills,Transport,230007,Contract Hire,05/07/2018,3459234-20495-4038,"2,296.00",GARNETTS LTD (COACHES).
Children and Young Peoples Services,Head of Education and Skills,Transport,230008,Contract Hire,05/07/2018,3459234-20496,"1,600.00",GARNETTS LTD (COACHES).
Children and Young Peoples Services,Head of Education and Skills,Transport,230003,Contract Hire,05/07/2018,3459234-20497-3020,"2,900.00",GARNETTS LTD (COACHES).
Children and Young Peoples Services,Head of Education and Skills,Transport,230003,Contract Hire,05/07/2018,3459234-20497-3024,"2,780.00",GARNETTS LTD (COACHES).
Children and Young Peoples Services,Head of Education and Skills,Transport,230003,Contract Hire,05/07/2018,3459234-20497-3026,"2,580.00",GARNETTS LTD (COACHES).
Children and Young Peoples Services,Head of Education and Skills,Transport,230003,Contract Hire,05/07/2018,3459234-20497-3027,"2,780.00",GARNETTS LTD (COACHES).
Children and Young Peoples Services,Head of Education and Skills,Transport,230003,Contract Hire,05/07/2018,3459234-20497-3028,"2,880.00",GARNETTS LTD (COACHES).
Children and Young Peoples Services,Head of Education and Skills,Transport,230007,Contract Hire,05/07/2018,3459234-20497-3029,"2,880.00",GARNETTS LTD (COACHES).
Children and Young Peoples Services,Head of Education and Skills,Transport,230007,Contract Hire,05/07/2018,3459234-20499,"3,570.00",GARNETTS LTD (COACHES).
Children and Young Peoples Services,Head of Education and Skills,Transport,230007,Contract Hire,05/07/2018,3459234-20500,"2,330.00",GARNETTS LTD (COACHES).
Children and Young Peoples Services,Head of Education and Skills,Transport,230007,Contract Hire,05/07/2018,3459236-4369-JUNE,600.00,GAZZCABS.
Children and Young Peoples Services,Head of Education and Skills,Transport,230012,Contract Hire,05/07/2018,3459236-W079-JUNE,594.00,GAZZCABS.
Children and Young Peoples Services,Head of Education and Skills,Transport,230006,Contract Hire,05/07/2018,3459244-005,535.00,GUY`S TAXIS.
Children and Young Peoples Services,Head of Education and Skills,Transport,230006,Contract Hire,05/07/2018,3459248-20,800.00,HARDIP SINGH MAHIL T/A AMBER CARS.
Children and Young Peoples Services,Head of Education and Skills,Transport,230008,Contract Hire,05/07/2018,3459252-20-W075,900.00,HENRY FOREMAN T/A HENRY`S TAXIS.
Children and Young Peoples Services,Head of Education and Skills,Transport,230007,Contract Hire,05/07/2018,3459253-511,"1,600.00",HEPWORTHS LUXURY TRAVEL.
Children and Young Peoples Services,Head of Education and Skills,Transport,230008,Contract Hire,05/07/2018,3459253-512,"2,200.00",HEPWORTHS LUXURY TRAVEL.
Children and Young Peoples Services,Head of Education and Skills,Transport,230008,Contract Hire,05/07/2018,3459253-513,"1,800.00",HEPWORTHS LUXURY TRAVEL.
Children and Young Peoples Services,Head of Education and Skills,Transport,230006,Contract Hire,05/07/2018,3459262-INV194,"1,272.00",HORNDALE TAXIS LTD.
Children and Young Peoples Services,Head of Education and Skills,Transport,230008,Contract Hire,05/07/2018,3459262-INV195,"1,560.00",HORNDALE TAXIS LTD.
Children and Young Peoples Services,Head of Education and Skills,Transport,230007,Contract Hire,05/07/2018,3459262-INV197,"1,000.00",HORNDALE TAXIS LTD.
Adult and Health Services,Head of Adults,Transport,230005,Contract Hire,05/07/2018,3459265-IR1806006,"1,400.00",I & R EXECUTIVE TRAVEL.
Children and Young Peoples Services,Head of Education and Skills,Transport,230008,Contract Hire,05/07/2018,3459265-IR1806003,"2,300.00",I & R EXECUTIVE TRAVEL.
Children and Young Peoples Services,Head of Education and Skills,Transport,230008,Contract Hire,05/07/2018,3459265-IR1806004,"1,900.00",I & R EXECUTIVE TRAVEL.
Children and Young Peoples Services,Head of Education and Skills,Transport,230008,Contract Hire,05/07/2018,3459266-IR1806002,"2,620.00",I & R EXECUTIVE TRAVEL.
Dedicated Schools Grant,DSG High Needs Block,Transport,230010,Contract Hire,05/07/2018,3459267-010,"2,180.00",IAN SOULSBY.
Children and Young Peoples Services,Head of Education and Skills,Transport,230008,Contract Hire,05/07/2018,3459283-2774,"1,629.80",JEFF ANDERSON COACHES LTD.
Children and Young Peoples Services,Head of Education and Skills,Transport,230008,Contract Hire,05/07/2018,3459283-2775,"1,549.80",JEFF ANDERSON COACHES LTD.
Children and Young Peoples Services,Head of Education and Skills,Transport,230007,Contract Hire,05/07/2018,3459283-2776,"2,699.80",JEFF ANDERSON COACHES LTD.
Children and Young Peoples Services,Head of Education and Skills,Transport,230007,Contract Hire,05/07/2018,3459283-2777,"1,969.60",JEFF ANDERSON COACHES LTD.
Children and Young Peoples Services,Head of Education and Skills,Transport,230007,Contract Hire,05/07/2018,3459283-2779,"1,879.80",JEFF ANDERSON COACHES LTD.
Children and Young Peoples Services,Head of Education and Skills,Transport,230008,Contract Hire,05/07/2018,3459299-00911,"1,140.00",KENNAS CABS.
Adult and Health Services,Head of Adults,Transport,230005,Contract Hire,05/07/2018,3459307-1163,"1,400.00",LD TAXIS.
Children and Young Peoples Services,Head of Education and Skills,Transport,230008,Contract Hire,05/07/2018,3459309-224,"1,817.00",LEE`S TAXIS (SACRISTON).
Children and Young Peoples Services,Head of Education and Skills,Transport,230007,Contract Hire,05/07/2018,3459313-3809,"1,378.00",LINCAB TAXIS.
Children and Young Peoples Services,Head of Education and Skills,Transport,230008,Contract Hire,05/07/2018,3459316-4002,"1,720.00",LOCAL TRANSPORT LTD.
Children and Young Peoples Services,Head of Education and Skills,Transport,230008,Contract Hire,05/07/2018,3459316-4004,"1,560.00",LOCAL TRANSPORT LTD.
Children and Young Peoples Services,Head of Education and Skills,Transport,230008,Contract Hire,05/07/2018,3459323-78-A100MAY18,"1,140.00",MACS TAXIS LTD.
Children and Young Peoples Services,Head of Education and Skills,Transport,230008,Contract Hire,05/07/2018,3459323-87,"1,120.00",MACS TAXIS LTD.
Children and Young Peoples Services,Head of Education and Skills,Transport,230008,Contract Hire,05/07/2018,3459330-00951,"2,295.00",MICHAELS TRAVEL.
Children and Young Peoples Services,Head of Education and Skills,Transport,230007,Contract Hire,05/07/2018,3459331-0146,"1,120.00",MICKS TAXIS - MURTON.
Children and Young Peoples Services,Head of Education and Skills,Transport,230007,Contract Hire,05/07/2018,3459331-0148,608.00,MICKS TAXIS - MURTON.
Children and Young Peoples Services,Head of Education and Skills,Transport,230007,Contract Hire,05/07/2018,3459331-0149,640.00,MICKS TAXIS - MURTON.
Dedicated Schools Grant,DSG High Needs Block,Transport,230010,Contract Hire,05/07/2018,3459333-8-B018,830.90,MR ALAN CARR FEATONBY T/A ALAN`S LUXURY PRIVATE HIRE.
Adult and Health Services,Head of Adults,Transport,230005,Contract Hire,05/07/2018,3459334-CA106-18,"1,336.00",MR CT WALKER T/A CW TAXIS.
Adult and Health Services,Head of Adults,Transport,230005,Contract Hire,05/07/2018,3459334-PG106-18,996.00,MR CT WALKER T/A CW TAXIS.
Children and Young Peoples Services,Head of Education and Skills,Transport,230008,Contract Hire,05/07/2018,3459334-DT106-18,729.44,MR CT WALKER T/A CW TAXIS.
Children and Young Peoples Services,Head of Education and Skills,Transport,230008,Contract Hire,05/07/2018,3459334-DT206-18,718.74,MR CT WALKER T/A CW TAXIS.
Children and Young Peoples Services,Head of Education and Skills,Transport,230008,Contract Hire,05/07/2018,3459334-DT306-18,866.00,MR CT WALKER T/A CW TAXIS.
Children and Young Peoples Services,Head of Education and Skills,Transport,230008,Contract Hire,05/07/2018,3459334-DT406-18,752.00,MR CT WALKER T/A CW TAXIS.
Children and Young Peoples Services,Head of Education and Skills,Transport,230009,Contract Hire,05/07/2018,3459334-FRAM106-18,592.11,MR CT WALKER T/A CW TAXIS.
Children and Young Peoples Services,Head of Education and Skills,Transport,230012,Contract Hire,05/07/2018,3459334-GP06-18,776.00,MR CT WALKER T/A CW TAXIS.
Children and Young Peoples Services,Head of Education and Skills,Transport,230009,Contract Hire,05/07/2018,3459334-LEO106-18,542.64,MR CT WALKER T/A CW TAXIS.
Dedicated Schools Grant,DSG High Needs Block,Transport,230010,Contract Hire,05/07/2018,3459334-STF06-18,"2,504.55",MR CT WALKER T/A CW TAXIS.
Adult and Health Services,Head of Adults,Transport,230005,Contract Hire,05/07/2018,3459335-0618,"1,000.00",MR D DONNELLY.
Children and Young Peoples Services,Head of Education and Skills,Transport,230008,Contract Hire,05/07/2018,3459336-0304880,"1,400.00",MR GN ROBBINS T/A GNR MINIBUS HIRE.
Children and Young Peoples Services,Head of Education and Skills,Transport,230008,Contract Hire,05/07/2018,3459336-0304881,"1,400.00",MR GN ROBBINS T/A GNR MINIBUS HIRE.
Dedicated Schools Grant,DSG High Needs Block,Transport,230010,Contract Hire,05/07/2018,3459337-KDK/JUNE18,"1,350.00",MR IAN KELSEY T/A KDK TAXIS.
Adult and Health Services,Head of Adults,Transport,230005,Contract Hire,05/07/2018,3459340-3031,"2,037.00",MR S BOWERS T/A DH7 TAXIS.
Children and Young Peoples Services,Head of Education and Skills,Transport,230008,Contract Hire,05/07/2018,3459340-3029,"2,680.00",MR S BOWERS T/A DH7 TAXIS.
Children and Young Peoples Services,Head of Education and Skills,Transport,230008,Contract Hire,05/07/2018,3459340-3030,"1,920.00",MR S BOWERS T/A DH7 TAXIS.
Children and Young Peoples Services,Head of Education and Skills,Transport,230008,Contract Hire,05/07/2018,3459367-DCC195,"2,869.00",PAUL`S TAXIS..
Children and Young Peoples Services,Head of Education and Skills,Transport,230008,Contract Hire,05/07/2018,3459367-DCC196,"1,600.00",PAUL`S TAXIS..
Children and Young Peoples Services,Head of Education and Skills,Transport,230008,Contract Hire,05/07/2018,3459375-03,"1,218.00",PHILS TAXIS.
Children and Young Peoples Services,Head of Education and Skills,Transport,230006,Contract Hire,05/07/2018,3459388-RDS038,900.00,RDS TAXI.
Children and Young Peoples Services,Head of Education and Skills,Transport,230007,Contract Hire,05/07/2018,3459396-171056,"2,750.00",ROBERTS TOURS.
Children and Young Peoples Services,Head of Education and Skills,Transport,230007,Contract Hire,05/07/2018,3459396-171057,"2,295.00",ROBERTS TOURS.
Children and Young Peoples Services,Head of Education and Skills,Transport,230007,Contract Hire,05/07/2018,3459396-171058,"2,900.00",ROBERTS TOURS.
Children and Young Peoples Services,Head of Education and Skills,Transport,230008,Contract Hire,05/07/2018,3459413-74248,"2,025.00",SHOTTON PRIVATE HIRE.
Children and Young Peoples Services,Head of Education and Skills,Transport,230009,Contract Hire,05/07/2018,3459422-36,503.00,STEVEN HENDERSON T/A HENDYS TAXIS.
Children and Young Peoples Services,Head of Education and Skills,Transport,230011,Contract Hire,05/07/2018,3459422-37,680.00,STEVEN HENDERSON T/A HENDYS TAXIS.
Children and Young Peoples Services,Head of Education and Skills,Transport,230007,Contract Hire,05/07/2018,3459422-38,720.00,STEVEN HENDERSON T/A HENDYS TAXIS.
Children and Young Peoples Services,Head of Education and Skills,Transport,230008,Contract Hire,05/07/2018,3459423-180600,"1,800.00",STEVEN PRATT T/A PTL TAXIS DURHAM.
Children and Young Peoples Services,Head of Education and Skills,Transport,230008,Contract Hire,05/07/2018,3459443-03-N086,"1,510.00",TRIDENT TAXIS.
Children and Young Peoples Services,Head of Education and Skills,Transport,230008,Contract Hire,05/07/2018,3459443-10-A133,"1,015.00",TRIDENT TAXIS.
Transformation and Partnerships,Partnerships & Community Engagement Div.,Cap Exp on Grants & Other Financial Assistance (REFCUS),918004,Contributions to other bodies 918004,06/07/2018,3459762-VOUCHER17NB-DCTY021,"7,500.00",NEVILLES CROSS SCHOOL PTA.
Children and Young Peoples Services,"Head of Early Help, Inclusion and Vulnerable Children",Employees,080025,Agency Staff,06/07/2018,3459538-04002726,552.95,CER (A DIVISION OF MONARCH EDUCATION LTD).
Dedicated Schools Grant,DSG High Needs Block,Employees,080025,Agency Staff,06/07/2018,3459812-51302543,767.79,PROTOCOL EDUCATION LTD.
Dedicated Schools Grant,DSG High Needs Block,Employees,080025,Agency Staff,06/07/2018,3459812-51302546,517.50,PROTOCOL EDUCATION LTD.
Children and Young Peoples Services,"Head of Early Help, Inclusion and Vulnerable Children",Employees,080025,Agency Staff,06/07/2018,3459884-2187891,"1,671.65",TEACHING PERSONNEL LTD.
Regeneration and Local Services,Culture & Sport,Premises,106082,Centrally Controlled Rep and Maint,06/07/2018,3459475-4415,"2,109.00",ACROL AIR CONDITIONING CO LTD.
Regeneration and Local Services,Economic Development and Housing,Premises,106082,Centrally Controlled Rep and Maint,06/07/2018,3459475-IN4522,"13,964.41",ACROL AIR CONDITIONING CO LTD.
Regeneration and Local Services,Economic Development and Housing,Premises,106082,Centrally Controlled Rep and Maint,06/07/2018,3459502-31322,665.00,AYCLIFFE FABRICATIONS LTD.
Regeneration and Local Services,Economic Development and Housing,Premises,106082,Centrally Controlled Rep and Maint,06/07/2018,3459536-4419,"3,841.30",CATHEDRAL LOCK & SAFE SERVICES LTD.
Regeneration and Local Services,Economic Development and Housing,Premises,106082,Centrally Controlled Rep and Maint,06/07/2018,3459536-4422,735.65,CATHEDRAL LOCK & SAFE SERVICES LTD.
Regeneration and Local Services,Economic Development and Housing,Premises,106082,Centrally Controlled Rep and Maint,06/07/2018,3459536-4435,760.65,CATHEDRAL LOCK & SAFE SERVICES LTD.
Regeneration and Local Services,Economic Development and Housing,Premises,106082,Centrally Controlled Rep and Maint,06/07/2018,3459536-4441,590.00,CATHEDRAL LOCK & SAFE SERVICES LTD.
Regeneration and Local Services,Culture & Sport,Premises,106082,Centrally Controlled Rep and Maint,06/07/2018,3459784-01249199,"6,650.46",OTIS LTD T/A MOVEMAN SKG.
Regeneration and Local Services,Culture & Sport,Premises,106082,Centrally Controlled Rep and Maint,06/07/2018,3459784-01305825,"6,830.03",OTIS LTD T/A MOVEMAN SKG.
Regeneration and Local Services,Culture & Sport,Premises,106082,Centrally Controlled Rep and Maint,06/07/2018,3459784-01316216,"6,830.03",OTIS LTD T/A MOVEMAN SKG.
Regeneration and Local Services,Direct Services,Premises,106082,Centrally Controlled Rep and Maint,06/07/2018,3459911-DL903911,"2,612.00",TYCO FIRE & INTEGRATED SOLUTIONS (UK) LTD.
Regeneration and Local Services,Direct Services,Premises,106082,Centrally Controlled Rep and Maint,06/07/2018,3459911-DL905095,"1,625.00",TYCO FIRE & INTEGRATED SOLUTIONS (UK) LTD.
Regeneration and Local Services,Direct Services,Premises,106082,Centrally Controlled Rep and Maint,06/07/2018,3459917-80065347,"3,377.62",VERTIV INFRASTRUCTURE LTD.
Regeneration and Local Services,Direct Services,Premises,106082,Centrally Controlled Rep and Maint,06/07/2018,3459917-80065353,"3,377.62",VERTIV INFRASTRUCTURE LTD.
Children and Young Peoples Services,Head of Education and Skills,Premises,145052,Cleaning and Domestic Supplies,06/07/2018,3459474-5074,570.00,A & B INDUSTRIAL CLEANING LTD.
Adult and Health Services,Commissioning inc Supporting People,Premises,145050,Cleaning and Domestic Supplies,06/07/2018,3459487-68781,"11,969.19",ANLABY OFFICE CLEANING SERVICES LTD.
Regeneration and Local Services,Culture & Sport,Premises,145023,Cleaning and Domestic Supplies,06/07/2018,3459522-22SI2237659,829.50,BRENNTAG UK LTD.
Regeneration and Local Services,Culture & Sport,Premises,145023,Cleaning and Domestic Supplies,06/07/2018,3459522-22SI2237660,"1,314.00",BRENNTAG UK LTD.
Children and Young Peoples Services,"Head of Early Help, Inclusion and Vulnerable Children",Premises,108099,Service Repairs and Maintenance,06/07/2018,3459475-IN4402,"8,396.86",ACROL AIR CONDITIONING CO LTD.
Regeneration and Local Services,Direct Services,Premises,108099,Service Repairs and Maintenance,06/07/2018,3459625-12721,917.42,FT LEISURE LTD.
Regeneration and Local Services,Direct Services,Premises,108099,Service Repairs and Maintenance,06/07/2018,3459625-12725,"1,208.40",FT LEISURE LTD.
Regeneration and Local Services,Direct Services,Premises,108099,Service Repairs and Maintenance,06/07/2018,3459690-17470,"2,220.00",JC MAINTENANCE SERVICES LTD.
Children and Young Peoples Services,"Head of Early Help, Inclusion and Vulnerable Children",Premises,108099,Service Repairs and Maintenance,06/07/2018,3459784-01307496,"1,016.10",OTIS LTD T/A MOVEMAN SKG.
Regeneration and Local Services,Technical Services,Stock A926,926004,Stock,06/07/2018,3459550-400010619,"14,791.20",CLEVELAND POTASH LTD T/A ICL FERTILIZERS.
Resources,Digital and Customer Services,Stock A926,926900,Stock in hand-Inventory system,06/07/2018,3459676-3926317,"1,950.00",INSIGHT DIRECT (UK) LTD.
Resources,Digital and Customer Services,Stock A926,926900,Stock in hand-Inventory system,06/07/2018,3459676-3927381,"1,950.00",INSIGHT DIRECT (UK) LTD.
Regeneration and Local Services,Direct Services,Stock A926,926900,Stock in hand-Inventory system,06/07/2018,3459706-SI02-0188202,531.00,KILLGERM CHEMICALS LTD.
Children and Young Peoples Services,Head of Education and Skills,Supplies and Services,336005,Advertising E336,06/07/2018,3459646-0000075451,"1,499.00",HARRISON EXTERNAL DISPLAY SYSTEMS.
Resources,Digital and Customer Services,Supplies and Services,342033,Computers and Communications,06/07/2018,3459855-INV01932640,739.77,SOFTCAT LTD.
Regeneration and Local Services,Economic Development and Housing,Supplies and Services,377015,County Durham Development,06/07/2018,3459500-1818,683.00,AUTO ITEMS LTD.
Resources,Digital and Customer Services,Supplies and Services,304245,Equipment and Materials,06/07/2018,3459490-7795928,501.68,ANTALIS LTD.
Regeneration and Local Services,Direct Services,Supplies and Services,304259,Equipment and Materials,06/07/2018,3459503-INV123074,"1,450.00",AZTEC CHEMICALS LTD.
Regeneration and Local Services,Technical Services,Supplies and Services,304221,Equipment and Materials,06/07/2018,3459509-47921988,770.00,BENTLEY SYSTEMS INTERNATIONAL LTD.
Regeneration and Local Services,EnvironmentHealth & Consumer Protection,Supplies and Services,304999,Equipment and Materials,06/07/2018,3459552-WEB27280,"4,786.67",COLENA LTD T/A HELIGUY.
Regeneration and Local Services,Direct Services,Supplies and Services,304221,Equipment and Materials,06/07/2018,3459601-0000014687,"1,959.30",EAST RIDING HORTICULTURE LTD.
Regeneration and Local Services,Culture & Sport,Supplies and Services,304259,Equipment and Materials,06/07/2018,3459641-FA-00007276,"16,999.00",GYMNOVA (UK) LTD.
Dedicated Schools Grant,DSG High Needs Block,Supplies and Services,304259,Equipment and Materials,06/07/2018,3459691-212419,"1,908.40",JENX LTD.
Regeneration and Local Services,Direct Services,Supplies and Services,304221,Equipment and Materials,06/07/2018,3459699-PHBI139758,880.00,JT DOVE LTD.
Regeneration and Local Services,Direct Services,Supplies and Services,304221,Equipment and Materials,06/07/2018,3459724-4286770,"2,834.32",LONDON GENERAL SALES LTD.
Regeneration and Local Services,Technical Services,Supplies and Services,304040,Equipment and Materials,06/07/2018,3459844-1810187,576.00,SHAND HIGSON & CO LTD.
Regeneration and Local Services,Direct Services,Supplies and Services,304221,Equipment and Materials,06/07/2018,3459846-CD970652879,"1,044.20",SHERRIFF AMENITY.
Regeneration and Local Services,Technical Services,Supplies and Services,304221,Equipment and Materials,06/07/2018,3459850-244827,577.75,SIGNPOST SOLUTIONS LTD.
Regeneration and Local Services,Technical Services,Supplies and Services,304221,Equipment and Materials,06/07/2018,3459912-186791,805.88,TYNEDALE ROADSTONE LTD.
Regeneration and Local Services,Technical Services,Supplies and Services,304221,Equipment and Materials,06/07/2018,3459912-187426,"1,096.40",TYNEDALE ROADSTONE LTD.
Regeneration and Local Services,Technical Services,Supplies and Services,304221,Equipment and Materials,06/07/2018,3459912-187427,"1,115.40",TYNEDALE ROADSTONE LTD.
Regeneration and Local Services,Technical Services,Supplies and Services,304221,Equipment and Materials,06/07/2018,3459912-187429,"1,122.00",TYNEDALE ROADSTONE LTD.
Regeneration and Local Services,Technical Services,Supplies and Services,304221,Equipment and Materials,06/07/2018,3459912-187431,"1,129.70",TYNEDALE ROADSTONE LTD.
Regeneration and Local Services,Technical Services,Supplies and Services,304221,Equipment and Materials,06/07/2018,3459912-187972,"1,189.01",TYNEDALE ROADSTONE LTD.
Regeneration and Local Services,Technical Services,Supplies and Services,304221,Equipment and Materials,06/07/2018,3459912-188062,"1,052.69",TYNEDALE ROADSTONE LTD.
Regeneration and Local Services,Technical Services,Supplies and Services,304221,Equipment and Materials,06/07/2018,3459912-188063,885.80,TYNEDALE ROADSTONE LTD.
Regeneration and Local Services,Technical Services,Supplies and Services,304221,Equipment and Materials,06/07/2018,3459912-188064,672.50,TYNEDALE ROADSTONE LTD.
Regeneration and Local Services,Technical Services,Supplies and Services,304221,Equipment and Materials,06/07/2018,3459912-188065,713.60,TYNEDALE ROADSTONE LTD.
Regeneration and Local Services,Technical Services,Supplies and Services,304221,Equipment and Materials,06/07/2018,3459912-188066,734.72,TYNEDALE ROADSTONE LTD.
Regeneration and Local Services,Technical Services,Supplies and Services,304221,Equipment and Materials,06/07/2018,3459912-188068,"1,023.12",TYNEDALE ROADSTONE LTD.
Regeneration and Local Services,Direct Services,Supplies and Services,304221,Equipment and Materials,06/07/2018,3459929-52764894,"1,059.59",WOLSELEY UK LTD.
Children and Young Peoples Services,Head of Childrens Social Care,Supplies and Services,384534,Miscellaneous Expenses,06/07/2018,3459476-400197,"1,250.00",ADOPTION UK.
Regeneration and Local Services,Economic Development and Housing,Supplies and Services,384437,Miscellaneous Expenses,06/07/2018,3459556-77152,"4,050.00",COMPASS ROYSTON TRAVEL LTD.
Children and Young Peoples Services,Head of Education and Skills,Supplies and Services,384199,Miscellaneous Expenses,06/07/2018,3459560-8010414,"8,716.89",CORE ASSETS CHILDREN`S SERVICES LTD.
Adult and Health Services,Commissioning inc Supporting People,Supplies and Services,384700,Miscellaneous Expenses,06/07/2018,3459586-CHESTER-LE-STREETACTIVITIES,"3,750.00",DERWENTSIDE MIND.
Regeneration and Local Services,Economic Development and Housing,Supplies and Services,384700,Miscellaneous Expenses,06/07/2018,3459588-RED-07-2018-023,"1,000.00",DIAMOND COMMERCIAL CLEANING LTD.
Regeneration and Local Services,Culture & Sport,Supplies and Services,384199,Miscellaneous Expenses,06/07/2018,3459685-4100623127,525.00,JAMES ODENE (THEATRE CONTRACTOR).
Regeneration and Local Services,Culture & Sport,Supplies and Services,384199,Miscellaneous Expenses,06/07/2018,3459766-22,800.00,NICOLA MORRIS.
Regeneration and Local Services,Culture & Sport,Supplies and Services,384199,Miscellaneous Expenses,06/07/2018,3459766-23,800.00,NICOLA MORRIS.
Regeneration and Local Services,Spatial Policy Planning Assets & Environment,Supplies and Services,384540,Miscellaneous Expenses,06/07/2018,3459847-1-7227,"1,111.00",SHOCK THE SENSES LTD.
Regeneration and Local Services,Spatial Policy Planning Assets & Environment,Supplies and Services,384899,Miscellaneous Expenses,06/07/2018,3459923-124,"6,000.00",WEAR RIVERS TRUST.
Regeneration and Local Services,Culture & Sport,Supplies and Services,324001,Provisions E324,06/07/2018,3459748-904604071,"1,248.12",MOLSON COORS BREWING COMPANY (UK) LTD.
Regeneration and Local Services,Spatial Policy Planning Assets & Environment,Supplies and Services,338027,Services,06/07/2018,3459480-28351384,"1,194.00",AECOM LTD.
Regeneration and Local Services,Spatial Policy Planning Assets & Environment,Supplies and Services,338027,Services,06/07/2018,3459491-105149,660.31,ANTHESIS UK LTD.
Children and Young Peoples Services,Childrens Services Operational Support,Supplies and Services,338089,Services,06/07/2018,3459542-JP/HH1518,568.00,CHRISTINE SHEPHERD (INDEPENDENT SOCIAL WORKER).
Resources,Legal & Democratic Services,Supplies and Services,338042,Services,06/07/2018,3459585-340203/INVEMC190,550.00,DERE STREET BARRISTERS.
Children and Young Peoples Services,"Head of Early Help, Inclusion and Vulnerable Children",Supplies and Services,338076,Services,06/07/2018,3459678-0212018,"72,652.00",INVESTING IN CHILDREN CIC.
Children and Young Peoples Services,Head of Childrens Social Care,Supplies and Services,338076,Services,06/07/2018,3459679-L2C0012018,"50,000.00",INVESTING IN CHILDREN CIC.
Regeneration and Local Services,Culture & Sport,Supplies and Services,338047,Services,06/07/2018,3459787-R2174089,891.00,PARAMOUNT PICTURES UK.
Regeneration and Local Services,Spatial Policy Planning Assets & Environment,Supplies and Services,338066,Services,06/07/2018,3459814-1727,"6,430.00",R MULHOLLAND LTD.
Children and Young Peoples Services,Childrens Services Operational Support,Supplies and Services,338089,Services,06/07/2018,3459879-030718,"1,245.00",SUSAN BELL (EXTERNAL TRAINER).
Regeneration and Local Services,Culture & Sport,Supplies and Services,338047,Services,06/07/2018,3459880-GALA003,943.33,SUSAN MULHOLLAND (ENTERTAINER).
Regeneration and Local Services,Business Support,Supplies and Services,372009,Subscriptions E372,06/07/2018,3459496-CORPENG/43226.,575.00,ASSOCIATION FOR PROJECT MANAGEMENT.
Adult and Health Services,Public Health,Third Party Payments 4THIRD,460803,Contract Payments,06/07/2018,3459571-TVDA00232,"10,000.00",CRUSE BEREAVEMENT CARE.
Adult and Health Services,Public Health,Third Party Payments 4THIRD,460803,Contract Payments,06/07/2018,3459663-150/19/1801,"374,815.58",HUMANKIND CHARITY (FORMERLY DISC LTD).
Adult and Health Services,Commissioning inc Supporting People,Third Party Payments 4THIRD,440999,Other third party payments E440,06/07/2018,3459513-FORMFASSESSMENTSTRATOUDAKIS,900.00,BETH MILLER.
Adult and Health Services,Commissioning inc Supporting People,Third Party Payments 4THIRD,440051,Other third party payments E440,06/07/2018,3459595-DCYP010,"11,825.00",DURHAM CITY YOUTH PROJECT.
Children and Young Peoples Services,Head of Education and Skills,Third Party Payments 4THIRD,440999,Other third party payments E440,06/07/2018,3459600-YEI37/16,"4,037.74",EAST DURHAM BUSINESS SERVICE.
Adult and Health Services,Head of Adults,Third Party Payments 4THIRD,470101,Purchase of Care,06/07/2018,3459526-016/19,"1,480.00",BUTTERWICK LTD..
Adult and Health Services,Head of Adults,Third Party Payments 4THIRD,470101,Purchase of Care,06/07/2018,3459526-017/19,740.00,BUTTERWICK LTD..
Adult and Health Services,Head of Adults,Third Party Payments 4THIRD,473101,Purchase of Care,06/07/2018,3459534-CFSI824,"6,333.33",CATCOTE FUTURES.
Adult and Health Services,Head of Adults,Third Party Payments 4THIRD,473101,Purchase of Care,06/07/2018,3459534-CFSI825,"2,026.67",CATCOTE FUTURES.
Adult and Health Services,Head of Adults,Third Party Payments 4THIRD,473101,Purchase of Care,06/07/2018,3459534-CFSI826,"2,691.67",CATCOTE FUTURES.
Adult and Health Services,Head of Adults,Third Party Payments 4THIRD,470101,Purchase of Care,06/07/2018,3459796-35789,747.00,PERCY HEDLEY FOUNDATION.
Adult and Health Services,Head of Adults,Third Party Payments 4THIRD,470101,Purchase of Care,06/07/2018,3459796-35930,931.00,PERCY HEDLEY FOUNDATION.
Adult and Health Services,Head of Adults,Third Party Payments 4THIRD,470101,Purchase of Care,06/07/2018,3459796-35933,"3,040.75",PERCY HEDLEY FOUNDATION.
Adult and Health Services,Head of Adults,Third Party Payments 4THIRD,478101,Purchase of Care,06/07/2018,3459834-IN001212,"5,749.38",S/C 202741 CAMBIAN INTERACT CARE SERVICES LTD.
Regeneration and Local Services,Direct Services,Third Party Payments 4THIRD,430100,Rendered by Private Contractors,06/07/2018,3459479-IV1025652,575.00,ADVANCED RADIATORS LTD.
Regeneration and Local Services,Direct Services,Third Party Payments 4THIRD,430100,Rendered by Private Contractors,06/07/2018,3459584-328460,505.08,DENNIS EAGLE LTD.
Regeneration and Local Services,Technical Services,Third Party Payments 4THIRD,430127,Rendered by Private Contractors,06/07/2018,3459599-180301.,"9,329.50",EAGLE HALL FARM ACCOUNT.
Regeneration and Local Services,Direct Services,Third Party Payments 4THIRD,430100,Rendered by Private Contractors,06/07/2018,3459609-482102,564.00,ELECTRO DIESEL NORTH EAST LTD.
Regeneration and Local Services,Direct Services,Third Party Payments 4THIRD,430100,Rendered by Private Contractors,06/07/2018,3459657-73663,"1,007.41",HOGARTH COACHWORKS LTD.
Regeneration and Local Services,Direct Services,Third Party Payments 4THIRD,430100,Rendered by Private Contractors,06/07/2018,3459657-73664,"1,255.00",HOGARTH COACHWORKS LTD.
Regeneration and Local Services,Technical Services,Third Party Payments 4THIRD,430100,Rendered by Private Contractors,06/07/2018,3459683-21802,914.15,JACK COUPE & SONS LTD T/A COUPE LINE.
Regeneration and Local Services,Direct Services,Third Party Payments 4THIRD,430100,Rendered by Private Contractors,06/07/2018,3459690-15742,"1,403.00",JC MAINTENANCE SERVICES LTD.
Regeneration and Local Services,Technical Services,Third Party Payments 4THIRD,430100,Rendered by Private Contractors,06/07/2018,3459701-32374,"1,799.00",KAEFER LTD.
Regeneration and Local Services,Technical Services,Third Party Payments 4THIRD,430100,Rendered by Private Contractors,06/07/2018,3459776-DI20294418,"1,064.18",NORTHERN POWERGRID (NORTHEAST) LTD.
Regeneration and Local Services,Technical Services,Third Party Payments 4THIRD,430100,Rendered by Private Contractors,06/07/2018,3459776-DI20295097,"4,490.46",NORTHERN POWERGRID (NORTHEAST) LTD.
Regeneration and Local Services,Technical Services,Third Party Payments 4THIRD,430100,Rendered by Private Contractors,06/07/2018,3459776-DI20295098,"2,077.13",NORTHERN POWERGRID (NORTHEAST) LTD.
Regeneration and Local Services,Technical Services,Third Party Payments 4THIRD,430100,Rendered by Private Contractors,06/07/2018,3459776-DI20296560,"2,619.07",NORTHERN POWERGRID (NORTHEAST) LTD.
Regeneration and Local Services,Technical Services,Third Party Payments 4THIRD,430100,Rendered by Private Contractors,06/07/2018,3459776-DI20296562,"1,003.50",NORTHERN POWERGRID (NORTHEAST) LTD.
Regeneration and Local Services,Direct Services,Third Party Payments 4THIRD,430100,Rendered by Private Contractors,06/07/2018,3459777-IW03964140,"2,363.18",NORTHGATE VEHICLE HIRE LTD.
Regeneration and Local Services,Direct Services,Third Party Payments 4THIRD,430100,Rendered by Private Contractors,06/07/2018,3459777-IW03974572,"1,599.20",NORTHGATE VEHICLE HIRE LTD.
Regeneration and Local Services,Transport and Contracted Services,Third Party Payments 4THIRD,430100,Rendered by Private Contractors,06/07/2018,3459779-00002541,"26,813.44",NSL LTD.
Regeneration and Local Services,Transport and Contracted Services,Third Party Payments 4THIRD,430100,Rendered by Private Contractors,06/07/2018,3459779-00002544,"1,260.19",NSL LTD.
Regeneration and Local Services,Transport and Contracted Services,Third Party Payments 4THIRD,430100,Rendered by Private Contractors,06/07/2018,3459779-00002545,"49,204.08",NSL LTD.
Regeneration and Local Services,Transport and Contracted Services,Third Party Payments 4THIRD,430100,Rendered by Private Contractors,06/07/2018,3459779-00002548,"3,197.32",NSL LTD.
Regeneration and Local Services,Transport and Contracted Services,Third Party Payments 4THIRD,430100,Rendered by Private Contractors,06/07/2018,3459779-00002549,"4,661.12",NSL LTD.
Regeneration and Local Services,Transport and Contracted Services,Third Party Payments 4THIRD,430100,Rendered by Private Contractors,06/07/2018,3459779-00002551,"17,174.23",NSL LTD.
Regeneration and Local Services,Transport and Contracted Services,Third Party Payments 4THIRD,430100,Rendered by Private Contractors,06/07/2018,3459779-00002611,"5,138.51",NSL LTD.
Regeneration and Local Services,Transport and Contracted Services,Third Party Payments 4THIRD,430100,Rendered by Private Contractors,06/07/2018,3459779-00002628,992.94,NSL LTD.
Children and Young Peoples Services,Head of Childrens Social Care,Third Party Payments 4THIRD,425021,Rendered by Voluntary Organisations,06/07/2018,3459494-INV-0914,"11,600.00",ARTEMIS SUPPORT LTD.
Children and Young Peoples Services,Head of Childrens Social Care,Third Party Payments 4THIRD,425028,Rendered by Voluntary Organisations,06/07/2018,3459593-002-2018-19,"8,750.00",DURHAM AREA DISABILITY LEISURE GROUP (DADLG).
Children and Young Peoples Services,Head of Childrens Social Care,Third Party Payments 4THIRD,425021,Rendered by Voluntary Organisations,06/07/2018,3459795-290121,"14,596.57",PEARTREE PROJECTS LTD.
Children and Young Peoples Services,Head of Childrens Social Care,Third Party Payments 4THIRD,425021,Rendered by Voluntary Organisations,06/07/2018,3459795-290122,"16,261.49",PEARTREE PROJECTS LTD.
Adult and Health Services,Head of Adults,Third Party Payments 4THIRD,425020,Rendered by Voluntary Organisations,06/07/2018,3459796-35916,"1,716.00",PERCY HEDLEY FOUNDATION.
Children and Young Peoples Services,Head of Childrens Social Care,Third Party Payments 4THIRD,425021,Rendered by Voluntary Organisations,06/07/2018,3459816-4412,"4,150.00",REACH OUT CARE SUPPORT SERVICES LTD.
Children and Young Peoples Services,Head of Childrens Social Care,Third Party Payments 4THIRD,425021,Rendered by Voluntary Organisations,06/07/2018,3459823-30809,"19,600.00",RIGHT TRAK LTD.
Children and Young Peoples Services,Head of Education and Skills,Transfer Payments,510027,School Children,06/07/2018,3459525-WWDOB4/10/13-JUNE18,714.00,BUDDIES CHILDCARE CENTRE.
Children and Young Peoples Services,Head of Education and Skills,Transfer Payments,510027,School Children,06/07/2018,3459900-SI-3860,"1,850.79",TM NURSERY ENTERPRISES LTD T/A JACK IN THE BOX DAYCARE.
Children and Young Peoples Services,Head of Education and Skills,Transport,230008,Contract Hire,06/07/2018,3459501-08618,700.00,AVALON TAXIS.
Children and Young Peoples Services,Head of Education and Skills,Transport,230008,Contract Hire,06/07/2018,3459501-290618,"1,500.00",AVALON TAXIS.
Adult and Health Services,Head of Adults,Transport,230005,Contract Hire,06/07/2018,3459515-0021,612.00,BIRDS TAXIS LTD.
Adult and Health Services,Head of Adults,Transport,230005,Contract Hire,06/07/2018,3459570-107986,"1,731.15",CROFT BUSINESS SERVICES (UK) LTD T/A CROFT TAXIS.
Adult and Health Services,Head of Adults,Transport,230005,Contract Hire,06/07/2018,3459570-107987,"1,916.67",CROFT BUSINESS SERVICES (UK) LTD T/A CROFT TAXIS.
Adult and Health Services,Head of Adults,Transport,230005,Contract Hire,06/07/2018,3459570-107988,"2,007.12",CROFT BUSINESS SERVICES (UK) LTD T/A CROFT TAXIS.
Children and Young Peoples Services,Head of Education and Skills,Transport,230009,Contract Hire,06/07/2018,3459570-107979,"3,831.50",CROFT BUSINESS SERVICES (UK) LTD T/A CROFT TAXIS.
Children and Young Peoples Services,Head of Education and Skills,Transport,230009,Contract Hire,06/07/2018,3459570-107980,"1,964.20",CROFT BUSINESS SERVICES (UK) LTD T/A CROFT TAXIS.
Children and Young Peoples Services,Head of Education and Skills,Transport,230008,Contract Hire,06/07/2018,3459570-107982,"3,774.60",CROFT BUSINESS SERVICES (UK) LTD T/A CROFT TAXIS.
Children and Young Peoples Services,Head of Education and Skills,Transport,230008,Contract Hire,06/07/2018,3459570-107983,"1,997.40",CROFT BUSINESS SERVICES (UK) LTD T/A CROFT TAXIS.
Children and Young Peoples Services,Head of Education and Skills,Transport,230008,Contract Hire,06/07/2018,3459570-107989,"1,889.46",CROFT BUSINESS SERVICES (UK) LTD T/A CROFT TAXIS.
Children and Young Peoples Services,Head of Education and Skills,Transport,230008,Contract Hire,06/07/2018,3459570-107992,"2,791.82",CROFT BUSINESS SERVICES (UK) LTD T/A CROFT TAXIS.
Children and Young Peoples Services,Head of Education and Skills,Transport,230008,Contract Hire,06/07/2018,3459570-107995,"1,148.03",CROFT BUSINESS SERVICES (UK) LTD T/A CROFT TAXIS.
Children and Young Peoples Services,Head of Education and Skills,Transport,230008,Contract Hire,06/07/2018,3459570-107996,"1,891.83",CROFT BUSINESS SERVICES (UK) LTD T/A CROFT TAXIS.
Children and Young Peoples Services,Head of Education and Skills,Transport,230008,Contract Hire,06/07/2018,3459581-3306,"1,700.00",DAVES MINIBUSES.
Children and Young Peoples Services,Head of Education and Skills,Transport,230008,Contract Hire,06/07/2018,3459581-3307,"1,700.00",DAVES MINIBUSES.
Children and Young Peoples Services,Head of Education and Skills,Transport,230006,Contract Hire,06/07/2018,3459645-20-F729,864.00,HARDIP SINGH MAHIL T/A AMBER CARS.
Children and Young Peoples Services,Head of Education and Skills,Transport,230007,Contract Hire,06/07/2018,3459661-INV198,924.40,HORNDALE TAXIS LTD.
Children and Young Peoples Services,Head of Education and Skills,Transport,230008,Contract Hire,06/07/2018,3459700-M046-JUN18,"1,880.00",K & R TAXIS (STANLEY).
Children and Young Peoples Services,Head of Education and Skills,Transport,230008,Contract Hire,06/07/2018,3459700-N012-JUN18,"1,920.00",K & R TAXIS (STANLEY).
Children and Young Peoples Services,Head of Education and Skills,Transport,230008,Contract Hire,06/07/2018,3459700-N071-JUN18,"2,480.00",K & R TAXIS (STANLEY).
Dedicated Schools Grant,DSG High Needs Block,Transport,230010,Contract Hire,06/07/2018,3459700-PL006-JUN18,"2,420.00",K & R TAXIS (STANLEY).
Dedicated Schools Grant,DSG High Needs Block,Transport,230010,Contract Hire,06/07/2018,3459722-1A,"1,365.00",LION CABS.
Children and Young Peoples Services,Head of Education and Skills,Transport,230008,Contract Hire,06/07/2018,3459732-INV06/1804,"2,546.00",MARK & JOHN CHISHOLM T/A (CHEVRON).
Children and Young Peoples Services,Head of Education and Skills,Transport,230008,Contract Hire,06/07/2018,3459732-INV06/1806,"2,350.00",MARK & JOHN CHISHOLM T/A (CHEVRON).
Children and Young Peoples Services,Head of Education and Skills,Transport,230008,Contract Hire,06/07/2018,3459732-INV06/1808,"1,320.00",MARK & JOHN CHISHOLM T/A (CHEVRON).
Children and Young Peoples Services,Head of Education and Skills,Transport,230008,Contract Hire,06/07/2018,3459732-INV06/1809,"2,080.00",MARK & JOHN CHISHOLM T/A (CHEVRON).
Children and Young Peoples Services,Head of Education and Skills,Transport,230007,Contract Hire,06/07/2018,3459732-INV06/1810,"1,120.00",MARK & JOHN CHISHOLM T/A (CHEVRON).
Children and Young Peoples Services,Head of Education and Skills,Transport,230006,Contract Hire,06/07/2018,3459732-INV06/1813,"2,725.00",MARK & JOHN CHISHOLM T/A (CHEVRON).
Dedicated Schools Grant,DSG High Needs Block,Transport,230010,Contract Hire,06/07/2018,3459732-INV06/1801,"1,520.00",MARK & JOHN CHISHOLM T/A (CHEVRON).
Dedicated Schools Grant,DSG High Needs Block,Transport,230010,Contract Hire,06/07/2018,3459732-INV06/1802,"1,480.00",MARK & JOHN CHISHOLM T/A (CHEVRON).
Dedicated Schools Grant,DSG High Needs Block,Transport,230010,Contract Hire,06/07/2018,3459732-INV06/1803,"3,232.00",MARK & JOHN CHISHOLM T/A (CHEVRON).
Dedicated Schools Grant,DSG High Needs Block,Transport,230010,Contract Hire,06/07/2018,3459732-INV06/1814,"3,173.00",MARK & JOHN CHISHOLM T/A (CHEVRON).
Children and Young Peoples Services,Head of Education and Skills,Transport,230008,Contract Hire,06/07/2018,3459739-MCD3784,"1,140.00",MCDONALD TRAVEL.
Children and Young Peoples Services,Head of Education and Skills,Transport,230008,Contract Hire,06/07/2018,3459739-MCD3786,"1,920.00",MCDONALD TRAVEL.
Children and Young Peoples Services,Head of Education and Skills,Transport,230008,Contract Hire,06/07/2018,3459753-W046-JUNE,"1,580.00",MR NEIL FRASER ELLIS T/A MILLENNIUM CABS.
Children and Young Peoples Services,Head of Education and Skills,Transport,230010,Contract Hire,06/07/2018,3459869-39,560.00,STEVEN HENDERSON T/A HENDYS TAXIS.
Children and Young Peoples Services,Head of Education and Skills,Transport,230007,Contract Hire,06/07/2018,3459904-030618,600.00,TRANSPORT.ADVENTURE.XI.
Children and Young Peoples Services,Head of Education and Skills,Transport,230012,Contract Hire,06/07/2018,3459904-040618,500.00,TRANSPORT.ADVENTURE.XI.
Children and Young Peoples Services,Head of Education and Skills,Transport,230007,Contract Hire,06/07/2018,3459907-05-2067,564.00,TRIDENT TAXIS.
Children and Young Peoples Services,Head of Education and Skills,Transport,230008,Contract Hire,06/07/2018,3459908-105,"1,120.00",TRIDENT TAXIS.
Children and Young Peoples Services,Head of Childrens Social Care,Transport,235073,Public Transport,06/07/2018,3459658-312,774.90,HOME ON THE RANGE LTD.
Regeneration and Local Services,Direct Services,Transport,215022,Running Costs of Vehicles,06/07/2018,3459781-336166,"1,116.78",OIL NRG LTD.
Children and Young Peoples Services,Head of Education and Skills,Construction work A908,908105,Construction work,09/07/2018,3460030-DESCRIPTION,"4,990.00",DURHAM UNIVERSITY.
Regeneration and Local Services,Technical Services,Construction work A908,908105,Construction work,09/07/2018,3460099-21806,"2,197.64",JACK COUPE & SONS LTD T/A COUPE LINE.
Regeneration and Local Services,Transport and Contracted Services,Construction work A908,908105,Construction work,09/07/2018,3460160-1800009101978,"32,894.56",NEWCASTLE UPON TYNE CITY COUNCIL.
Regeneration and Local Services,Economic Development and Housing,Fees,901003,Capital - Contract Supervision,09/07/2018,3460222-J/18/02/APK/TM-29/06/18,"2,000.00",RNJ PARTNERSHIP LLP.
Adult and Health Services,Commissioning inc Supporting People,Premises,145050,Cleaning and Domestic Supplies,09/07/2018,3459949-68782,"11,976.93",ANLABY OFFICE CLEANING SERVICES LTD.
Regeneration and Local Services,Economic Development and Housing,Premises,120021,Energy Costs,09/07/2018,3460010-13164404,665.48,CORONA ENERGY RETAIL 2 LTD.
Regeneration and Local Services,Economic Development and Housing,Premises,120021,Energy Costs,09/07/2018,3460010-13166358,543.29,CORONA ENERGY RETAIL 2 LTD.
Regeneration and Local Services,Economic Development and Housing,Premises,120021,Energy Costs,09/07/2018,3460010-13166579,527.64,CORONA ENERGY RETAIL 2 LTD.
Regeneration and Local Services,Economic Development and Housing,Premises,120021,Energy Costs,09/07/2018,3460010-13166703,950.17,CORONA ENERGY RETAIL 2 LTD.
Regeneration and Local Services,Direct Services,Premises,108099,Service Repairs and Maintenance,09/07/2018,3460099-21714,"4,026.46",JACK COUPE & SONS LTD T/A COUPE LINE.
Regeneration and Local Services,Technical Services,Stock A926,926004,Stock,09/07/2018,3459997-400010620,"24,084.00",CLEVELAND POTASH LTD T/A ICL FERTILIZERS.
Regeneration and Local Services,Technical Services,Stock A926,926004,Stock,09/07/2018,3459997-400010708,"19,170.60",CLEVELAND POTASH LTD T/A ICL FERTILIZERS.
Regeneration and Local Services,Direct Services,Stock A926,926004,Stock,09/07/2018,3460310-117284,"1,109.98",ZOELLER WASTE SYSTEMS LTD.
Regeneration and Local Services,Technical Services,Stock A926,926900,Stock in hand-Inventory system,09/07/2018,3460064-06/744537,"1,539.96",GREENHAM TRADING LTD.
Resources,Digital and Customer Services,Stock A926,926900,Stock in hand-Inventory system,09/07/2018,3460089-3927617,"1,520.00",INSIGHT DIRECT (UK) LTD.
Regeneration and Local Services,Technical Services,Stock A926,926900,Stock in hand-Inventory system,09/07/2018,3460090-637062,"2,424.80",INSTARMAC GROUP PLC.
Regeneration and Local Services,Technical Services,Stock A926,926900,Stock in hand-Inventory system,09/07/2018,3460109-STI481660,"1,704.00",JT DOVE LTD.
Regeneration and Local Services,Technical Services,Stock A926,926900,Stock in hand-Inventory system,09/07/2018,3460109-STI481727,564.42,JT DOVE LTD.
Regeneration and Local Services,Technical Services,Stock A926,926900,Stock in hand-Inventory system,09/07/2018,3460184-XL224039,"4,843.50",PARK ELECTRICAL DISTRIBUTORS LTD.
Regeneration and Local Services,Technical Services,Stock A926,926900,Stock in hand-Inventory system,09/07/2018,3460184-XL224054,871.00,PARK ELECTRICAL DISTRIBUTORS LTD.
Regeneration and Local Services,Technical Services,Stock A926,926900,Stock in hand-Inventory system,09/07/2018,3460279-107786,732.00,TOFCO LTD.
Regeneration and Local Services,Technical Services,Stock A926,926900,Stock in hand-Inventory system,09/07/2018,3460304-52960208,946.89,WOLSELEY UK LTD.
Regeneration and Local Services,Spatial Policy Planning Assets & Environment,Supplies and Services,336005,Advertising E336,09/07/2018,3460161-25294382,637.73,NEWSQUEST (YORKSHIRE & NORTH EAST) LTD.
Regeneration and Local Services,Culture & Sport,Supplies and Services,336005,Advertising E336,09/07/2018,3460253-INV-3922,"4,950.00",STEVE DAVIDSON ADVERTISING LTD T/A SD ADVERTISING LTD.
Resources,Digital and Customer Services,Supplies and Services,342051,Computers and Communications,09/07/2018,3460212-INV-31994,"2,430.00",REDSTOR LTD.
Resources,Digital and Customer Services,Supplies and Services,342051,Computers and Communications,09/07/2018,3460212-INV-31995,855.00,REDSTOR LTD.
Regeneration and Local Services,EnvironmentHealth & Consumer Protection,Supplies and Services,352001,Conference Expenses,09/07/2018,3460000-WEB34870,899.17,COLENA LTD T/A HELIGUY.
Regeneration and Local Services,EnvironmentHealth & Consumer Protection,Supplies and Services,352001,Conference Expenses,09/07/2018,3460000-WEB34880,747.50,COLENA LTD T/A HELIGUY.
Regeneration and Local Services,Direct Services,Supplies and Services,352001,Conference Expenses,09/07/2018,3460040-WEB81,518.00,ENVIRONMENT MEDIA GROUP.*
Regeneration and Local Services,Economic Development and Housing,Supplies and Services,377015,County Durham Development,09/07/2018,3459954-1811,"3,261.00",AUTO ITEMS LTD.
Regeneration and Local Services,Economic Development and Housing,Supplies and Services,377015,County Durham Development,09/07/2018,3459954-1812,"1,263.00",AUTO ITEMS LTD.
Regeneration and Local Services,Direct Services,Supplies and Services,304221,Equipment and Materials,09/07/2018,3459977-INV229960,"3,683.00",BROXAP LTD.
Regeneration and Local Services,Direct Services,Supplies and Services,304221,Equipment and Materials,09/07/2018,3459983-851801423,"3,488.22",CARLISLE CONSTRUCTION MATERIALS LTD.
Regeneration and Local Services,EnvironmentHealth & Consumer Protection,Supplies and Services,304999,Equipment and Materials,09/07/2018,3460000-WEB33182,529.17,COLENA LTD T/A HELIGUY.
Regeneration and Local Services,Direct Services,Supplies and Services,304221,Equipment and Materials,09/07/2018,3460032-0000014817,"3,015.42",EAST RIDING HORTICULTURE LTD.
Regeneration and Local Services,Direct Services,Supplies and Services,304221,Equipment and Materials,09/07/2018,3460034-059-223119,"1,972.98",EDMUNDSON ELECTRICAL LTD.
Regeneration and Local Services,Direct Services,Supplies and Services,304221,Equipment and Materials,09/07/2018,3460034-059-226029,629.10,EDMUNDSON ELECTRICAL LTD.
Regeneration and Local Services,Technical Services,Supplies and Services,304221,Equipment and Materials,09/07/2018,3460039-105136,"1,410.00",EMORSGATE SEEDS.
Regeneration and Local Services,Direct Services,Supplies and Services,304252,Equipment and Materials,09/07/2018,3460063-INV058618,795.00,GOTT TECHNICAL SERVICES LTD.
Regeneration and Local Services,Direct Services,Supplies and Services,304221,Equipment and Materials,09/07/2018,3460109-BII260077,"2,859.75",JT DOVE LTD.
Regeneration and Local Services,Direct Services,Supplies and Services,304221,Equipment and Materials,09/07/2018,3460109-BII260092,555.65,JT DOVE LTD.
Regeneration and Local Services,Direct Services,Supplies and Services,304221,Equipment and Materials,09/07/2018,3460109-DAI18053,"1,041.07",JT DOVE LTD.
Regeneration and Local Services,Direct Services,Supplies and Services,304221,Equipment and Materials,09/07/2018,3460109-GOI1002/D,"4,034.59",JT DOVE LTD.
Regeneration and Local Services,Direct Services,Supplies and Services,304221,Equipment and Materials,09/07/2018,3460114-106821,934.80,KERNOCK PARK PLANTS LTD.
Resources,Digital and Customer Services,Supplies and Services,304252,Equipment and Materials,09/07/2018,3460156-92480587,"3,029.23",NEOPOST LTD.
Regeneration and Local Services,Technical Services,Supplies and Services,304221,Equipment and Materials,09/07/2018,3460168-173813,642.60,NORTH EAST CONCRETE LTD.
Regeneration and Local Services,Technical Services,Supplies and Services,304221,Equipment and Materials,09/07/2018,3460177-20337,"1,080.00",OLIVERS TREE SERVICES LTD.
Regeneration and Local Services,Direct Services,Supplies and Services,304221,Equipment and Materials,09/07/2018,3460215-701715,930.92,RICKERBY LTD.
Regeneration and Local Services,Direct Services,Supplies and Services,304221,Equipment and Materials,09/07/2018,3460218-0000048317,"3,680.20",RINNAI UK LTD.
Regeneration and Local Services,Direct Services,Supplies and Services,304221,Equipment and Materials,09/07/2018,3460220-47707,"3,240.00",RJ UTILITY SERVICES LTD.
Regeneration and Local Services,Direct Services,Supplies and Services,304221,Equipment and Materials,09/07/2018,3460240-00594531,611.21,SIG TRADING LTD T/A CARPET & FLOORING LTD.*
Regeneration and Local Services,Culture & Sport,Supplies and Services,304259,Equipment and Materials,09/07/2018,3460249-00344947,"2,722.25",STAGE ELECTRICS.
Regeneration and Local Services,Direct Services,Supplies and Services,304221,Equipment and Materials,09/07/2018,3460259-2750141,"1,692.49",T CROSSLING & CO LTD.
Regeneration and Local Services,Technical Services,Supplies and Services,304221,Equipment and Materials,09/07/2018,3460286-188102,"1,225.55",TYNEDALE ROADSTONE LTD.
Regeneration and Local Services,Technical Services,Supplies and Services,304221,Equipment and Materials,09/07/2018,3460286-188103,"1,160.00",TYNEDALE ROADSTONE LTD.
Regeneration and Local Services,Technical Services,Supplies and Services,304221,Equipment and Materials,09/07/2018,3460286-188104,675.20,TYNEDALE ROADSTONE LTD.
Regeneration and Local Services,Technical Services,Supplies and Services,304221,Equipment and Materials,09/07/2018,3460286-188148,"1,106.75",TYNEDALE ROADSTONE LTD.
Regeneration and Local Services,Technical Services,Supplies and Services,304221,Equipment and Materials,09/07/2018,3460286-188149,757.76,TYNEDALE ROADSTONE LTD.
Regeneration and Local Services,Technical Services,Supplies and Services,304221,Equipment and Materials,09/07/2018,3460286-188151,783.68,TYNEDALE ROADSTONE LTD.
Regeneration and Local Services,Technical Services,Supplies and Services,304221,Equipment and Materials,09/07/2018,3460286-188152,758.00,TYNEDALE ROADSTONE LTD.
Regeneration and Local Services,Technical Services,Supplies and Services,304221,Equipment and Materials,09/07/2018,3460286-188153,668.90,TYNEDALE ROADSTONE LTD.
Regeneration and Local Services,Technical Services,Supplies and Services,304221,Equipment and Materials,09/07/2018,3460286-188221,593.60,TYNEDALE ROADSTONE LTD.
Regeneration and Local Services,Technical Services,Supplies and Services,304221,Equipment and Materials,09/07/2018,3460290-INV048026,"3,312.21",URBIS SCHREDER LTD.
Regeneration and Local Services,Direct Services,Supplies and Services,304221,Equipment and Materials,09/07/2018,3460304-52873155,"1,682.13",WOLSELEY UK LTD.
Regeneration and Local Services,Direct Services,Supplies and Services,304221,Equipment and Materials,09/07/2018,3460304-52983816,"4,081.23",WOLSELEY UK LTD.
Adult and Health Services,Commissioning inc Supporting People,Supplies and Services,384700,Miscellaneous Expenses,09/07/2018,3460071-JM/PPSP/01,"3,750.00",HARTLEPOOL & EAST DURHAM MIND.
Regeneration and Local Services,Culture & Sport,Supplies and Services,384199,Miscellaneous Expenses,09/07/2018,3460111-INV1495,554.61,KAYLEIGH LAVERICK T/A THE GARAGE URBAN STYLES.
Children and Young Peoples Services,Head of Education and Skills,Supplies and Services,384199,Miscellaneous Expenses,09/07/2018,3460125-5377,"2,124.00",LEE`S COACHES LTD.
Children and Young Peoples Services,Head of Education and Skills,Supplies and Services,384199,Miscellaneous Expenses,09/07/2018,3460125-5389,"1,269.00",LEE`S COACHES LTD.
Resources,Finance & Transactional Services,Supplies and Services,384180,Miscellaneous Expenses,09/07/2018,3460133-0142941,"5,925.06",LOOMIS UK LTD.
Adult and Health Services,Public Health,Supplies and Services,384155,Miscellaneous Expenses,09/07/2018,3460162-1000056431,"66,581.08",NHS BUSINESS SERVICES AUTHORITY (NHSBSA).
Children and Young Peoples Services,Head of Education and Skills,Supplies and Services,384199,Miscellaneous Expenses,09/07/2018,3460192-34,"7,843.97",PENSHAW VIEW TRAINING.
Regeneration and Local Services,Economic Development and Housing,Supplies and Services,384437,Miscellaneous Expenses,09/07/2018,3460251-50816,"2,595.00",STANLEY TRAVEL (NORTH EAST) LTD.
Regeneration and Local Services,Economic Development and Housing,Supplies and Services,384437,Miscellaneous Expenses,09/07/2018,3460251-50888,"2,595.00",STANLEY TRAVEL (NORTH EAST) LTD.
Children and Young Peoples Services,Head of Education and Skills,Supplies and Services,384199,Miscellaneous Expenses,09/07/2018,3460274-14/06/18,585.00,THE JAM FACTORY STUDIOS LTD.
Children and Young Peoples Services,Head of Childrens Social Care,Supplies and Services,324117,Provisions E324,09/07/2018,3459947-4379612,964.32,ANGEL SPRINGS LTD T/A WATERLOGIC.*
Regeneration and Local Services,Economic Development and Housing,Supplies and Services,338035,Services,09/07/2018,3459994-804878623,856.00,CITY & GUILDS OF LONDON INSTITUTE.
Regeneration and Local Services,Economic Development and Housing,Supplies and Services,338066,Services,09/07/2018,3460008-8865,"1,000.00",COOL BLUE BRAND COMMUNICATIONS LTD.
Adult and Health Services,Head of Adults,Supplies and Services,338365,Services,09/07/2018,3460031-39452,685.78,EASIBATHE LTD.
Regeneration and Local Services,Technical Services,Supplies and Services,338027,Services,09/07/2018,3460045-105314/15,"3,000.00",FAIRHURST.
Regeneration and Local Services,Culture & Sport,Supplies and Services,338047,Services,09/07/2018,3460075-000091,700.00,HILARITY BITES COMEDY CLUB.
Regeneration and Local Services,Spatial Policy Planning Assets & Environment,Supplies and Services,338027,Services,09/07/2018,3460180-1018843,"1,200.00",OVE ARUP & PARTNERS LTD.
Children and Young Peoples Services,Head of Childrens Social Care,Supplies and Services,338042,Services,09/07/2018,3460185-285207-JUNE2018,"1,750.00",PARKLANE PLOWDEN CHAMBERS (BARRISTERS).
Adult and Health Services,Head of Adults,Supplies and Services,338365,Services,09/07/2018,3460221-SINEN013652,"1,154.35",RNIB ENTERPRISES LTD.
Regeneration and Local Services,Economic Development and Housing,Supplies and Services,338094,Services,09/07/2018,3460231-S71-SIH00911,"2,649.20",SAVILLE GROUP LTD.
Resources,Finance & Transactional Services,Supplies and Services,344033,Telephones,09/07/2018,3459996-C/RB166606,"1,600.00",CIVICA UK LTD.
Resources,Digital and Customer Services,Supplies and Services,344033,Telephones,09/07/2018,3460157-202568,"1,022.72",NETWORKS 2 BUSINESS LTD.
Regeneration and Local Services,Economic Development and Housing,Supplies and Services,344131,Telephones,09/07/2018,3460213-INV-1892,500.00,REDWOOD CABLE PROJECTS LTD.
Regeneration and Local Services,Technical Services,Third Party Payments 4THIRD,460254,Contract Payments,09/07/2018,3460060-8734,"25,155.51",GINGER LEHMANN LTD.
Adult and Health Services,Public Health,Third Party Payments 4THIRD,460803,Contract Payments,09/07/2018,3460070-2510019347,"937,416.00",HARROGATE & DISTRICT NHS FOUNDATION TRUST.
Regeneration and Local Services,Technical Services,Third Party Payments 4THIRD,460503,Contract Payments,09/07/2018,3460161-25294379,528.94,NEWSQUEST (YORKSHIRE & NORTH EAST) LTD.
Dedicated Schools Grant,DSG High Needs Block,Third Party Payments 4THIRD,440080,Other third party payments E440,09/07/2018,3460159-M0022965,"5,844.00",NEWCASTLE COLLEGE.
Children and Young Peoples Services,Head of Childrens Social Care,Third Party Payments 4THIRD,440038,Other third party payments E440,09/07/2018,3460255-001-26/4/18,883.76,STONHAM HOUSING ASSOCIATION LTD.
Adult and Health Services,Commissioning inc Supporting People,Third Party Payments 4THIRD,479101,Purchase of Care,09/07/2018,3460027-340,"187,800.00",DURHAM COUNTY CARERS SUPPORT.
Adult and Health Services,Commissioning inc Supporting People,Third Party Payments 4THIRD,479101,Purchase of Care,09/07/2018,3460027-341,"20,519.50",DURHAM COUNTY CARERS SUPPORT.
Adult and Health Services,Commissioning inc Supporting People,Third Party Payments 4THIRD,479111,Purchase of Care,09/07/2018,3460056-90227845,"2,403.32",G4S FORENSIC & MEDICAL SERVICES (UK) LTD.
Adult and Health Services,Head of Adults,Third Party Payments 4THIRD,470101,Purchase of Care,09/07/2018,3460193-35460,"19,174.57",PERCY HEDLEY FOUNDATION.
Regeneration and Local Services,Direct Services,Third Party Payments 4THIRD,430100,Rendered by Private Contractors,09/07/2018,3459938-IN4336,"21,960.00",ACROL AIR CONDITIONING CO LTD.
Regeneration and Local Services,Direct Services,Third Party Payments 4THIRD,430100,Rendered by Private Contractors,09/07/2018,3459941-54028,886.57,ALAN REED LTD.
Regeneration and Local Services,Transport and Contracted Services,Third Party Payments 4THIRD,430109,Rendered by Private Contractors,09/07/2018,3459980-111371,"1,880.00",CA TRAFFIC LTD.
Regeneration and Local Services,Direct Services,Third Party Payments 4THIRD,430100,Rendered by Private Contractors,09/07/2018,3459988-4357,982.23,CATHEDRAL LOCK & SAFE SERVICES LTD.
Regeneration and Local Services,Technical Services,Third Party Payments 4THIRD,430100,Rendered by Private Contractors,09/07/2018,3460069-1806\013,"19,463.75",HALL CONSTRUCTION SERVICES LTD.
Regeneration and Local Services,Technical Services,Third Party Payments 4THIRD,430100,Rendered by Private Contractors,09/07/2018,3460099-21793,"8,812.40",JACK COUPE & SONS LTD T/A COUPE LINE.
Regeneration and Local Services,Technical Services,Third Party Payments 4THIRD,430100,Rendered by Private Contractors,09/07/2018,3460099-21799,"4,994.06",JACK COUPE & SONS LTD T/A COUPE LINE.
Regeneration and Local Services,Technical Services,Third Party Payments 4THIRD,430100,Rendered by Private Contractors,09/07/2018,3460099-21800,"7,909.80",JACK COUPE & SONS LTD T/A COUPE LINE.
Regeneration and Local Services,Technical Services,Third Party Payments 4THIRD,430100,Rendered by Private Contractors,09/07/2018,3460119-2006,"44,637.12",L & G PLANT HIRE & SALES LTD.
Regeneration and Local Services,Direct Services,Third Party Payments 4THIRD,430100,Rendered by Private Contractors,09/07/2018,3460123-5762,530.00,LAWLORS FALLEN STOCK.
Regeneration and Local Services,Technical Services,Third Party Payments 4THIRD,430100,Rendered by Private Contractors,09/07/2018,3460170-DI20294414,556.73,NORTHERN POWERGRID (NORTHEAST) LTD.
Regeneration and Local Services,Technical Services,Third Party Payments 4THIRD,430100,Rendered by Private Contractors,09/07/2018,3460170-DI20296558,"2,412.37",NORTHERN POWERGRID (NORTHEAST) LTD.
Regeneration and Local Services,Direct Services,Third Party Payments 4THIRD,430100,Rendered by Private Contractors,09/07/2018,3460195-99792,"2,245.46",PETERLEE GLASS CO LTD.
Regeneration and Local Services,Direct Services,Third Party Payments 4THIRD,430100,Rendered by Private Contractors,09/07/2018,3460208-108903,613.20,QW SECURITY LTD.
Regeneration and Local Services,Direct Services,Third Party Payments 4THIRD,430100,Rendered by Private Contractors,09/07/2018,3460310-117028,"1,191.70",ZOELLER WASTE SYSTEMS LTD.
Regeneration and Local Services,Direct Services,Third Party Payments 4THIRD,430100,Rendered by Private Contractors,09/07/2018,3460310-117068,553.85,ZOELLER WASTE SYSTEMS LTD.
Children and Young Peoples Services,Head of Childrens Social Care,Third Party Payments 4THIRD,425021,Rendered by Voluntary Organisations,09/07/2018,3460082-4601,"3,520.00",HOWARD HOUSE CARE LTD.
Children and Young Peoples Services,Head of Childrens Social Care,Third Party Payments 4THIRD,425021,Rendered by Voluntary Organisations,09/07/2018,3460216-30833,"24,500.00",RIGHT TRAK LTD.
Dedicated Schools Grant,DSG High Needs Block,Third Party Payments 4THIRD,425005,Rendered by Voluntary Organisations,09/07/2018,3460260-635,"23,510.05",TALBOT HOUSE SCHOOL.
Children and Young Peoples Services,Head of Education and Skills,Transport,230008,Contract Hire,09/07/2018,3460298-GAP/30,780.00,WAYSIDE TAXIS.
Children and Young Peoples Services,Head of Childrens Social Care,Transport,235073,Public Transport,09/07/2018,3460078-311,664.20,HOME ON THE RANGE LTD.
Regeneration and Local Services,Direct Services,Transport,210057,Repair and Maintenance of Vehicles,09/07/2018,3460165-72530,915.08,NORPLAST LTD.
Regeneration and Local Services,Direct Services,Transport,210057,Repair and Maintenance of Vehicles,09/07/2018,3460229-343001,582.38,S JENNINGS LTD.
Regeneration and Local Services,Direct Services,Transport,215005,Running Costs of Vehicles,09/07/2018,3460176-333742,"6,221.40",OIL NRG LTD.
Regeneration and Local Services,Direct Services,Transport,215005,Running Costs of Vehicles,09/07/2018,3460176-336164,"12,329.93",OIL NRG LTD.
Regeneration and Local Services,Direct Services,Transport,215005,Running Costs of Vehicles,09/07/2018,3460176-336376,"4,178.00",OIL NRG LTD.
Regeneration and Local Services,Direct Services,Transport,215005,Running Costs of Vehicles,09/07/2018,3460176-337018,"18,652.77",OIL NRG LTD.
Regeneration and Local Services,Technical Services,Premises,150015,Apportioned Exps of Operational Blds,10/07/2018,3460679-775024,"1,334.96",WERNICK HIRE LTD.
Regeneration and Local Services,Direct Services,Premises,150015,Apportioned Exps of Operational Blds,10/07/2018,3460679-775112,615.57,WERNICK HIRE LTD.
Regeneration and Local Services,Direct Services,Premises,150015,Apportioned Exps of Operational Blds,10/07/2018,3460679-775120,735.54,WERNICK HIRE LTD.
Regeneration and Local Services,Direct Services,Premises,150015,Apportioned Exps of Operational Blds,10/07/2018,3460679-775128,540.54,WERNICK HIRE LTD.
Regeneration and Local Services,Economic Development and Housing,Premises,135005,Water Services,10/07/2018,3460553-314160760014899058,"1,849.74",NWG BUSINESS LTD (NORTHUMBRIAN WATER GROUP).
Regeneration and Local Services,Direct Services,Stock A926,926004,Stock,10/07/2018,3460512-148669,734.05,LONDONDERRY GARAGE (S.E) LTD.
Regeneration and Local Services,Direct Services,Supplies and Services,304221,Equipment and Materials,10/07/2018,3460491-GOI921/D,"1,407.00",JT DOVE LTD.
Regeneration and Local Services,Technical Services,Supplies and Services,304221,Equipment and Materials,10/07/2018,3460491-HEI706418,670.03,JT DOVE LTD.
Regeneration and Local Services,Direct Services,Supplies and Services,304221,Equipment and Materials,10/07/2018,3460524-0000076966,"1,248.60",MIKROFILL SYSTEMS LTD.
Regeneration and Local Services,EnvironmentHealth & Consumer Protection,Supplies and Services,304999,Equipment and Materials,10/07/2018,3460588-14617,"2,040.00",RH ENVIRONMENTAL LTD.
Regeneration and Local Services,Direct Services,Supplies and Services,304221,Equipment and Materials,10/07/2018,3460633-2730142,"13,469.49",T CROSSLING & CO LTD.
Resources,Finance & Transactional Services,Supplies and Services,308011,Furniture,10/07/2018,3460321-162529,588.00,ALBANY OFFICE EQUIPMENT (WHOLESALE) LTD.
Regeneration and Local Services,Economic Development and Housing,Supplies and Services,368008,Incentives to Industrialists,10/07/2018,3460394-RED-07-2018-030,"3,111.27",COUNTY DURHAM ENGINEERING & MANUFACTURING NETWORK LTD (CDEMN).
Regeneration and Local Services,Culture & Sport,Supplies and Services,384199,Miscellaneous Expenses,10/07/2018,3460325-4100623129,525.00,AMY ODENE.
Adult and Health Services,Head of Adults,Supplies and Services,384199,Miscellaneous Expenses,10/07/2018,3460385-JOB001/19341,825.00,COLIN JOBLING T/A RAINBOW INTERNATIONAL.
Regeneration and Local Services,Economic Development and Housing,Supplies and Services,384199,Miscellaneous Expenses,10/07/2018,3460401-2018/010,620.00,CYD & CYD LTD.
Regeneration and Local Services,Spatial Policy Planning Assets & Environment,Supplies and Services,384199,Miscellaneous Expenses,10/07/2018,3460412-FA15341,"5,252.12",DURHAM CATHEDRAL LTD.
Transformation and Partnerships,Partnerships & Community Engagement Div.,Supplies and Services,384086,Miscellaneous Expenses,10/07/2018,3460420-VOUCHER18NB-EDUR011,"8,800.00",EASINGTON COLLIERY REGENERATION PARTNERSHIP.
Regeneration and Local Services,Direct Services,Supplies and Services,384956,Miscellaneous Expenses,10/07/2018,3460435-H00106938,"1,010.00",ENVIRONMENT AGENCY.
Regeneration and Local Services,Culture & Sport,Supplies and Services,384956,Miscellaneous Expenses,10/07/2018,3460453-SUP0006144,"18,013.00",GLADSTONE MRM LTD.
Regeneration and Local Services,Economic Development and Housing,Supplies and Services,384700,Miscellaneous Expenses,10/07/2018,3460503-RED-07-2018-026,"1,000.00",LAMARQUE LTD.
Dedicated Schools Grant,DSG High Needs Block,Supplies and Services,384906,Miscellaneous Expenses,10/07/2018,3460684-CAS-07-2018-074,"24,536.00",WOODHAM ACADEMY.
Children and Young Peoples Services,Head of Education and Skills,Supplies and Services,384199,Miscellaneous Expenses,10/07/2018,3460685-INV503058,"1,445.93",WORKWEAR EXPRESS LTD.
Children and Young Peoples Services,Head of Education and Skills,Supplies and Services,384199,Miscellaneous Expenses,10/07/2018,3460685-INV503555,882.62,WORKWEAR EXPRESS LTD.
Regeneration and Local Services,Culture & Sport,Supplies and Services,312013,Newspapers books and periodicals E312,10/07/2018,3460332-5770190,505.85,ASKEWS & HOLTS LIBRARY SERVICES LTD.
Regeneration and Local Services,Culture & Sport,Supplies and Services,312013,Newspapers books and periodicals E312,10/07/2018,3460332-5770214,546.32,ASKEWS & HOLTS LIBRARY SERVICES LTD.
Regeneration and Local Services,Culture & Sport,Supplies and Services,338047,Services,10/07/2018,3460370-001,"5,436.60",CBS THEATRE GROUP.
Children and Young Peoples Services,Head of Childrens Social Care,Supplies and Services,338044,Services,10/07/2018,3460411-RED-07-2018-023,550.00,DR MARK PETERS & MS JULIE FORSYTHE.
Regeneration and Local Services,Culture & Sport,Supplies and Services,338047,Services,10/07/2018,3460664-22314215342-1,679.94,UNIVERSAL PICTURES INTERNATIONAL UK & EIRE LTD.
Adult and Health Services,Commissioning inc Supporting People,Supplies and Services,338094,Services,10/07/2018,3460665-1800075,852.40,USHAW COLLEGE.
Regeneration and Local Services,Culture & Sport,Supplies and Services,338047,Services,10/07/2018,3460670-22642400,"1,106.88",WARNER BROS ENTERTAINMENT UK LTD.
Regeneration and Local Services,Spatial Policy Planning Assets & Environment,Supplies and Services,372009,Subscriptions E372,10/07/2018,3460435-CRCS7905143,"1,290.00",ENVIRONMENT AGENCY.
Children and Young Peoples Services,Head of Childrens Social Care,Third Party Payments 4THIRD,440038,Other third party payments E440,10/07/2018,3460380-2066,700.00,CITY OF SUNDERLAND YMCA LTD.
Adult and Health Services,Head of Adults,Third Party Payments 4THIRD,470101,Purchase of Care,10/07/2018,3461441-2472444,"3,068.88",A CHARLES THOMAS (CARE) LTD.
Adult and Health Services,Head of Adults,Third Party Payments 4THIRD,470101,Purchase of Care,10/07/2018,3461441-2472480,"3,068.88",A CHARLES THOMAS (CARE) LTD.
Adult and Health Services,Head of Adults,Third Party Payments 4THIRD,470101,Purchase of Care,10/07/2018,3461441-2472602,"3,068.88",A CHARLES THOMAS (CARE) LTD.
Adult and Health Services,Head of Adults,Third Party Payments 4THIRD,470101,Purchase of Care,10/07/2018,3461441-2473050,"3,068.88",A CHARLES THOMAS (CARE) LTD.
Adult and Health Services,Head of Adults,Third Party Payments 4THIRD,470101,Purchase of Care,10/07/2018,3461441-2473268,"3,005.95",A CHARLES THOMAS (CARE) LTD.
Adult and Health Services,Head of Adults,Third Party Payments 4THIRD,470101,Purchase of Care,10/07/2018,3461441-2473483,"3,068.88",A CHARLES THOMAS (CARE) LTD.
Adult and Health Services,Head of Adults,Third Party Payments 4THIRD,470101,Purchase of Care,10/07/2018,3461441-2473609,"2,626.20",A CHARLES THOMAS (CARE) LTD.
Adult and Health Services,Head of Adults,Third Party Payments 4THIRD,470101,Purchase of Care,10/07/2018,3461441-2473622,"3,068.88",A CHARLES THOMAS (CARE) LTD.
Adult and Health Services,Head of Adults,Third Party Payments 4THIRD,470101,Purchase of Care,10/07/2018,3461441-2473667,"3,068.88",A CHARLES THOMAS (CARE) LTD.
Adult and Health Services,Head of Adults,Third Party Payments 4THIRD,470101,Purchase of Care,10/07/2018,3461441-2473671,"2,602.33",A CHARLES THOMAS (CARE) LTD.
Adult and Health Services,Head of Adults,Third Party Payments 4THIRD,470101,Purchase of Care,10/07/2018,3461441-2473871,"2,847.54",A CHARLES THOMAS (CARE) LTD.
Adult and Health Services,Head of Adults,Third Party Payments 4THIRD,470101,Purchase of Care,10/07/2018,3461441-2473984,"3,068.88",A CHARLES THOMAS (CARE) LTD.
Adult and Health Services,Head of Adults,Third Party Payments 4THIRD,470101,Purchase of Care,10/07/2018,3461441-2473999,"2,856.22",A CHARLES THOMAS (CARE) LTD.
Adult and Health Services,Head of Adults,Third Party Payments 4THIRD,470101,Purchase of Care,10/07/2018,3461441-2474134,"2,595.82",A CHARLES THOMAS (CARE) LTD.
Adult and Health Services,Head of Adults,Third Party Payments 4THIRD,470101,Purchase of Care,10/07/2018,3461441-2474292,"2,943.02",A CHARLES THOMAS (CARE) LTD.
Adult and Health Services,Head of Adults,Third Party Payments 4THIRD,470101,Purchase of Care,10/07/2018,3461441-2474484,"2,626.20",A CHARLES THOMAS (CARE) LTD.
Adult and Health Services,Head of Adults,Third Party Payments 4THIRD,470101,Purchase of Care,10/07/2018,3461441-2474533,"3,441.24",A CHARLES THOMAS (CARE) LTD.
Adult and Health Services,Head of Adults,Third Party Payments 4THIRD,470101,Purchase of Care,10/07/2018,3461441-2474621,"2,626.20",A CHARLES THOMAS (CARE) LTD.
Adult and Health Services,Head of Adults,Third Party Payments 4THIRD,470101,Purchase of Care,10/07/2018,3461441-2474636,"2,279.00",A CHARLES THOMAS (CARE) LTD.
Adult and Health Services,Head of Adults,Third Party Payments 4THIRD,470101,Purchase of Care,10/07/2018,3461441-2474650,"2,656.58",A CHARLES THOMAS (CARE) LTD.
Adult and Health Services,Head of Adults,Third Party Payments 4THIRD,470101,Purchase of Care,10/07/2018,3461441-2474688,"2,279.00",A CHARLES THOMAS (CARE) LTD.
Adult and Health Services,Head of Adults,Third Party Payments 4THIRD,470101,Purchase of Care,10/07/2018,3461441-2474808,"2,279.00",A CHARLES THOMAS (CARE) LTD.
Adult and Health Services,Head of Adults,Third Party Payments 4THIRD,470101,Purchase of Care,10/07/2018,3461441-2474820,"2,443.92",A CHARLES THOMAS (CARE) LTD.
Adult and Health Services,Head of Adults,Third Party Payments 4THIRD,470101,Purchase of Care,10/07/2018,3461441-2475264,"2,337.59",A CHARLES THOMAS (CARE) LTD.
Adult and Health Services,Head of Adults,Third Party Payments 4THIRD,470101,Purchase of Care,10/07/2018,3461441-2475323,"2,279.00",A CHARLES THOMAS (CARE) LTD.
Adult and Health Services,Head of Adults,Third Party Payments 4THIRD,470101,Purchase of Care,10/07/2018,3461441-2475623,"2,597.04",A CHARLES THOMAS (CARE) LTD.
Adult and Health Services,Head of Adults,Third Party Payments 4THIRD,470101,Purchase of Care,10/07/2018,3461441-2482231,535.99,A CHARLES THOMAS (CARE) LTD.
Adult and Health Services,Head of Adults,Third Party Payments 4THIRD,470101,Purchase of Care,10/07/2018,3461441-2482238,789.88,A CHARLES THOMAS (CARE) LTD.
Adult and Health Services,Head of Adults,Third Party Payments 4THIRD,470101,Purchase of Care,10/07/2018,3461441-2483441,583.73,A CHARLES THOMAS (CARE) LTD.
Adult and Health Services,Head of Adults,Third Party Payments 4THIRD,470101,Purchase of Care,10/07/2018,3461441-2484276,637.98,A CHARLES THOMAS (CARE) LTD.
Adult and Health Services,Head of Adults,Third Party Payments 4THIRD,470101,Purchase of Care,10/07/2018,3461441-2484277,596.75,A CHARLES THOMAS (CARE) LTD.
Adult and Health Services,Head of Adults,Third Party Payments 4THIRD,470101,Purchase of Care,10/07/2018,3461441-2485074,700.91,A CHARLES THOMAS (CARE) LTD.
Adult and Health Services,Head of Adults,Third Party Payments 4THIRD,470101,Purchase of Care,10/07/2018,3461441-2486152,651.14,A CHARLES THOMAS (CARE) LTD.
Adult and Health Services,Head of Adults,Third Party Payments 4THIRD,474101,Purchase of Care,10/07/2018,3461442-2471683,"2,303.28",ABBEYMOOR CLINIC.
Adult and Health Services,Head of Adults,Third Party Payments 4THIRD,474101,Purchase of Care,10/07/2018,3461442-2472278,"2,848.00",ABBEYMOOR CLINIC.
Adult and Health Services,Head of Adults,Third Party Payments 4THIRD,470101,Purchase of Care,10/07/2018,3461442-2472522,"2,000.00",ABBEYMOOR CLINIC.
Adult and Health Services,Head of Adults,Third Party Payments 4THIRD,474101,Purchase of Care,10/07/2018,3461442-2472738,"2,848.00",ABBEYMOOR CLINIC.
Adult and Health Services,Head of Adults,Third Party Payments 4THIRD,474101,Purchase of Care,10/07/2018,3461446-2474236,"2,393.16",AKARI CARE LTD T/A PAVILION COURT CARE HOME.
Adult and Health Services,Head of Adults,Third Party Payments 4THIRD,474101,Purchase of Care,10/07/2018,3461447-2472955,"2,000.00",AKARI CARE LTD T/A PHILIPS COURT.
Adult and Health Services,Head of Adults,Third Party Payments 4THIRD,474101,Purchase of Care,10/07/2018,3461447-2472956,"2,520.00",AKARI CARE LTD T/A PHILIPS COURT.
Adult and Health Services,Head of Adults,Third Party Payments 4THIRD,470101,Purchase of Care,10/07/2018,3461447-2473032,"1,102.00",AKARI CARE LTD T/A PHILIPS COURT.
Adult and Health Services,Head of Adults,Third Party Payments 4THIRD,474101,Purchase of Care,10/07/2018,3461447-2473222,"1,596.00",AKARI CARE LTD T/A PHILIPS COURT.
Adult and Health Services,Head of Adults,Third Party Payments 4THIRD,474101,Purchase of Care,10/07/2018,3461447-2473897,"1,500.00",AKARI CARE LTD T/A PHILIPS COURT.
Adult and Health Services,Head of Adults,Third Party Payments 4THIRD,470101,Purchase of Care,10/07/2018,3461448-2471770,"3,068.88",AKARI CARE LTD T/A WESTERLEIGH NURSING HOME.
Adult and Health Services,Head of Adults,Third Party Payments 4THIRD,470101,Purchase of Care,10/07/2018,3461448-2471800,"3,068.88",AKARI CARE LTD T/A WESTERLEIGH NURSING HOME.
Adult and Health Services,Head of Adults,Third Party Payments 4THIRD,470101,Purchase of Care,10/07/2018,3461448-2471908,"3,068.88",AKARI CARE LTD T/A WESTERLEIGH NURSING HOME.
Adult and Health Services,Head of Adults,Third Party Payments 4THIRD,470101,Purchase of Care,10/07/2018,3461448-2471969,"3,068.88",AKARI CARE LTD T/A WESTERLEIGH NURSING HOME.
Adult and Health Services,Head of Adults,Third Party Payments 4THIRD,470101,Purchase of Care,10/07/2018,3461448-2472216,"1,534.42",AKARI CARE LTD T/A WESTERLEIGH NURSING HOME.
Adult and Health Services,Head of Adults,Third Party Payments 4THIRD,470101,Purchase of Care,10/07/2018,3461448-2472245,"3,068.88",AKARI CARE LTD T/A WESTERLEIGH NURSING HOME.
Adult and Health Services,Head of Adults,Third Party Payments 4THIRD,470101,Purchase of Care,10/07/2018,3461448-2472504,"3,068.88",AKARI CARE LTD T/A WESTERLEIGH NURSING HOME.
Adult and Health Services,Head of Adults,Third Party Payments 4THIRD,470101,Purchase of Care,10/07/2018,3461448-2472565,"3,068.88",AKARI CARE LTD T/A WESTERLEIGH NURSING HOME.
Adult and Health Services,Head of Adults,Third Party Payments 4THIRD,470101,Purchase of Care,10/07/2018,3461448-2473016,"3,068.88",AKARI CARE LTD T/A WESTERLEIGH NURSING HOME.
Adult and Health Services,Head of Adults,Third Party Payments 4THIRD,471101,Purchase of Care,10/07/2018,3461448-2473084,"1,576.46",AKARI CARE LTD T/A WESTERLEIGH NURSING HOME.
Adult and Health Services,Head of Adults,Third Party Payments 4THIRD,470101,Purchase of Care,10/07/2018,3461448-2473110,"3,068.88",AKARI CARE LTD T/A WESTERLEIGH NURSING HOME.
Adult and Health Services,Head of Adults,Third Party Payments 4THIRD,471101,Purchase of Care,10/07/2018,3461448-2473179,"3,159.58",AKARI CARE LTD T/A WESTERLEIGH NURSING HOME.
Adult and Health Services,Head of Adults,Third Party Payments 4THIRD,470101,Purchase of Care,10/07/2018,3461448-2473274,"3,068.88",AKARI CARE LTD T/A WESTERLEIGH NURSING HOME.
Adult and Health Services,Head of Adults,Third Party Payments 4THIRD,471101,Purchase of Care,10/07/2018,3461448-2473419,"3,069.58",AKARI CARE LTD T/A WESTERLEIGH NURSING HOME.
Adult and Health Services,Head of Adults,Third Party Payments 4THIRD,471101,Purchase of Care,10/07/2018,3461448-2473540,"3,182.08",AKARI CARE LTD T/A WESTERLEIGH NURSING HOME.
Adult and Health Services,Head of Adults,Third Party Payments 4THIRD,471101,Purchase of Care,10/07/2018,3461448-2473598,"3,143.83",AKARI CARE LTD T/A WESTERLEIGH NURSING HOME.
Adult and Health Services,Head of Adults,Third Party Payments 4THIRD,470101,Purchase of Care,10/07/2018,3461448-2473693,"3,068.88",AKARI CARE LTD T/A WESTERLEIGH NURSING HOME.
Adult and Health Services,Head of Adults,Third Party Payments 4THIRD,470101,Purchase of Care,10/07/2018,3461448-2473741,"2,747.72",AKARI CARE LTD T/A WESTERLEIGH NURSING HOME.
Adult and Health Services,Head of Adults,Third Party Payments 4THIRD,471101,Purchase of Care,10/07/2018,3461448-2473925,"2,572.33",AKARI CARE LTD T/A WESTERLEIGH NURSING HOME.
Adult and Health Services,Head of Adults,Third Party Payments 4THIRD,471101,Purchase of Care,10/07/2018,3461448-2473942,"3,182.08",AKARI CARE LTD T/A WESTERLEIGH NURSING HOME.
Adult and Health Services,Head of Adults,Third Party Payments 4THIRD,470101,Purchase of Care,10/07/2018,3461448-2474166,"3,068.88",AKARI CARE LTD T/A WESTERLEIGH NURSING HOME.
Adult and Health Services,Head of Adults,Third Party Payments 4THIRD,470101,Purchase of Care,10/07/2018,3461448-2474246,"3,068.88",AKARI CARE LTD T/A WESTERLEIGH NURSING HOME.
Adult and Health Services,Head of Adults,Third Party Payments 4THIRD,470101,Purchase of Care,10/07/2018,3461448-2474424,"2,671.77",AKARI CARE LTD T/A WESTERLEIGH NURSING HOME.
Adult and Health Services,Head of Adults,Third Party Payments 4THIRD,470101,Purchase of Care,10/07/2018,3461448-2474491,"2,595.82",AKARI CARE LTD T/A WESTERLEIGH NURSING HOME.
Adult and Health Services,Head of Adults,Third Party Payments 4THIRD,470101,Purchase of Care,10/07/2018,3461448-2474527,"2,821.50",AKARI CARE LTD T/A WESTERLEIGH NURSING HOME.
Adult and Health Services,Head of Adults,Third Party Payments 4THIRD,471101,Purchase of Care,10/07/2018,3461448-2474645,"2,754.58",AKARI CARE LTD T/A WESTERLEIGH NURSING HOME.
Adult and Health Services,Head of Adults,Third Party Payments 4THIRD,471101,Purchase of Care,10/07/2018,3461448-2474646,"2,835.58",AKARI CARE LTD T/A WESTERLEIGH NURSING HOME.
Adult and Health Services,Head of Adults,Third Party Payments 4THIRD,470101,Purchase of Care,10/07/2018,3461448-2474757,"2,292.02",AKARI CARE LTD T/A WESTERLEIGH NURSING HOME.
Adult and Health Services,Head of Adults,Third Party Payments 4THIRD,470101,Purchase of Care,10/07/2018,3461448-2474822,"2,513.36",AKARI CARE LTD T/A WESTERLEIGH NURSING HOME.
Adult and Health Services,Head of Adults,Third Party Payments 4THIRD,471101,Purchase of Care,10/07/2018,3461448-2474889,"2,628.58",AKARI CARE LTD T/A WESTERLEIGH NURSING HOME.
Adult and Health Services,Head of Adults,Third Party Payments 4THIRD,470101,Purchase of Care,10/07/2018,3461448-2474918,976.71,AKARI CARE LTD T/A WESTERLEIGH NURSING HOME.
Adult and Health Services,Head of Adults,Third Party Payments 4THIRD,470101,Purchase of Care,10/07/2018,3461448-2475031,"2,318.06",AKARI CARE LTD T/A WESTERLEIGH NURSING HOME.
Adult and Health Services,Head of Adults,Third Party Payments 4THIRD,470101,Purchase of Care,10/07/2018,3461448-2475055,"2,315.89",AKARI CARE LTD T/A WESTERLEIGH NURSING HOME.
Adult and Health Services,Head of Adults,Third Party Payments 4THIRD,471101,Purchase of Care,10/07/2018,3461448-2475065,"2,486.83",AKARI CARE LTD T/A WESTERLEIGH NURSING HOME.
Adult and Health Services,Head of Adults,Third Party Payments 4THIRD,470101,Purchase of Care,10/07/2018,3461448-2475247,"2,279.00",AKARI CARE LTD T/A WESTERLEIGH NURSING HOME.
Adult and Health Services,Head of Adults,Third Party Payments 4THIRD,471101,Purchase of Care,10/07/2018,3461448-2475530,"3,182.08",AKARI CARE LTD T/A WESTERLEIGH NURSING HOME.
Adult and Health Services,Head of Adults,Third Party Payments 4THIRD,470101,Purchase of Care,10/07/2018,3461448-2475532,"2,279.00",AKARI CARE LTD T/A WESTERLEIGH NURSING HOME.
Adult and Health Services,Head of Adults,Third Party Payments 4THIRD,470101,Purchase of Care,10/07/2018,3461448-2475630,"3,174.32",AKARI CARE LTD T/A WESTERLEIGH NURSING HOME.
Adult and Health Services,Head of Adults,Third Party Payments 4THIRD,470101,Purchase of Care,10/07/2018,3461448-2475636,"2,279.00",AKARI CARE LTD T/A WESTERLEIGH NURSING HOME.
Adult and Health Services,Head of Adults,Third Party Payments 4THIRD,470101,Purchase of Care,10/07/2018,3461448-2482538,789.88,AKARI CARE LTD T/A WESTERLEIGH NURSING HOME.
Adult and Health Services,Head of Adults,Third Party Payments 4THIRD,470101,Purchase of Care,10/07/2018,3461448-2482541,538.16,AKARI CARE LTD T/A WESTERLEIGH NURSING HOME.
Adult and Health Services,Head of Adults,Third Party Payments 4THIRD,470101,Purchase of Care,10/07/2018,3461448-2482544,635.81,AKARI CARE LTD T/A WESTERLEIGH NURSING HOME.
Adult and Health Services,Head of Adults,Third Party Payments 4THIRD,470101,Purchase of Care,10/07/2018,3461448-2482926,501.27,AKARI CARE LTD T/A WESTERLEIGH NURSING HOME.
Adult and Health Services,Head of Adults,Third Party Payments 4THIRD,470101,Purchase of Care,10/07/2018,3461448-2482927,585.90,AKARI CARE LTD T/A WESTERLEIGH NURSING HOME.
Adult and Health Services,Head of Adults,Third Party Payments 4THIRD,470101,Purchase of Care,10/07/2018,3461448-2482928,518.63,AKARI CARE LTD T/A WESTERLEIGH NURSING HOME.
Adult and Health Services,Head of Adults,Third Party Payments 4THIRD,470101,Purchase of Care,10/07/2018,3461448-2482930,789.88,AKARI CARE LTD T/A WESTERLEIGH NURSING HOME.
Adult and Health Services,Head of Adults,Third Party Payments 4THIRD,470101,Purchase of Care,10/07/2018,3461448-2483342,694.40,AKARI CARE LTD T/A WESTERLEIGH NURSING HOME.
Adult and Health Services,Head of Adults,Third Party Payments 4THIRD,470101,Purchase of Care,10/07/2018,3461448-2483344,533.82,AKARI CARE LTD T/A WESTERLEIGH NURSING HOME.
Adult and Health Services,Head of Adults,Third Party Payments 4THIRD,471101,Purchase of Care,10/07/2018,3461448-2483768,621.00,AKARI CARE LTD T/A WESTERLEIGH NURSING HOME.
Adult and Health Services,Head of Adults,Third Party Payments 4THIRD,470101,Purchase of Care,10/07/2018,3461448-2484159,555.52,AKARI CARE LTD T/A WESTERLEIGH NURSING HOME.
Adult and Health Services,Head of Adults,Third Party Payments 4THIRD,470101,Purchase of Care,10/07/2018,3461448-2484161,789.88,AKARI CARE LTD T/A WESTERLEIGH NURSING HOME.
Adult and Health Services,Head of Adults,Third Party Payments 4THIRD,470101,Purchase of Care,10/07/2018,3461448-2484165,596.75,AKARI CARE LTD T/A WESTERLEIGH NURSING HOME.
Adult and Health Services,Head of Adults,Third Party Payments 4THIRD,470101,Purchase of Care,10/07/2018,3461448-2484576,657.51,AKARI CARE LTD T/A WESTERLEIGH NURSING HOME.
Adult and Health Services,Head of Adults,Third Party Payments 4THIRD,470101,Purchase of Care,10/07/2018,3461448-2485376,789.88,AKARI CARE LTD T/A WESTERLEIGH NURSING HOME.
Adult and Health Services,Head of Adults,Third Party Payments 4THIRD,470101,Purchase of Care,10/07/2018,3461448-2486106,"1,709.25",AKARI CARE LTD T/A WESTERLEIGH NURSING HOME.
Adult and Health Services,Head of Adults,Third Party Payments 4THIRD,471101,Purchase of Care,10/07/2018,3461448-2486107,590.77,AKARI CARE LTD T/A WESTERLEIGH NURSING HOME.
Adult and Health Services,Head of Adults,Third Party Payments 4THIRD,474101,Purchase of Care,10/07/2018,3461449-2472411,"2,271.32",AKARI CARE LTD T/A WORDSWORTH HOUSE NURSING HOME.
Adult and Health Services,Head of Adults,Third Party Payments 4THIRD,471101,Purchase of Care,10/07/2018,3461445-2471769,"3,423.76",AKARI CARE LTD.
Adult and Health Services,Head of Adults,Third Party Payments 4THIRD,471101,Purchase of Care,10/07/2018,3461445-2471797,"3,423.76",AKARI CARE LTD.
Adult and Health Services,Head of Adults,Third Party Payments 4THIRD,470101,Purchase of Care,10/07/2018,3461445-2471902,"3,313.12",AKARI CARE LTD.
Adult and Health Services,Head of Adults,Third Party Payments 4THIRD,470101,Purchase of Care,10/07/2018,3461445-2472105,"3,313.12",AKARI CARE LTD.
Adult and Health Services,Head of Adults,Third Party Payments 4THIRD,470101,Purchase of Care,10/07/2018,3461445-2472305,"3,313.12",AKARI CARE LTD.
Adult and Health Services,Head of Adults,Third Party Payments 4THIRD,474101,Purchase of Care,10/07/2018,3461445-2472314,"3,243.36",AKARI CARE LTD.
Adult and Health Services,Head of Adults,Third Party Payments 4THIRD,471101,Purchase of Care,10/07/2018,3461445-2472369,"3,423.76",AKARI CARE LTD.
Adult and Health Services,Head of Adults,Third Party Payments 4THIRD,471101,Purchase of Care,10/07/2018,3461445-2472488,"3,423.76",AKARI CARE LTD.
Adult and Health Services,Head of Adults,Third Party Payments 4THIRD,471101,Purchase of Care,10/07/2018,3461445-2472516,"3,423.76",AKARI CARE LTD.
Adult and Health Services,Head of Adults,Third Party Payments 4THIRD,471101,Purchase of Care,10/07/2018,3461445-2472595,"3,423.76",AKARI CARE LTD.
Adult and Health Services,Head of Adults,Third Party Payments 4THIRD,471101,Purchase of Care,10/07/2018,3461445-2472675,"3,423.76",AKARI CARE LTD.
Adult and Health Services,Head of Adults,Third Party Payments 4THIRD,474101,Purchase of Care,10/07/2018,3461445-2472760,"3,200.02",AKARI CARE LTD.
Adult and Health Services,Head of Adults,Third Party Payments 4THIRD,471101,Purchase of Care,10/07/2018,3461445-2472879,"3,423.76",AKARI CARE LTD.
Adult and Health Services,Head of Adults,Third Party Payments 4THIRD,470101,Purchase of Care,10/07/2018,3461445-2472889,"3,313.12",AKARI CARE LTD.
Adult and Health Services,Head of Adults,Third Party Payments 4THIRD,474101,Purchase of Care,10/07/2018,3461445-2472921,"1,621.68",AKARI CARE LTD.
Adult and Health Services,Head of Adults,Third Party Payments 4THIRD,474101,Purchase of Care,10/07/2018,3461445-2472940,"3,243.36",AKARI CARE LTD.
Adult and Health Services,Head of Adults,Third Party Payments 4THIRD,471101,Purchase of Care,10/07/2018,3461445-2473000,"2,946.76",AKARI CARE LTD.
Adult and Health Services,Head of Adults,Third Party Payments 4THIRD,471101,Purchase of Care,10/07/2018,3461445-2473106,"3,423.76",AKARI CARE LTD.
Adult and Health Services,Head of Adults,Third Party Payments 4THIRD,471101,Purchase of Care,10/07/2018,3461445-2473247,"3,273.01",AKARI CARE LTD.
Adult and Health Services,Head of Adults,Third Party Payments 4THIRD,471101,Purchase of Care,10/07/2018,3461445-2473298,"2,951.26",AKARI CARE LTD.
Adult and Health Services,Head of Adults,Third Party Payments 4THIRD,474101,Purchase of Care,10/07/2018,3461445-2473717,"1,621.68",AKARI CARE LTD.
Adult and Health Services,Head of Adults,Third Party Payments 4THIRD,474101,Purchase of Care,10/07/2018,3461445-2473776,"3,204.35",AKARI CARE LTD.
Adult and Health Services,Head of Adults,Third Party Payments 4THIRD,471101,Purchase of Care,10/07/2018,3461445-2473801,"3,358.51",AKARI CARE LTD.
Adult and Health Services,Head of Adults,Third Party Payments 4THIRD,471101,Purchase of Care,10/07/2018,3461445-2473957,"2,820.76",AKARI CARE LTD.
Adult and Health Services,Head of Adults,Third Party Payments 4THIRD,471101,Purchase of Care,10/07/2018,3461445-2474033,"2,791.28",AKARI CARE LTD.
Adult and Health Services,Head of Adults,Third Party Payments 4THIRD,474101,Purchase of Care,10/07/2018,3461445-2474111,"1,621.68",AKARI CARE LTD.
Adult and Health Services,Head of Adults,Third Party Payments 4THIRD,470101,Purchase of Care,10/07/2018,3461445-2474131,"2,833.55",AKARI CARE LTD.
Adult and Health Services,Head of Adults,Third Party Payments 4THIRD,474101,Purchase of Care,10/07/2018,3461445-2474197,"1,674.12",AKARI CARE LTD.
Adult and Health Services,Head of Adults,Third Party Payments 4THIRD,470101,Purchase of Care,10/07/2018,3461445-2474210,"2,833.55",AKARI CARE LTD.
Adult and Health Services,Head of Adults,Third Party Payments 4THIRD,470101,Purchase of Care,10/07/2018,3461445-2474229,"2,931.20",AKARI CARE LTD.
Adult and Health Services,Head of Adults,Third Party Payments 4THIRD,474101,Purchase of Care,10/07/2018,3461445-2474314,"3,243.36",AKARI CARE LTD.
Adult and Health Services,Head of Adults,Third Party Payments 4THIRD,474101,Purchase of Care,10/07/2018,3461445-2474544,"2,939.13",AKARI CARE LTD.
Adult and Health Services,Head of Adults,Third Party Payments 4THIRD,470101,Purchase of Care,10/07/2018,3461445-2474561,"2,677.31",AKARI CARE LTD.
Adult and Health Services,Head of Adults,Third Party Payments 4THIRD,470101,Purchase of Care,10/07/2018,3461445-2474865,"2,197.60",AKARI CARE LTD.
Adult and Health Services,Head of Adults,Third Party Payments 4THIRD,471101,Purchase of Care,10/07/2018,3461445-2474954,"2,746.51",AKARI CARE LTD.
Adult and Health Services,Head of Adults,Third Party Payments 4THIRD,470101,Purchase of Care,10/07/2018,3461445-2475008,"2,401.12",AKARI CARE LTD.
Adult and Health Services,Head of Adults,Third Party Payments 4THIRD,470101,Purchase of Care,10/07/2018,3461445-2475117,507.27,AKARI CARE LTD.
Adult and Health Services,Head of Adults,Third Party Payments 4THIRD,471101,Purchase of Care,10/07/2018,3461445-2475201,"2,025.50",AKARI CARE LTD.
Adult and Health Services,Head of Adults,Third Party Payments 4THIRD,474101,Purchase of Care,10/07/2018,3461445-2475344,"1,307.08",AKARI CARE LTD.
Adult and Health Services,Head of Adults,Third Party Payments 4THIRD,474101,Purchase of Care,10/07/2018,3461445-2475563,"2,117.36",AKARI CARE LTD.
Adult and Health Services,Head of Adults,Third Party Payments 4THIRD,471101,Purchase of Care,10/07/2018,3461445-2475599,"2,674.51",AKARI CARE LTD.
Adult and Health Services,Head of Adults,Third Party Payments 4THIRD,474101,Purchase of Care,10/07/2018,3461445-2475606,"2,549.15",AKARI CARE LTD.
Adult and Health Services,Head of Adults,Third Party Payments 4THIRD,470101,Purchase of Care,10/07/2018,3461445-2484670,594.58,AKARI CARE LTD.
Adult and Health Services,Head of Adults,Third Party Payments 4THIRD,471101,Purchase of Care,10/07/2018,3461445-2484674,849.21,AKARI CARE LTD.
Adult and Health Services,Head of Adults,Third Party Payments 4THIRD,471101,Purchase of Care,10/07/2018,3461445-2485675,891.43,AKARI CARE LTD.
Adult and Health Services,Head of Adults,Third Party Payments 4THIRD,471101,Purchase of Care,10/07/2018,3461445-2486327,"2,832.99",AKARI CARE LTD.
Adult and Health Services,Head of Adults,Third Party Payments 4THIRD,474101,Purchase of Care,10/07/2018,3461451-2473678,"3,152.00",ALDBOURNE NURSING HOME LTD.
Adult and Health Services,Head of Adults,Third Party Payments 4THIRD,470101,Purchase of Care,10/07/2018,3461452-2471776,"3,441.24",ALLIANCE CARE (TRENDLEWOOD) LTD.
Adult and Health Services,Head of Adults,Third Party Payments 4THIRD,470101,Purchase of Care,10/07/2018,3461452-2471854,"3,068.88",ALLIANCE CARE (TRENDLEWOOD) LTD.
Adult and Health Services,Head of Adults,Third Party Payments 4THIRD,470101,Purchase of Care,10/07/2018,3461452-2472204,"3,068.88",ALLIANCE CARE (TRENDLEWOOD) LTD.
Adult and Health Services,Head of Adults,Third Party Payments 4THIRD,474101,Purchase of Care,10/07/2018,3461452-2472308,"3,000.64",ALLIANCE CARE (TRENDLEWOOD) LTD.
Adult and Health Services,Head of Adults,Third Party Payments 4THIRD,471101,Purchase of Care,10/07/2018,3461452-2472313,"3,182.08",ALLIANCE CARE (TRENDLEWOOD) LTD.
Adult and Health Services,Head of Adults,Third Party Payments 4THIRD,471101,Purchase of Care,10/07/2018,3461452-2472343,"3,182.08",ALLIANCE CARE (TRENDLEWOOD) LTD.
Adult and Health Services,Head of Adults,Third Party Payments 4THIRD,470101,Purchase of Care,10/07/2018,3461452-2472351,"3,068.88",ALLIANCE CARE (TRENDLEWOOD) LTD.
Adult and Health Services,Head of Adults,Third Party Payments 4THIRD,474101,Purchase of Care,10/07/2018,3461452-2472483,"3,000.64",ALLIANCE CARE (TRENDLEWOOD) LTD.
Adult and Health Services,Head of Adults,Third Party Payments 4THIRD,471101,Purchase of Care,10/07/2018,3461452-2472640,"3,182.08",ALLIANCE CARE (TRENDLEWOOD) LTD.
Adult and Health Services,Head of Adults,Third Party Payments 4THIRD,470101,Purchase of Care,10/07/2018,3461452-2472833,"3,068.88",ALLIANCE CARE (TRENDLEWOOD) LTD.
Adult and Health Services,Head of Adults,Third Party Payments 4THIRD,470101,Purchase of Care,10/07/2018,3461452-2473067,"3,068.88",ALLIANCE CARE (TRENDLEWOOD) LTD.
Adult and Health Services,Head of Adults,Third Party Payments 4THIRD,470101,Purchase of Care,10/07/2018,3461452-2473187,"3,068.88",ALLIANCE CARE (TRENDLEWOOD) LTD.
Adult and Health Services,Head of Adults,Third Party Payments 4THIRD,470101,Purchase of Care,10/07/2018,3461452-2473201,"3,151.73",ALLIANCE CARE (TRENDLEWOOD) LTD.
Adult and Health Services,Head of Adults,Third Party Payments 4THIRD,471101,Purchase of Care,10/07/2018,3461452-2473398,"3,182.08",ALLIANCE CARE (TRENDLEWOOD) LTD.
Adult and Health Services,Head of Adults,Third Party Payments 4THIRD,470101,Purchase of Care,10/07/2018,3461452-2473424,"3,068.88",ALLIANCE CARE (TRENDLEWOOD) LTD.
Adult and Health Services,Head of Adults,Third Party Payments 4THIRD,471101,Purchase of Care,10/07/2018,3461452-2473450,"3,182.08",ALLIANCE CARE (TRENDLEWOOD) LTD.
Adult and Health Services,Head of Adults,Third Party Payments 4THIRD,474101,Purchase of Care,10/07/2018,3461452-2473461,"3,000.64",ALLIANCE CARE (TRENDLEWOOD) LTD.
Adult and Health Services,Head of Adults,Third Party Payments 4THIRD,471101,Purchase of Care,10/07/2018,3461452-2473471,"3,049.33",ALLIANCE CARE (TRENDLEWOOD) LTD.
Adult and Health Services,Head of Adults,Third Party Payments 4THIRD,471101,Purchase of Care,10/07/2018,3461452-2473608,"1,156.58",ALLIANCE CARE (TRENDLEWOOD) LTD.
Adult and Health Services,Head of Adults,Third Party Payments 4THIRD,470101,Purchase of Care,10/07/2018,3461452-2473666,"3,068.88",ALLIANCE CARE (TRENDLEWOOD) LTD.
Adult and Health Services,Head of Adults,Third Party Payments 4THIRD,470101,Purchase of Care,10/07/2018,3461452-2473719,"1,534.46",ALLIANCE CARE (TRENDLEWOOD) LTD.
Adult and Health Services,Head of Adults,Third Party Payments 4THIRD,474101,Purchase of Care,10/07/2018,3461452-2473758,"3,000.64",ALLIANCE CARE (TRENDLEWOOD) LTD.
Adult and Health Services,Head of Adults,Third Party Payments 4THIRD,474101,Purchase of Care,10/07/2018,3461452-2473761,"3,000.64",ALLIANCE CARE (TRENDLEWOOD) LTD.
Adult and Health Services,Head of Adults,Third Party Payments 4THIRD,470101,Purchase of Care,10/07/2018,3461452-2474214,"3,068.88",ALLIANCE CARE (TRENDLEWOOD) LTD.
Adult and Health Services,Head of Adults,Third Party Payments 4THIRD,471101,Purchase of Care,10/07/2018,3461452-2474250,"2,626.33",ALLIANCE CARE (TRENDLEWOOD) LTD.
Adult and Health Services,Head of Adults,Third Party Payments 4THIRD,474101,Purchase of Care,10/07/2018,3461452-2474343,"2,698.14",ALLIANCE CARE (TRENDLEWOOD) LTD.
Adult and Health Services,Head of Adults,Third Party Payments 4THIRD,470101,Purchase of Care,10/07/2018,3461452-2474349,"3,197.95",ALLIANCE CARE (TRENDLEWOOD) LTD.
Adult and Health Services,Head of Adults,Third Party Payments 4THIRD,470101,Purchase of Care,10/07/2018,3461452-2474483,"3,068.88",ALLIANCE CARE (TRENDLEWOOD) LTD.
Adult and Health Services,Head of Adults,Third Party Payments 4THIRD,471101,Purchase of Care,10/07/2018,3461452-2474493,"1,591.06",ALLIANCE CARE (TRENDLEWOOD) LTD.
Adult and Health Services,Head of Adults,Third Party Payments 4THIRD,470101,Purchase of Care,10/07/2018,3461452-2474502,"3,068.88",ALLIANCE CARE (TRENDLEWOOD) LTD.
Adult and Health Services,Head of Adults,Third Party Payments 4THIRD,470101,Purchase of Care,10/07/2018,3461452-2474691,"2,517.70",ALLIANCE CARE (TRENDLEWOOD) LTD.
Adult and Health Services,Head of Adults,Third Party Payments 4THIRD,470101,Purchase of Care,10/07/2018,3461452-2474819,"2,441.75",ALLIANCE CARE (TRENDLEWOOD) LTD.
Adult and Health Services,Head of Adults,Third Party Payments 4THIRD,471101,Purchase of Care,10/07/2018,3461452-2474955,"2,376.58",ALLIANCE CARE (TRENDLEWOOD) LTD.
Adult and Health Services,Head of Adults,Third Party Payments 4THIRD,470101,Purchase of Care,10/07/2018,3461452-2475067,"2,279.00",ALLIANCE CARE (TRENDLEWOOD) LTD.
Adult and Health Services,Head of Adults,Third Party Payments 4THIRD,471101,Purchase of Care,10/07/2018,3461452-2475137,"2,363.08",ALLIANCE CARE (TRENDLEWOOD) LTD.
Adult and Health Services,Head of Adults,Third Party Payments 4THIRD,471101,Purchase of Care,10/07/2018,3461452-2475316,"2,363.08",ALLIANCE CARE (TRENDLEWOOD) LTD.
Adult and Health Services,Head of Adults,Third Party Payments 4THIRD,470101,Purchase of Care,10/07/2018,3461452-2475402,"2,116.21",ALLIANCE CARE (TRENDLEWOOD) LTD.
Adult and Health Services,Head of Adults,Third Party Payments 4THIRD,470101,Purchase of Care,10/07/2018,3461452-2475403,"2,116.21",ALLIANCE CARE (TRENDLEWOOD) LTD.
Adult and Health Services,Head of Adults,Third Party Payments 4THIRD,470101,Purchase of Care,10/07/2018,3461452-2475600,"2,279.00",ALLIANCE CARE (TRENDLEWOOD) LTD.
Adult and Health Services,Head of Adults,Third Party Payments 4THIRD,470101,Purchase of Care,10/07/2018,3461452-2483491,598.92,ALLIANCE CARE (TRENDLEWOOD) LTD.
Adult and Health Services,Head of Adults,Third Party Payments 4THIRD,471101,Purchase of Care,10/07/2018,3461452-2483930,819.00,ALLIANCE CARE (TRENDLEWOOD) LTD.
Adult and Health Services,Head of Adults,Third Party Payments 4THIRD,470101,Purchase of Care,10/07/2018,3461452-2484327,716.10,ALLIANCE CARE (TRENDLEWOOD) LTD.
Adult and Health Services,Head of Adults,Third Party Payments 4THIRD,470101,Purchase of Care,10/07/2018,3461452-2485129,707.42,ALLIANCE CARE (TRENDLEWOOD) LTD.
Adult and Health Services,Head of Adults,Third Party Payments 4THIRD,470101,Purchase of Care,10/07/2018,3461452-2485750,813.92,ALLIANCE CARE (TRENDLEWOOD) LTD.
Adult and Health Services,Head of Adults,Third Party Payments 4THIRD,470101,Purchase of Care,10/07/2018,3461452-2485751,"1,465.07",ALLIANCE CARE (TRENDLEWOOD) LTD.
Adult and Health Services,Head of Adults,Third Party Payments 4THIRD,470102,Purchase of Care,10/07/2018,3461452-2486478,"1,220.89",ALLIANCE CARE (TRENDLEWOOD) LTD.
Adult and Health Services,Head of Adults,Third Party Payments 4THIRD,470101,Purchase of Care,10/07/2018,3461452-2486479,569.75,ALLIANCE CARE (TRENDLEWOOD) LTD.
Adult and Health Services,Head of Adults,Third Party Payments 4THIRD,470101,Purchase of Care,10/07/2018,3461452-2486482,"1,709.25",ALLIANCE CARE (TRENDLEWOOD) LTD.
Adult and Health Services,Head of Adults,Third Party Payments 4THIRD,470101,Purchase of Care,10/07/2018,3461456-2474249,"2,236.00",ANCHOR CAREHOMES LTD.
Adult and Health Services,Head of Adults,Third Party Payments 4THIRD,470101,Purchase of Care,10/07/2018,3461456-2475331,"2,236.00",ANCHOR CAREHOMES LTD.
Adult and Health Services,Head of Adults,Third Party Payments 4THIRD,470101,Purchase of Care,10/07/2018,3461456-2475341,"1,118.00",ANCHOR CAREHOMES LTD.
Adult and Health Services,Head of Adults,Third Party Payments 4THIRD,470101,Purchase of Care,10/07/2018,3461457-2472333,"2,100.00",ANCHOR HOUSING ASSOCIATION.
Adult and Health Services,Head of Adults,Third Party Payments 4THIRD,470101,Purchase of Care,10/07/2018,3461457-2472802,"2,100.00",ANCHOR HOUSING ASSOCIATION.
Adult and Health Services,Head of Adults,Third Party Payments 4THIRD,471101,Purchase of Care,10/07/2018,3461665-2472195,"1,943.48",ANDREW PASS.
Adult and Health Services,Head of Adults,Third Party Payments 4THIRD,474101,Purchase of Care,10/07/2018,3461459-2473958,"2,204.00",ARMSTRONG HOUSE.
Adult and Health Services,Head of Adults,Third Party Payments 4THIRD,470101,Purchase of Care,10/07/2018,3461461-2473065,"2,100.00",ASCOT CARE NORTH EAST LTD.
Adult and Health Services,Head of Adults,Third Party Payments 4THIRD,470101,Purchase of Care,10/07/2018,3461461-2475547,"2,100.00",ASCOT CARE NORTH EAST LTD.
Adult and Health Services,Head of Adults,Third Party Payments 4THIRD,470101,Purchase of Care,10/07/2018,3461460-2472254,"3,068.88",ASCOT CARE NORTHEAST LTD T/A SPRINGFIELD LODGE CARE HOME.
Adult and Health Services,Head of Adults,Third Party Payments 4THIRD,470101,Purchase of Care,10/07/2018,3461460-2472331,"2,218.04",ASCOT CARE NORTHEAST LTD T/A SPRINGFIELD LODGE CARE HOME.
Adult and Health Services,Head of Adults,Third Party Payments 4THIRD,471101,Purchase of Care,10/07/2018,3461460-2472402,"2,762.04",ASCOT CARE NORTHEAST LTD T/A SPRINGFIELD LODGE CARE HOME.
Adult and Health Services,Head of Adults,Third Party Payments 4THIRD,470101,Purchase of Care,10/07/2018,3461460-2472437,"3,068.88",ASCOT CARE NORTHEAST LTD T/A SPRINGFIELD LODGE CARE HOME.
Adult and Health Services,Head of Adults,Third Party Payments 4THIRD,470101,Purchase of Care,10/07/2018,3461460-2472472,"2,516.48",ASCOT CARE NORTHEAST LTD T/A SPRINGFIELD LODGE CARE HOME.
Adult and Health Services,Head of Adults,Third Party Payments 4THIRD,470101,Purchase of Care,10/07/2018,3461460-2472503,"2,516.48",ASCOT CARE NORTHEAST LTD T/A SPRINGFIELD LODGE CARE HOME.
Adult and Health Services,Head of Adults,Third Party Payments 4THIRD,471101,Purchase of Care,10/07/2018,3461460-2472551,"2,115.48",ASCOT CARE NORTHEAST LTD T/A SPRINGFIELD LODGE CARE HOME.
Adult and Health Services,Head of Adults,Third Party Payments 4THIRD,470101,Purchase of Care,10/07/2018,3461460-2472566,"2,478.84",ASCOT CARE NORTHEAST LTD T/A SPRINGFIELD LODGE CARE HOME.
Adult and Health Services,Head of Adults,Third Party Payments 4THIRD,470101,Purchase of Care,10/07/2018,3461460-2472625,"2,498.96",ASCOT CARE NORTHEAST LTD T/A SPRINGFIELD LODGE CARE HOME.
Adult and Health Services,Head of Adults,Third Party Payments 4THIRD,470101,Purchase of Care,10/07/2018,3461460-2472672,"2,498.08",ASCOT CARE NORTHEAST LTD T/A SPRINGFIELD LODGE CARE HOME.
Adult and Health Services,Head of Adults,Third Party Payments 4THIRD,470101,Purchase of Care,10/07/2018,3461460-2472762,"2,516.48",ASCOT CARE NORTHEAST LTD T/A SPRINGFIELD LODGE CARE HOME.
Adult and Health Services,Head of Adults,Third Party Payments 4THIRD,470101,Purchase of Care,10/07/2018,3461460-2472787,"2,478.48",ASCOT CARE NORTHEAST LTD T/A SPRINGFIELD LODGE CARE HOME.
Adult and Health Services,Head of Adults,Third Party Payments 4THIRD,470101,Purchase of Care,10/07/2018,3461460-2472810,"3,068.88",ASCOT CARE NORTHEAST LTD T/A SPRINGFIELD LODGE CARE HOME.
Adult and Health Services,Head of Adults,Third Party Payments 4THIRD,470101,Purchase of Care,10/07/2018,3461460-2472969,"2,209.68",ASCOT CARE NORTHEAST LTD T/A SPRINGFIELD LODGE CARE HOME.
Adult and Health Services,Head of Adults,Third Party Payments 4THIRD,470101,Purchase of Care,10/07/2018,3461460-2473280,"2,067.12",ASCOT CARE NORTHEAST LTD T/A SPRINGFIELD LODGE CARE HOME.
Adult and Health Services,Head of Adults,Third Party Payments 4THIRD,470101,Purchase of Care,10/07/2018,3461460-2473508,"3,068.88",ASCOT CARE NORTHEAST LTD T/A SPRINGFIELD LODGE CARE HOME.
Adult and Health Services,Head of Adults,Third Party Payments 4THIRD,470101,Purchase of Care,10/07/2018,3461460-2473618,"3,068.88",ASCOT CARE NORTHEAST LTD T/A SPRINGFIELD LODGE CARE HOME.
Adult and Health Services,Head of Adults,Third Party Payments 4THIRD,470101,Purchase of Care,10/07/2018,3461460-2473637,"1,882.24",ASCOT CARE NORTHEAST LTD T/A SPRINGFIELD LODGE CARE HOME.
Adult and Health Services,Head of Adults,Third Party Payments 4THIRD,470101,Purchase of Care,10/07/2018,3461460-2473712,"2,535.06",ASCOT CARE NORTHEAST LTD T/A SPRINGFIELD LODGE CARE HOME.
Adult and Health Services,Head of Adults,Third Party Payments 4THIRD,470101,Purchase of Care,10/07/2018,3461460-2473806,"2,528.48",ASCOT CARE NORTHEAST LTD T/A SPRINGFIELD LODGE CARE HOME.
